Department family,Entity,Date,Expense Type, Expense Area , Supplier ,Transaction number, AP Amount (�) ,Purchase invoice number,Comments from NHS England
Department of Health,NHS England,15/07/2013,Services from other NHS bodies, Secondary and Community Dental Care , MID YORKSHIRE HOSPITALS NHS TRUST ,661918," 1,996,000.00 ",M164727,
Department of Health,NHS England,15/07/2013,Services from other NHS bodies, Public Health , MID YORKSHIRE HOSPITALS NHS TRUST ,661918," 2,294,547.00 ",M164727,
Department of Health,NHS England,20/07/2013,Services from other NHS bodies, Specialised Commissioning , ROYAL MARSDEN NHS FOUNDATION TRUST (THE) ,708971,"-41,989.20 ",45700229 ,
Department of Health,NHS England,20/07/2013,Services from other NHS bodies, Specialised Commissioning , ROYAL MARSDEN NHS FOUNDATION TRUST (THE) ,708184," 41,989.20 ",45698646 ,
Department of Health,NHS England,22/07/2013,GPMS/APMS and PCTMS, Primary Care , ASSURA EAST RIDING LLP ,719624," 37,946.95 ",803Z253,
Department of Health,NHS England,22/07/2013,GPMS/APMS and PCTMS, Primary Care , ASTON HEALTHCARE LTD ,719941," 30,252.02 ",BFS28,
Department of Health,NHS England,22/07/2013,Purchase of healthcare from non-NHS bodies, Specialised Commissioning , CENTRE FOR REPRODUCTIVE & GENETIC HEALTH ,719661," 66,226.25 ",181805 ,
Department of Health,NHS England,22/07/2013,GPMS/APMS and PCTMS, Primary Care , DR EVERINGTON & PARTNERS ,719659," 88,996.00 ",STA06,
Department of Health,NHS England,22/07/2013,Services from other NHS bodies, Health & Justice , KING'S COLLEGE HOSPITAL NHS FOUNDATION TRUST ,720678," 360,833.00 ",181361 ,
Department of Health,NHS England,22/07/2013,Services from other NHS bodies, Public Health , KING'S COLLEGE HOSPITAL NHS FOUNDATION TRUST ,720678," 378,857.00 ",181361 ,
Department of Health,NHS England,22/07/2013,Services from other NHS bodies, Secondary and Community Dental Care , KING'S COLLEGE HOSPITAL NHS FOUNDATION TRUST ,720678," 1,911,904.00 ",181361 ,
Department of Health,NHS England,22/07/2013,Premises, NHS England Running Costs , NHS SHARED BUSINESS SERVICES LTD ,720692," 38,382.26 ",100018407 ,
Department of Health,NHS England,22/07/2013,Premises, NHS England Running Costs , NHS SHARED BUSINESS SERVICES LTD ,720691," 45,665.81 ",100018406 ,
Department of Health,NHS England,22/07/2013,Premises, NHS England Running Costs , NHS SHARED BUSINESS SERVICES LTD ,720696," 55,499.58 ",100018411 ,
Department of Health,NHS England,22/07/2013,Premises, NHS England Running Costs , NHS SHARED BUSINESS SERVICES LTD ,720697," 71,763.23 ",100018412 ,
Department of Health,NHS England,22/07/2013,Premises, NHS England Running Costs , NHS SHARED BUSINESS SERVICES LTD ,720694," 75,191.98 ",100018409 ,
Department of Health,NHS England,22/07/2013,Premises, NHS England Running Costs , NHS SHARED BUSINESS SERVICES LTD ,720693," 78,582.46 ",100018408 ,
Department of Health,NHS England,22/07/2013,Premises, NHS England Running Costs , NHS SHARED BUSINESS SERVICES LTD ,720695," 83,094.23 ",100018410 ,
Department of Health,NHS England,22/07/2013,Purchase of healthcare from non-NHS bodies, Health & Justice , NOTTINGHAMSHIRE POLICE & CRIME COMMISSIONER ,719682," 89,400.00 ",I0018756,
Department of Health,NHS England,22/07/2013,Purchase of healthcare from non-NHS bodies, Primary Care , OHW WORKS LTD ,719831," 35,100.00 ",210 ,
Department of Health,NHS England,22/07/2013,General Opthalmic services, Primary Care , SPECSAVERS OPTICIANS ,713563," 27,301.53 ",3931561_S,
Department of Health,NHS England,31/07/2013,Services from other NHS bodies, Secondary and Community Dental Care , BIRMINGHAM COMMUNITY HEALTHCARE NHS TRUST ,661287," 116,326.00 ",44995680 ,
Department of Health,NHS England,31/07/2013,Purchase of healthcare from non-NHS bodies, Secondary and Community Dental Care , BODMIN NHS TREATMENT CENTRE ,623342," 40,258.93 ",NVC24JUL13O,
Department of Health,NHS England,31/07/2013,Services from other NHS bodies, Health & Justice , CAMBRIDGESHIRE & PETERBOROUGH MENTAL HEALTH PARTNERSHIP NHS FOUNDATION TRUST ,743279," 57,336.58 ",9900009928 ,
Department of Health,NHS Anglia CSU,31/07/2013,Establishment, Other , DIONYSYS LTD ,644156," 75,839.81 ",27258 ,
Department of Health,NHS Anglia CSU,31/07/2013,Establishment, Other , OCSL ,683652," 70,764.36 ",31846 ,
Department of Health,NHS Arden CSU,31/07/2013,Establishment, Other , ACUITY BUSINESS SOLUTIONS LTD ,704722,"-28,472.76 ",101008 ,
Department of Health,NHS Arden CSU,31/07/2013,Establishment, Other , ACUITY BUSINESS SOLUTIONS LTD ,704705," 28,472.76 ",101006 ,
Department of Health,NHS Arden CSU,31/07/2013,Establishment, Other , BRAVO SOLUTION UK ,757653," 68,064.31 ",BUK13V0004742,
Department of Health,NHS Arden CSU,31/07/2013,Establishment, Other , COVENTRY AND WARWICKSHIRE PARTNERSHIP NHS TRUST ,633457," 45,389.25 ",16769 ,
Department of Health,NHS Arden CSU,31/07/2013,Establishment, Other , COVENTRY AND WARWICKSHIRE PARTNERSHIP NHS TRUST ,633457," 47,000.00 ",16769 ,
Department of Health,NHS Arden CSU,31/07/2013,Establishment, Other , EGTON MEDICAL INFORMATION SYSTEMS LTD ,757270," 29,701.56 ",IN6761811,
Department of Health,NHS Arden CSU,31/07/2013,Establishment, Other , PCTI SOLUTIONS LTD ,633653," 37,532.40 ",49805 ,
Department of Health,NHS Central Midlands CSU,31/07/2013,Consultancy services, Other , EXPRESS INTERPRETING & TRANSLATION ,569346," 69,307.50 ",EX126,
Department of Health,NHS Central Midlands CSU,31/07/2013,Consultancy services, Other , GLOBAL TRANSLATION SERVICES ,784723," 48,523.50 ",100246 ,
Department of Health,NHS Central Midlands CSU,31/07/2013,Consultancy services, Other , PROFESSIONAL LINGUISTS LTD ,592916," 33,242.50 ",INV178,
Department of Health,NHS Central Midlands CSU,31/07/2013,Consultancy services, Other , PROFESSIONAL LINGUISTS LTD ,569330," 38,977.50 ",INV177,
Department of Health,NHS Central Southern CSU,31/07/2013,Establishment, Other , BT PLC ,784856," 28,515.78 ",790096675 ,
Department of Health,NHS Central Southern CSU,31/07/2013,Establishment, Other , BT PLC ,670795," 31,506.01 ",790094663 ,
Department of Health,NHS Central Southern CSU,31/07/2013,Establishment, Other , BYTES SOFTWARE SERVICES LTD ,580429," 105,965.57 ",346918 ,
Department of Health,NHS Central Southern CSU,31/07/2013,Establishment, Other , CRMWORKS LTD ,633890," 30,395.00 ",3614 ,
Department of Health,NHS Central Southern CSU,31/07/2013,Establishment, Other , DACOLL LTD ,705221," 37,269.00 ",1780052 ,
Department of Health,NHS Central Southern CSU,31/07/2013,Establishment, Other , DACOLL LTD ,705222," 37,269.00 ",1780054 ,
Department of Health,NHS Central Southern CSU,31/07/2013,Establishment, Other , EGTON MEDICAL INFORMATION SYSTEMS LTD ,784819," 30,482.72 ",IN6882711,
Department of Health,NHS Central Southern CSU,31/07/2013,Establishment, Other , HEALTHCARE COMPUTING LTD ,728268," 32,473.20 ",42196 ,
Department of Health,NHS Central Southern CSU,31/07/2013,Establishment, Other , HEALTHCARE COMPUTING LTD ,704897," 36,010.80 ",42199 ,
Department of Health,NHS Central Southern CSU,31/07/2013,Establishment, Other , HEALTHCARE COMPUTING LTD ,784843," 62,010.00 ",42197 ,
Department of Health,NHS Central Southern CSU,31/07/2013,Establishment, Other , OXFORD HEALTH NHS FOUNDATION TRUST ,728344,"-102,953.52 ",A0080774,
Department of Health,NHS Central Southern CSU,31/07/2013,Establishment, Other , OXFORD HEALTH NHS FOUNDATION TRUST ,683464,"-56,000.00 ",P0008532,
Department of Health,NHS Central Southern CSU,31/07/2013,Establishment, Other , OXFORD HEALTH NHS FOUNDATION TRUST ,705220," 51,476.76 ",A0080773,
Department of Health,NHS Central Southern CSU,31/07/2013,Establishment, Other , OXFORD HEALTH NHS FOUNDATION TRUST ,740310," 56,000.00 ",P0008524,
Department of Health,NHS Central Southern CSU,31/07/2013,Establishment, Other , OXFORD HEALTH NHS FOUNDATION TRUST ,740343," 102,953.52 ",A0080334,
Department of Health,NHS Central Southern CSU,31/07/2013,Establishment, Other , PCTI SOLUTIONS LTD ,592089," 2,550.19 ",49630 ,
Department of Health,NHS Central Southern CSU,31/07/2013,Establishment, Other , PCTI SOLUTIONS LTD ,592089," 26,746.15 ",49630 ,
Department of Health,NHS Central Southern CSU,31/07/2013,Establishment, Other , PCTI SOLUTIONS LTD ,545389," 44,287.02 ",49489 ,
Department of Health,NHS Central Southern CSU,31/07/2013,Establishment, Other , SOLLIS PARTNERSHIP LTD ,555552," 421,622.40 ",3260 ,
Department of Health,NHS Central Southern CSU,31/07/2013,Establishment, Other , TCR (NOTTINGHAM) LTD ,728278," 53,370.00 ",5823 ,
Department of Health,NHS Cheshire And Merseyside CSU,31/07/2013,Consultancy services, Other , BENCHMARK MANAGEMENT CONSULTING LTD ,759026," 69,561.46 ",BMC478,
Department of Health,NHS Cheshire And Merseyside CSU,31/07/2013,Supplies and services � general, Other , CHESHIRE CENTRE FOR INDEPENDENT LIVING ,773091," 66,064.00 ",764 ,
Department of Health,NHS Cheshire And Merseyside CSU,31/07/2013,Establishment, Other , EGTON MEDICAL INFORMATION SYSTEMS LTD ,580555," 30,992.42 ",IN6717421,
Department of Health,NHS Cheshire And Merseyside CSU,31/07/2013,Establishment, Other , EGTON MEDICAL INFORMATION SYSTEMS LTD ,580561," 45,799.99 ",IN6703021,
Department of Health,NHS Cheshire And Merseyside CSU,31/07/2013,Establishment, Other , EGTON MEDICAL INFORMATION SYSTEMS LTD ,580549," 52,560.37 ",IN6720021,
Department of Health,NHS Cheshire And Merseyside CSU,31/07/2013,Establishment, Other , PCTI SOLUTIONS LTD ,773098," 60,148.37 ",49556 ,
Department of Health,NHS England,31/07/2013,GPMS/APMS and PCTMS, Primary Care , 157 MEDICAL PRACTICE ,606365," 29,609.90 ",LNE000001206,
Department of Health,NHS England,31/07/2013,Purchase of healthcare from non-NHS bodies, Public Health , 1ST RETINAL SCREEN ,708636," 46,570.46 ",485 ,
Department of Health,NHS England,31/07/2013,Services from other NHS bodies, Specialised Commissioning , 2GETHER NHS FOUNDATION TRUST ,775626," 135,000.00 ",9003844 ,
Department of Health,NHS England,31/07/2013,Establishment, NHS England Running Costs , 3M SECURITY SYSTEMS DIVISION ,636738," 23,428.86 ",120716 ,
Department of Health,NHS England,31/07/2013,Establishment, NHS England Running Costs , 3M SECURITY SYSTEMS DIVISION ,636723," 25,840.99 ",120702 ,
Department of Health,NHS England,31/07/2013,Establishment, Primary Care , 3M SECURITY SYSTEMS DIVISION ,636713," 25,925.82 ",120709 ,
Department of Health,NHS England,31/07/2013,Establishment, NHS England Running Costs , 3M SECURITY SYSTEMS DIVISION ,636735," 26,049.84 ",120717 ,
Department of Health,NHS England,31/07/2013,Establishment, Primary Care , 3M SECURITY SYSTEMS DIVISION ,636710," 31,763.85 ",120712 ,
Department of Health,NHS England,31/07/2013,GPMS/APMS and PCTMS, Primary Care , 4 SEASONS MEDICAL CENTRE LTD ,605848," 35,081.86 ",CH000001661,
Department of Health,NHS England,31/07/2013,Services from other NHS bodies, Primary Care , 5 BOROUGHS PARTNERSHIP NHS FOUNDATION TRUST ,695321," 12,750.00 ",16029410 ,
Department of Health,NHS England,31/07/2013,Services from other NHS bodies, Health & Justice , 5 BOROUGHS PARTNERSHIP NHS FOUNDATION TRUST ,695321," 21,901.00 ",16029410 ,
Department of Health,NHS England,31/07/2013,Services from other NHS bodies, Public Health , 5 BOROUGHS PARTNERSHIP NHS FOUNDATION TRUST ,647908," 279,923.00 ",16029411 ,
Department of Health,NHS England,31/07/2013,Services from other NHS bodies, Specialised Commissioning , 5 BOROUGHS PARTNERSHIP NHS FOUNDATION TRUST ,636653," 747,125.00 ",16029409 ,
Department of Health,NHS England,31/07/2013,Services from other NHS bodies, Primary Care , 543 DENTAL CENTRE LTD ,572525," 25,777.00 ",137 ,
Department of Health,NHS England,31/07/2013,GPMS/APMS and PCTMS, Primary Care , A F FROLEY ,721062," 37,305.81 ",LNP000002026,
Department of Health,NHS England,31/07/2013,GPMS/APMS and PCTMS, Primary Care , A HAFEEZ ,606011," 37,976.40 ",LNP000001752,
Department of Health,NHS England,31/07/2013,GPMS/APMS and PCTMS, Primary Care , A MOGHAL ,599559,"-80,220.44 ",LNC000001024,
Department of Health,NHS England,31/07/2013,GPMS/APMS and PCTMS, Primary Care , A MOGHAL ,606173," 128,888.59 ",LNC000001025,
Department of Health,NHS England,31/07/2013,GPMS/APMS and PCTMS, Primary Care , ABAZIE OD & PARTNER ,746729,"-29,361.58 ",EX000003686,
Department of Health,NHS England,31/07/2013,GPMS/APMS and PCTMS, Primary Care , ABAZIE OD & PARTNER ,746730," 47,462.71 ",EX000003687,
Department of Health,NHS England,31/07/2013,GPMS/APMS and PCTMS, Primary Care , ABBEY DALE MEDICAL CENTRE ,601117," 38,418.14 ",LA000002718,
Department of Health,NHS England,31/07/2013,GPMS/APMS and PCTMS, Primary Care , ABBEY HOUSE MEDICAL PRACTICE ,614204,"-51,939.66 ",NO000001222,
Department of Health,NHS England,31/07/2013,GPMS/APMS and PCTMS, Primary Care , ABBEY HOUSE MEDICAL PRACTICE ,614205," 197,372.03 ",NO000001223,
Department of Health,NHS England,31/07/2013,GPMS/APMS and PCTMS, Primary Care , ABBEY LANE SURGERY ,599068,"-26,496.26 ",SHE000001060,
Department of Health,NHS England,31/07/2013,GPMS/APMS and PCTMS, Primary Care , ABBEY LANE SURGERY ,606925," 52,207.73 ",SHE000001061,
Department of Health,NHS England,31/07/2013,GPMS/APMS and PCTMS, Primary Care , ABBEY MANOR MEDICAL PRACTICE ,606890," 39,926.40 ",SM000000898,
Department of Health,NHS England,31/07/2013,GPMS/APMS and PCTMS, Primary Care , ABBEY MEAD SURGERY ,705332," 77,804.39 ",SO000003818,
Department of Health,NHS England,31/07/2013,GPMS/APMS and PCTMS, Primary Care , ABBEY MEDICAL CENTER KENILWORTH ,698318," 96,158.21 ",WA000001210,
Department of Health,NHS England,31/07/2013,GPMS/APMS and PCTMS, Primary Care , ABBEY MEDICAL CENTER LONDON ,758107,"-172,256.69 ",LND000001297,
Department of Health,NHS England,31/07/2013,GPMS/APMS and PCTMS, Primary Care , ABBEY MEDICAL CENTER LONDON ,758108," 256,441.37 ",LND000001298,
Department of Health,NHS England,31/07/2013,GPMS/APMS and PCTMS, Primary Care , ABBEY MEDICAL PRACTICE EVESHAM ,705642," 80,086.30 ",WR000001368,
Department of Health,NHS England,31/07/2013,GPMS/APMS and PCTMS, Primary Care , ABBEY MEDICAL PRACTICE WELLINGBOROUGH ,614206,"-41,538.37 ",NO000001224,
Department of Health,NHS England,31/07/2013,GPMS/APMS and PCTMS, Primary Care , ABBEY MEDICAL PRACTICE WELLINGBOROUGH ,614207," 163,580.18 ",NO000001225,
Department of Health,NHS England,31/07/2013,GPMS/APMS and PCTMS, Primary Care , ABBEY ROAD HEALTH CENTRE ,697706," 108,486.23 ",LNA000001434,
Department of Health,NHS England,31/07/2013,GPMS/APMS and PCTMS, Primary Care , ABBEY SURGERY TAVISTOCK ,720864," 129,098.53 ",DN000003363,
Department of Health,NHS England,31/07/2013,GPMS/APMS and PCTMS, Primary Care , ABBEY VIEW MEDICAL CENTRE ,585799," 171,893.45 ",DO000001442,
Department of Health,NHS England,31/07/2013,GPMS/APMS and PCTMS, Primary Care , ABBEY WOOD SURGERY ,600198,"-25,364.64 ",LNW000000786,
Department of Health,NHS England,31/07/2013,GPMS/APMS and PCTMS, Primary Care , ABBEY WOOD SURGERY ,600200," 77,311.42 ",LNW000000787,
Department of Health,NHS England,31/07/2013,GPMS/APMS and PCTMS, Primary Care , ABBOTS WOOD MEDICAL CENTRE ,749874," 30,893.55 ",HT000002073,
Department of Health,NHS England,31/07/2013,GPMS/APMS and PCTMS, Primary Care , ABBOTSBURY ROAD SURGERY ,713019," 71,557.73 ",DO000001642,
Department of Health,NHS England,31/07/2013,GPMS/APMS and PCTMS, Primary Care , ABBOTT & PATEL ,741085," 63,239.51 ",DR000001297,
Department of Health,NHS England,31/07/2013,GPMS/APMS and PCTMS, Primary Care , ABBOTTSWOOD MEDICAL CENTRE ,765735," 28,085.23 ",WR000001520,
Department of Health,NHS England,31/07/2013,GPMS/APMS and PCTMS, Primary Care , ABBOTTSWOOD MEDICAL CENTRE ,705643," 89,541.04 ",WR000001370,
Department of Health,NHS England,31/07/2013,GPMS/APMS and PCTMS, Primary Care , ABDI SHS ,732458," 31,240.85 ",LIP000001867,
Department of Health,NHS England,31/07/2013,GPMS/APMS and PCTMS, Primary Care , ABELL WOODCOCK CHURCH DILS & PARTNERS ,597459," 65,951.26 ",DE000001966,
Department of Health,NHS England,31/07/2013,GPMS/APMS and PCTMS, Primary Care , ABERFELDY STREET PRACTICE ,705714," 68,380.78 ",LNA000001436,
Department of Health,NHS England,31/07/2013,GPMS/APMS and PCTMS, Primary Care , ABERNETHY HOUSE ,602913," 126,840.31 ",LNE000001210,
Department of Health,NHS England,31/07/2013,GPMS/APMS and PCTMS, Primary Care , ABEYEWARDENE A K ,758870," 33,338.17 ",EX000003689,
Department of Health,NHS England,31/07/2013,GPMS/APMS and PCTMS, Primary Care , ABINGDON HEALTH CENTRE ,602998," 90,525.31 ",LNJ000000995,
Department of Health,NHS England,31/07/2013,GPMS/APMS and PCTMS, Primary Care , ABINGDON SURGERY ,758069," 111,051.92 ",OX000001305,
Department of Health,NHS England,31/07/2013,GPMS/APMS and PCTMS, Primary Care , ABINGTON MEDICAL CENTRE ,614208,"-32,386.60 ",NO000001226,
Department of Health,NHS England,31/07/2013,GPMS/APMS and PCTMS, Primary Care , ABINGTON MEDICAL CENTRE ,614209," 155,908.49 ",NO000001227,
Department of Health,NHS England,31/07/2013,GPMS/APMS and PCTMS, Primary Care , ABINGTON PARK SURGERY ,614210,"-30,637.93 ",NO000001228,
Department of Health,NHS England,31/07/2013,GPMS/APMS and PCTMS, Primary Care , ABINGTON PARK SURGERY ,614211," 122,289.92 ",NO000001229,
Department of Health,NHS England,31/07/2013,GPMS/APMS and PCTMS, Primary Care , ABNEY HOUSE MEDICAL CENTRE ,705716," 27,175.83 ",LNA000001438,
Department of Health,NHS England,31/07/2013,GPMS/APMS and PCTMS, Primary Care , ABRAHAM K K & PARTNER ,746735," 39,099.96 ",EX000003693,
Department of Health,NHS England,31/07/2013,GPMS/APMS and PCTMS, Primary Care , ABRAMS S & NIKPOUR A ,732463,"-40,329.34 ",LIP000001876,
Department of Health,NHS England,31/07/2013,GPMS/APMS and PCTMS, Primary Care , ABRAMS S & NIKPOUR A ,740814," 46,066.88 ",LIP000001877,
Department of Health,NHS England,31/07/2013,GPMS/APMS and PCTMS, Primary Care , ACCRINGTON VIC HAC ,601119," 165,000.00 ",LA000002720,
Department of Health,NHS England,31/07/2013,GPMS/APMS and PCTMS, Primary Care , ACORN D J & PARTNER ,746736,"-34,175.33 ",EX000003694,
Department of Health,NHS England,31/07/2013,GPMS/APMS and PCTMS, Primary Care , ACORN D J & PARTNER ,746737," 58,876.43 ",EX000003695,
Department of Health,NHS England,31/07/2013,GPMS/APMS and PCTMS, Primary Care , ACORN GROUP PRACTICE ,720814," 76,169.24 ",LNN000001001,
Department of Health,NHS England,31/07/2013,GPMS/APMS and PCTMS, Primary Care , ACORN MEDICAL CENTRE ,706170," 43,888.24 ",LNK000000492,
Department of Health,NHS England,31/07/2013,Supplies and services � clinical, Specialised Commissioning , ACORN PHARMACY ,636041," 62,500.00 ",4 ,
Department of Health,NHS England,31/07/2013,GPMS/APMS and PCTMS, Primary Care , ACORNS SURGERY ,605839," 38,813.81 ",CH000001623,
Department of Health,NHS England,31/07/2013,GPMS/APMS and PCTMS, Primary Care , ACORNS SURGERY ,605927," 140,639.36 ",LNS000002548,
Department of Health,NHS England,31/07/2013,GPMS/APMS and PCTMS, Primary Care , ACRE SURGERY NORTHWOOD HEALTH CENTRE ,602232,"-45,070.20 ",LNK000000413,
Department of Health,NHS England,31/07/2013,GPMS/APMS and PCTMS, Primary Care , ACRE SURGERY NORTHWOOD HEALTH CENTRE ,602234," 75,240.17 ",LNK000000414,
Department of Health,NHS England,31/07/2013,GPMS/APMS and PCTMS, Primary Care , ACREFIELD SURGERY ,706169," 31,095.58 ",LNK000000490,
Department of Health,NHS England,31/07/2013,GPMS/APMS and PCTMS, Primary Care , ACRESWOOD SURGERY ,757800," 66,293.07 ",LA000002970,
Department of Health,NHS England,31/07/2013,GPMS/APMS and PCTMS, Primary Care , ADAM HOUSE MEDICAL CENTRE ,597461," 58,177.09 ",DE000001968,
Department of Health,NHS England,31/07/2013,GPMS/APMS and PCTMS, Primary Care , ADAM PRACTICE ,585802,"-43,994.51 ",DO000001445,
Department of Health,NHS England,31/07/2013,GPMS/APMS and PCTMS, Primary Care , ADAM PRACTICE ,675487," 37,828.76 ",DO000001562,
Department of Health,NHS England,31/07/2013,GPMS/APMS and PCTMS, Primary Care , ADAM PRACTICE ,596623," 250,926.70 ",DO000001446,
Department of Health,NHS England,31/07/2013,GPMS/APMS and PCTMS, Primary Care , ADAMS P & PARTNERS ,721025," 55,281.26 ",SY000002071,
Department of Health,NHS England,31/07/2013,GPMS/APMS and PCTMS, Primary Care , ADDINGTON ROAD SURGERY ,662140," 85,008.97 ",LNT000000833,
Department of Health,NHS England,31/07/2013,GPMS/APMS and PCTMS, Primary Care , ADELAIDE GP SURGERY ,584428," 60,189.07 ",SO000003494,
Department of Health,NHS England,31/07/2013,GPMS/APMS and PCTMS, Primary Care , ADELAIDE MEDICAL CENTRE ,705336," 66,873.98 ",SO000003826,
Department of Health,NHS England,31/07/2013,GPMS/APMS and PCTMS, Primary Care , ADELAIDE MEDICAL CENTRE BLAYDON ,750323," 102,055.64 ",GAT000000909,
Department of Health,NHS England,31/07/2013,GPMS/APMS and PCTMS, Primary Care , ADELAIDE MEDICAL CENTRE LONDON ,758109,"-177,770.35 ",LND000001299,
Department of Health,NHS England,31/07/2013,GPMS/APMS and PCTMS, Primary Care , ADELAIDE MEDICAL CENTRE LONDON ,758110," 265,738.81 ",LND000001300,
Department of Health,NHS England,31/07/2013,GPMS/APMS and PCTMS, Primary Care , ADELAIDE ST SURGERY WATERFRONT LCG ,720867," 26,884.53 ",DN000003368,
Department of Health,NHS England,31/07/2013,GPMS/APMS and PCTMS, Primary Care , ADELAIDE STREET SURGERY ,606206," 123,987.67 ",LA000002726,
Department of Health,NHS England,31/07/2013,GPMS/APMS and PCTMS, Primary Care , ADLER & ROSENBERG ,751754,"-66,982.21 ",LNH000000906,
Department of Health,NHS England,31/07/2013,GPMS/APMS and PCTMS, Primary Care , ADLER & ROSENBERG ,751755," 92,963.61 ",LNH000000907,
Department of Health,NHS England,31/07/2013,GPMS/APMS and PCTMS, Primary Care , ADLINGTON MEDICAL CENTRE ,747099," 26,452.74 ",LA000002973,
Department of Health,NHS England,31/07/2013,GPMS/APMS and PCTMS, Primary Care , ADO THE ENTERPRISE PRACTICE ,705947," 29,514.94 ",LNL000001303,
Department of Health,NHS England,31/07/2013,GPMS/APMS and PCTMS, Primary Care , ADSHALL ROAD MEDICAL PRACTICE ,733271," 31,549.38 ",SPT000000632,
Department of Health,NHS England,31/07/2013,GPMS/APMS and PCTMS, Primary Care , ADSWOOD ROAD SURGERY ,586419," 33,882.85 ",SPT000000563,
Department of Health,NHS England,31/07/2013,GPMS/APMS and PCTMS, Primary Care , ADUR & PARTNERS ,599560,"-66,129.68 ",LNC000001026,
Department of Health,NHS England,31/07/2013,GPMS/APMS and PCTMS, Primary Care , ADUR & PARTNERS ,606174," 76,944.56 ",LNC000001027,
Department of Health,NHS England,31/07/2013,GPMS/APMS and PCTMS, Primary Care , ADUR MEDICAL GROUP ,686910," 50,602.90 ",TW000002428,
Department of Health,NHS England,31/07/2013,GPMS/APMS and PCTMS, Primary Care , AELFGAR SURGERY ,624175," 41,913.46 ",ST000002842,
Department of Health,NHS England,31/07/2013,GPMS/APMS and PCTMS, Primary Care , AGARWAL & PARTNERS ,732464,"-59,669.63 ",LIP000001878,
Department of Health,NHS England,31/07/2013,GPMS/APMS and PCTMS, Primary Care , AGARWAL & PARTNERS ,597757," 55,766.10 ",LIP000001488,
Department of Health,NHS England,31/07/2013,GPMS/APMS and PCTMS, Primary Care , AGARWAL & PARTNERS ,740815," 72,715.41 ",LIP000001879,
Department of Health,NHS England,31/07/2013,GPMS/APMS and PCTMS, Primary Care , AGHA B & PARTNERS ,597866," 47,212.97 ",EX000003304,
Department of Health,NHS England,31/07/2013,GPMS/APMS and PCTMS, Primary Care , AGRAWAL ,665223," 38,447.74 ",WOM000000686,
Department of Health,NHS England,31/07/2013,GPMS/APMS and PCTMS, Primary Care , AGRAWAL & PARTNER ,706291," 51,568.12 ",WBH000000698,
Department of Health,NHS England,31/07/2013,GPMS/APMS and PCTMS, Primary Care , AGRAWAL R K & K ,603166," 28,758.74 ",LNN000000872,
Department of Health,NHS England,31/07/2013,GPMS/APMS and PCTMS, Primary Care , AHMAD & MONTEIRO ,706443," 47,795.66 ",LNC000001099,
Department of Health,NHS England,31/07/2013,GPMS/APMS and PCTMS, Primary Care , AHMAD H S ,597868," 39,647.80 ",EX000003306,
Department of Health,NHS England,31/07/2013,GPMS/APMS and PCTMS, Primary Care , AHMAD M & PARTNERS ,602524," 53,547.60 ",SY000001839,
Department of Health,NHS England,31/07/2013,GPMS/APMS and PCTMS, Primary Care , AHMED & BUTT ,637978," 46,731.40 ",YW000001250,
Department of Health,NHS England,31/07/2013,GPMS/APMS and PCTMS, Primary Care , AHMED & PARTNERS ,698752," 48,816.44 ",WBH000000700,
Department of Health,NHS England,31/07/2013,GPMS/APMS and PCTMS, Primary Care , AHMED I & PTS ,705439," 75,562.99 ",DE000002164,
Department of Health,NHS England,31/07/2013,GPMS/APMS and PCTMS, Primary Care , AHMED SN ,733550," 39,437.64 ",MAN000001086,
Department of Health,NHS England,31/07/2013,GPMS/APMS and PCTMS, Primary Care , AINSWORTH BLAGDEN ANDREW & PARTNERS ,597463," 85,859.33 ",DE000001970,
Department of Health,NHS England,31/07/2013,GPMS/APMS and PCTMS, Primary Care , AINSWORTH D & PARTNERS ,746745," 39,061.04 ",EX000003703,
Department of Health,NHS England,31/07/2013,Services from other NHS bodies, Public Health , AINTREE UNIVERSITY HOSPITALS NHS FOUNDATION TRUST ,547536," 37,791.00 ",8410000837 ,
Department of Health,NHS England,31/07/2013,Services from other NHS bodies, Public Health , AINTREE UNIVERSITY HOSPITALS NHS FOUNDATION TRUST ,547737," 37,791.00 ",8410001130 ,
Department of Health,NHS England,31/07/2013,Services from other NHS bodies, Public Health , AINTREE UNIVERSITY HOSPITALS NHS FOUNDATION TRUST ,581508," 87,868.00 ",8410000838 ,
Department of Health,NHS England,31/07/2013,Services from other NHS bodies, Public Health , AINTREE UNIVERSITY HOSPITALS NHS FOUNDATION TRUST ,581579," 87,868.00 ",8410001131 ,
Department of Health,NHS England,31/07/2013,Services from other NHS bodies, Secondary and Community Dental Care , AINTREE UNIVERSITY HOSPITALS NHS FOUNDATION TRUST ,547536," 202,601.00 ",8410000837 ,
Department of Health,NHS England,31/07/2013,Services from other NHS bodies, Secondary and Community Dental Care , AINTREE UNIVERSITY HOSPITALS NHS FOUNDATION TRUST ,547737," 202,601.00 ",8410001130 ,
Department of Health,NHS England,31/07/2013,Services from other NHS bodies, Secondary and Community Dental Care , AINTREE UNIVERSITY HOSPITALS NHS FOUNDATION TRUST ,581508," 414,140.00 ",8410000838 ,
Department of Health,NHS England,31/07/2013,Services from other NHS bodies, Secondary and Community Dental Care , AINTREE UNIVERSITY HOSPITALS NHS FOUNDATION TRUST ,581579," 414,140.00 ",8410001131 ,
Department of Health,NHS England,31/07/2013,Services from other NHS bodies, Specialised Commissioning , AINTREE UNIVERSITY HOSPITALS NHS FOUNDATION TRUST ,661929," 2,542,901.00 ",8410001752 ,
Department of Health,NHS England,31/07/2013,GPMS/APMS and PCTMS, Primary Care , AIR BALLOON SURGERY ,605574," 117,006.69 ",BRS000001786,
Department of Health,NHS England,31/07/2013,GPMS/APMS and PCTMS, Primary Care , AIREBOROUGH FAMILY PRACTICE ,598225,"-34,719.90 ",LDS000001770,
Department of Health,NHS England,31/07/2013,GPMS/APMS and PCTMS, Primary Care , AIREBOROUGH FAMILY PRACTICE ,606056," 70,592.00 ",LDS000001771,
Department of Health,NHS England,31/07/2013,Services from other NHS bodies, Specialised Commissioning , AIREDALE NHS FOUNDATION TRUST ,571987," 40,056.84 ",3310000037 ,
Department of Health,NHS England,31/07/2013,Services from other NHS bodies, Secondary and Community Dental Care , AIREDALE NHS FOUNDATION TRUST ,648377," 96,663.00 ",3310000078 ,
Department of Health,NHS England,31/07/2013,Services from other NHS bodies, Specialised Commissioning , AIREDALE NHS FOUNDATION TRUST ,596145," 825,669.00 ",3310000076 ,
Department of Health,NHS England,31/07/2013,GPMS/APMS and PCTMS, Primary Care , AKERMAN MEDICAL PRACTICE ,638148," 40,580.43 ",LNS000002552,
Department of Health,NHS England,31/07/2013,GPMS/APMS and PCTMS, Primary Care , AL SAYED A ,746747," 33,178.25 ",EX000003705,
Department of Health,NHS England,31/07/2013,GPMS/APMS and PCTMS, Primary Care , ALAM N ,676610," 26,969.17 ",BIK000000880,
Department of Health,NHS England,31/07/2013,GPMS/APMS and PCTMS, Primary Care , ALBANY HOUSE MEDICAL CENTRE ,614212,"-26,946.93 ",NO000001230,
Department of Health,NHS England,31/07/2013,GPMS/APMS and PCTMS, Primary Care , ALBANY HOUSE MEDICAL CENTRE ,614213," 163,499.04 ",NO000001231,
Department of Health,NHS England,31/07/2013,GPMS/APMS and PCTMS, Primary Care , ALBANY SURGERY NEWTON ABBOT ,548866," 64,404.69 ",DN000003011,
Department of Health,NHS England,31/07/2013,GPMS/APMS and PCTMS, Primary Care , ALBANY SURGERY NEWTON ABBOT ,788666," 75,141.51 ",DN000003837,
Department of Health,NHS England,31/07/2013,GPMS/APMS and PCTMS, Primary Care , ALBERT HOUSE CLINIC ,661950," 57,942.06 ",MID000001050,
Department of Health,NHS England,31/07/2013,GPMS/APMS and PCTMS, Primary Care , ALBERT STREET SURGERY ,600015," 49,193.80 ",WA000001138,
Department of Health,NHS England,31/07/2013,GPMS/APMS and PCTMS, Primary Care , ALBION HEALTH CENTRE ,705718," 97,710.84 ",LNA000001444,
Department of Health,NHS England,31/07/2013,GPMS/APMS and PCTMS, Primary Care , ALBION MEDICAL PRACTICE ,733372,"-76,721.62 ",GMK000000850,
Department of Health,NHS England,31/07/2013,GPMS/APMS and PCTMS, Primary Care , ALBION MEDICAL PRACTICE ,741216," 84,754.06 ",GMK000000851,
Department of Health,NHS England,31/07/2013,GPMS/APMS and PCTMS, Primary Care , ALBION MOUNT MEDICAL PRACTICE ,637979,"-89,972.86 ",YW000001251,
Department of Health,NHS England,31/07/2013,GPMS/APMS and PCTMS, Primary Care , ALBION MOUNT MEDICAL PRACTICE ,637980," 184,362.30 ",YW000001252,
Department of Health,NHS England,31/07/2013,GPMS/APMS and PCTMS, Primary Care , ALBION STREET HEALTH CENTRE ,605929," 105,760.29 ",LNS000002554,
Department of Health,NHS England,31/07/2013,GPMS/APMS and PCTMS, Primary Care , ALBION SURGERY ,600206,"-103,565.65 ",LNW000000792,
Department of Health,NHS England,31/07/2013,GPMS/APMS and PCTMS, Primary Care , ALBION SURGERY ,698951," 31,766.44 ",LNW000000963,
Department of Health,NHS England,31/07/2013,GPMS/APMS and PCTMS, Primary Care , ALBION SURGERY ,607236," 191,122.38 ",LNW000000793,
Department of Health,NHS England,31/07/2013,GPMS/APMS and PCTMS, Primary Care , ALBRIGHTON MEDICAL PRACTICE ,697660," 77,346.99 ",SA000001418,
Department of Health,NHS England,31/07/2013,GPMS/APMS and PCTMS, Primary Care , ALCESTER HEALTH CENTRE ,698315," 46,755.65 ",WA000001204,
Department of Health,NHS England,31/07/2013,Purchase of healthcare from non-NHS bodies, Specialised Commissioning , ALCURA UK LTD ,563177," 257,411.17 ",INV0627998,
Department of Health,NHS England,31/07/2013,Supplies and services � general, NHS England Running Costs , ALDER HEY CHILDRENS NHS FOUNDATION TRUST ,661446," 76,574.00 ",9110002471 ,
Department of Health,NHS England,31/07/2013,Services from other NHS bodies, Secondary and Community Dental Care , ALDER HEY CHILDRENS NHS FOUNDATION TRUST ,581580," 109,362.00 ",9110001564 ,
Department of Health,NHS England,31/07/2013,Services from other NHS bodies, Specialised Commissioning , ALDER HEY CHILDRENS NHS FOUNDATION TRUST ,548437," 7,350,000.00 ",9110002290 ,
Department of Health,NHS England,31/07/2013,GPMS/APMS and PCTMS, Primary Care , ALDERMOOR SURGERY ,705325," 61,661.92 ",SO000003804,
Department of Health,NHS England,31/07/2013,GPMS/APMS and PCTMS, Primary Care , ALDERSBROOK MEDICAL CENTRE ,697823," 67,872.67 ",LNB000000962,
Department of Health,NHS England,31/07/2013,GPMS/APMS and PCTMS, Primary Care , ALDERWOOD ROAD ,600186," 27,613.94 ",LNW000000777,
Department of Health,NHS England,31/07/2013,GPMS/APMS and PCTMS, Primary Care , ALEXANDER & PARTNER ,638781,"-49,119.15 ",STL000001157,
Department of Health,NHS England,31/07/2013,GPMS/APMS and PCTMS, Primary Care , ALEXANDER & PARTNER ,648529," 87,801.49 ",STL000001158,
Department of Health,NHS England,31/07/2013,GPMS/APMS and PCTMS, Primary Care , ALEXANDER GS ,740867," 35,482.40 ",MAN000001073,
Department of Health,NHS England,31/07/2013,GPMS/APMS and PCTMS, Primary Care , ALEXANDER HOUSE SURGERY ,584422,"-72,994.82 ",SO000003487,
Department of Health,NHS England,31/07/2013,GPMS/APMS and PCTMS, Primary Care , ALEXANDER HOUSE SURGERY ,596731," 138,524.79 ",SO000003488,
Department of Health,NHS England,31/07/2013,GPMS/APMS and PCTMS, Primary Care , ALEXANDRA MEDICAL CENTRE ,721065," 47,046.38 ",DUD000000486,
Department of Health,NHS England,31/07/2013,GPMS/APMS and PCTMS, Primary Care , ALEXANDRA PRACTICE ,740868," 36,694.87 ",MAN000001075,
Department of Health,NHS England,31/07/2013,GPMS/APMS and PCTMS, Primary Care , ALEXANDRA RANGE ,586995,"-25,029.90 ",MAN000000879,
Department of Health,NHS England,31/07/2013,GPMS/APMS and PCTMS, Primary Care , ALEXANDRA RANGE ,586996," 26,253.31 ",MAN000000880,
Department of Health,NHS England,31/07/2013,GPMS/APMS and PCTMS, Primary Care , ALI A & PARTNER ,676607,"-46,439.11 ",BIK000000875,
Department of Health,NHS England,31/07/2013,GPMS/APMS and PCTMS, Primary Care , ALI A & PARTNER ,686811," 57,842.32 ",BIK000000876,
Department of Health,NHS England,31/07/2013,GPMS/APMS and PCTMS, Primary Care , ALL SAINTS MEDICAL CENTRE ,600191," 51,518.03 ",LNW000000781,
Department of Health,NHS England,31/07/2013,GPMS/APMS and PCTMS, Primary Care , ALL SAINTS MEDICAL PRACTICE ,599981,"-102,722.24 ",LNA000001425,
Department of Health,NHS England,31/07/2013,GPMS/APMS and PCTMS, Primary Care , ALL SAINTS MEDICAL PRACTICE ,607188," 144,834.62 ",LNA000001426,
Department of Health,NHS England,31/07/2013,GPMS/APMS and PCTMS, Primary Care , ALLEN & PARTNERS ,637674,"-62,682.81 ",LIP000001617,
Department of Health,NHS England,31/07/2013,GPMS/APMS and PCTMS, Primary Care , ALLEN & PARTNERS ,648630," 116,413.54 ",LIP000001618,
Department of Health,NHS England,31/07/2013,GPMS/APMS and PCTMS, Primary Care , ALLENSON HOUSE MEDICAL CENTRE ,751662,"-33,522.90 ",LNE000001358,
Department of Health,NHS England,31/07/2013,GPMS/APMS and PCTMS, Primary Care , ALLENSON HOUSE MEDICAL CENTRE ,758230," 56,471.04 ",LNE000001359,
Department of Health,NHS England,31/07/2013,GPMS/APMS and PCTMS, Primary Care , ALLERTON ROAD MEDICAL CENTRE ,599980," 38,951.96 ",LNA000001424,
Department of Health,NHS England,31/07/2013,Purchase of healthcare from non-NHS bodies, NHS England Running Costs , ALLIANCE MEDICAL LTD ,761875," 999,807.60 ",PET0173,
Department of Health,NHS England,31/07/2013,Purchase of healthcare from non-NHS bodies, NHS England Running Costs , ALLIANCE MEDICAL LTD ,548522," 1,126,158.00 ",PET0170,
Department of Health,NHS England,31/07/2013,GPMS/APMS and PCTMS, Primary Care , ALLUM MEDICAL CENTRE ,599823," 130,452.48 ",LNB000000862,
Department of Health,NHS England,31/07/2013,GPMS/APMS and PCTMS, Primary Care , ALMA MEDICAL CENTRE ,652131,"-96,383.16 ",MID000001039,
Department of Health,NHS England,31/07/2013,GPMS/APMS and PCTMS, Primary Care , ALMA MEDICAL CENTRE ,661947," 183,561.26 ",MID000001040,
Department of Health,NHS England,31/07/2013,GPMS/APMS and PCTMS, Primary Care , ALMA PARTNERSHIP ,585795," 72,136.00 ",DO000001438,
Department of Health,NHS England,31/07/2013,GPMS/APMS and PCTMS, Primary Care , ALMA ROAD SURGERY ,705327," 102,480.95 ",SO000003808,
Department of Health,NHS England,31/07/2013,GPMS/APMS and PCTMS, Primary Care , ALMAN R & PARTNERS ,676608,"-86,120.51 ",BIK000000877,
Department of Health,NHS England,31/07/2013,GPMS/APMS and PCTMS, Primary Care , ALMAN R & PARTNERS ,564950," 34,537.90 ",BIK000000761,
Department of Health,NHS England,31/07/2013,GPMS/APMS and PCTMS, Primary Care , ALMAN R & PARTNERS ,686812," 105,214.02 ",BIK000000878,
Department of Health,NHS England,31/07/2013,GPMS/APMS and PCTMS, Primary Care , ALMONDSBURY SURGERY ,605566," 39,404.11 ",BRS000001778,
Department of Health,NHS England,31/07/2013,Purchase of healthcare from non-NHS bodies, Specialised Commissioning , ALPHA HOSPITAL BURY ,695374,"-63,354.72 ",BUR000214,
Department of Health,NHS England,31/07/2013,Purchase of healthcare from non-NHS bodies, Specialised Commissioning , ALPHA HOSPITAL BURY ,563223," 37,784.37 ",BUR002245,
Department of Health,NHS England,31/07/2013,Purchase of healthcare from non-NHS bodies, Specialised Commissioning , ALPHA HOSPITAL BURY ,563370," 51,117.08 ",BUR002293,
Department of Health,NHS England,31/07/2013,Purchase of healthcare from non-NHS bodies, Specialised Commissioning , ALPHA HOSPITAL BURY ,695613," 68,147.76 ",BUR002339,
Department of Health,NHS England,31/07/2013,Purchase of healthcare from non-NHS bodies, Specialised Commissioning , ALPHA HOSPITAL BURY ,708590," 835,817.04 ",BUR002328,
Department of Health,NHS England,31/07/2013,Purchase of healthcare from non-NHS bodies, Specialised Commissioning , ALPHA HOSPITAL BURY ,708589," 1,019,133.28 ",BUR002330,
Department of Health,NHS England,31/07/2013,Purchase of healthcare from non-NHS bodies, Specialised Commissioning , ALPHA HOSPITAL SHEFFIELD ,695373," 178,973.80 ",SHF000780,
Department of Health,NHS England,31/07/2013,Purchase of healthcare from non-NHS bodies, Specialised Commissioning , ALPHA HOSPITAL WOKING ,695375," 25,464.60 ",AHW004857,
Department of Health,NHS England,31/07/2013,Purchase of healthcare from non-NHS bodies, Specialised Commissioning , ALPHA HOSPITAL WOKING ,563220," 32,799.71 ",AHW004835,
Department of Health,NHS England,31/07/2013,Purchase of healthcare from non-NHS bodies, Specialised Commissioning , ALPHA HOSPITAL WOKING ,563215," 37,694.67 ",AHW004833,
Department of Health,NHS England,31/07/2013,Purchase of healthcare from non-NHS bodies, Specialised Commissioning , ALPHA HOSPITAL WOKING ,695377," 131,145.90 ",AHW004855,
Department of Health,NHS England,31/07/2013,Purchase of healthcare from non-NHS bodies, Specialised Commissioning , ALPHA HOSPITAL WOKING ,695134," 144,506.84 ",AHW004843,
Department of Health,NHS England,31/07/2013,Purchase of healthcare from non-NHS bodies, Specialised Commissioning , ALPHA HOSPITAL WOKING ,695376," 156,457.80 ",AHW004856,
Department of Health,NHS England,31/07/2013,Purchase of healthcare from non-NHS bodies, Specialised Commissioning , ALPHA HOSPITAL WOKING ,694918," 168,056.67 ",AHW004830,
Department of Health,NHS England,31/07/2013,Purchase of healthcare from non-NHS bodies, Specialised Commissioning , ALPHA HOSPITAL WOKING ,708592," 213,453.69 ",AHW004858,
Department of Health,NHS England,31/07/2013,Purchase of healthcare from non-NHS bodies, Specialised Commissioning , ALPHA HOSPITAL WOKING ,646344," 248,841.00 ",AHW004829,
Department of Health,NHS England,31/07/2013,Purchase of healthcare from non-NHS bodies, Specialised Commissioning , ALPHA HOSPITAL WOKING ,571802," 257,510.76 ",AHW004842,
Department of Health,NHS England,31/07/2013,GPMS/APMS and PCTMS, Primary Care , ALRESFORD SURGERY ,705328," 72,396.33 ",SO000003810,
Department of Health,NHS England,31/07/2013,GPMS/APMS and PCTMS, Primary Care , ALTON STREET SURGERY ,705641," 101,710.02 ",WR000001366,
Department of Health,NHS England,31/07/2013,GPMS/APMS and PCTMS, Primary Care , ALTY & PARTNERS ,732456,"-30,025.18 ",LIP000001864,
Department of Health,NHS England,31/07/2013,GPMS/APMS and PCTMS, Primary Care , ALTY & PARTNERS ,597743," 28,459.17 ",LIP000001474,
Department of Health,NHS England,31/07/2013,GPMS/APMS and PCTMS, Primary Care , ALTY & PARTNERS ,740809," 40,394.00 ",LIP000001865,
Department of Health,NHS England,31/07/2013,GPMS/APMS and PCTMS, Primary Care , ALVANLEY FAMILY PRACTICE ,586415," 30,432.57 ",SPT000000559,
Department of Health,NHS England,31/07/2013,GPMS/APMS and PCTMS, Primary Care , ALYMER LODGE COOKLEY PARTNERSHIP ,602788,"-27,229.15 ",WR000001240,
Department of Health,NHS England,31/07/2013,GPMS/APMS and PCTMS, Primary Care , ALYMER LODGE COOKLEY PARTNERSHIP ,602789," 144,875.08 ",WR000001241,
Department of Health,NHS England,31/07/2013,GPMS/APMS and PCTMS, Primary Care , AMERSHAM HEALTH CENTRE ,663375," 85,978.72 ",BU000001067,
Department of Health,NHS England,31/07/2013,GPMS/APMS and PCTMS, Primary Care , AMERSHAM VALE TRAINING PRACTICE ,605924," 63,023.83 ",LNS000002542,
Department of Health,NHS England,31/07/2013,GPMS/APMS and PCTMS, Primary Care , AMHERST MEDICAL ,652857," 83,504.40 ",KC000003853,
Department of Health,NHS England,31/07/2013,GPMS/APMS and PCTMS, Primary Care , AMPLEFORTH SURGERY ,720749," 37,030.04 ",YN000001828,
Department of Health,NHS England,31/07/2013,GPMS/APMS and PCTMS, Primary Care , AMPTHILL PRACTICE ,758101,"-120,686.88 ",LND000001291,
Department of Health,NHS England,31/07/2013,GPMS/APMS and PCTMS, Primary Care , AMPTHILL PRACTICE ,758102," 157,514.55 ",LND000001292,
Department of Health,NHS England,31/07/2013,GPMS/APMS and PCTMS, Primary Care , AMWELL PRACTICE ,758103,"-104,668.60 ",LND000001293,
Department of Health,NHS England,31/07/2013,GPMS/APMS and PCTMS, Primary Care , AMWELL PRACTICE ,758104," 251,941.79 ",LND000001294,
Department of Health,NHS England,31/07/2013,GPMS/APMS and PCTMS, Primary Care , AMWELL STREET SURGERY ,758512," 83,566.88 ",HT000002069,
Department of Health,NHS England,31/07/2013,GPMS/APMS and PCTMS, Primary Care , ANDERSON MATTHEWS MADDEN FLANN & PARTNERS ,606857," 83,468.94 ",DE000001964,
Department of Health,NHS England,31/07/2013,GPMS/APMS and PCTMS, Primary Care , ANDOVER HEALTH CENTRE MEDICAL PRACTICE ,705331," 97,571.91 ",SO000003816,
Department of Health,NHS England,31/07/2013,GPMS/APMS and PCTMS, Primary Care , ANDOVER MEDICAL CENTRE ,758105,"-73,279.30 ",LND000001295,
Department of Health,NHS England,31/07/2013,GPMS/APMS and PCTMS, Primary Care , ANDOVER MEDICAL CENTRE ,758106," 110,282.16 ",LND000001296,
Department of Health,NHS England,31/07/2013,GPMS/APMS and PCTMS, Primary Care , ANDREOU & PARTNERS ,706290," 109,459.65 ",WBH000000696,
Department of Health,NHS England,31/07/2013,GPMS/APMS and PCTMS, Primary Care , ANGEL MEDICAL PRACTICE ,602302," 61,360.00 ",LND000001147,
Department of Health,NHS England,31/07/2013,GPMS/APMS and PCTMS, Primary Care , ANGEL SURGERY ,602911," 30,780.25 ",LNE000001208,
Department of Health,NHS England,31/07/2013,Purchase of healthcare from non-NHS bodies, NHS England Running Costs , ANGLIAN COMMUNITY ENTERPRISE CIC ,647747," 30,004.33 ",AC7000005522,
Department of Health,NHS England,31/07/2013,Purchase of healthcare from non-NHS bodies, Public Health , ANGLIAN COMMUNITY ENTERPRISE CIC ,673084," 32,670.67 ",AC700005529,
Department of Health,NHS England,31/07/2013,Purchase of healthcare from non-NHS bodies, NHS England Running Costs , ANGLIAN COMMUNITY ENTERPRISE CIC ,647748," 33,860.16 ",AC7000005520,
Department of Health,NHS England,31/07/2013,Purchase of healthcare from non-NHS bodies, NHS England Running Costs , ANGLIAN COMMUNITY ENTERPRISE CIC ,547548," 37,798.67 ",AC7000005419,
Department of Health,NHS England,31/07/2013,Purchase of healthcare from non-NHS bodies, NHS England Running Costs , ANGLIAN COMMUNITY ENTERPRISE CIC ,647750," 37,798.67 ",AC7000005523,
Department of Health,NHS England,31/07/2013,Purchase of healthcare from non-NHS bodies, NHS England Running Costs , ANGLIAN COMMUNITY ENTERPRISE CIC ,647741," 39,221.52 ",AC700005521,
Department of Health,NHS England,31/07/2013,Purchase of healthcare from non-NHS bodies, NHS England Running Costs , ANGLIAN COMMUNITY ENTERPRISE CIC ,647753," 44,209.42 ",AC7000005524,
Department of Health,NHS England,31/07/2013,Services from other NHS bodies, Primary Care , ANGLIAN COMMUNITY ENTERPRISE CIC ,647746," 82,210.08 ",AC7000005532,
Department of Health,NHS England,31/07/2013,Purchase of healthcare from non-NHS bodies, Public Health , ANGLIAN COMMUNITY ENTERPRISE CIC ,548180," 387,590.00 ",AC7000005216,
Department of Health,NHS England,31/07/2013,Purchase of healthcare from non-NHS bodies, Public Health , ANGLIAN COMMUNITY ENTERPRISE CIC ,647744," 387,590.00 ",AC700005528,
Department of Health,NHS England,31/07/2013,GPMS/APMS and PCTMS, Primary Care , ANNANDALE MEDICAL CENTRE ,676670,"-32,654.31 ",CH000001914,
Department of Health,NHS England,31/07/2013,GPMS/APMS and PCTMS, Primary Care , ANNANDALE MEDICAL CENTRE ,539308," 34,514.64 ",CH000001556,
Department of Health,NHS England,31/07/2013,GPMS/APMS and PCTMS, Primary Care , ANNANDALE MEDICAL CENTRE ,676671," 40,972.02 ",CH000001915,
Department of Health,NHS England,31/07/2013,GPMS/APMS and PCTMS, Primary Care , ANNANDALE SURGERY ,749873," 57,245.01 ",HT000002071,
Department of Health,NHS England,31/07/2013,GPMS/APMS and PCTMS, Primary Care , ANSDELL MEDICAL CENTRE ,747087," 66,730.22 ",LA000002968,
Department of Health,NHS England,31/07/2013,Purchase of healthcare from non-NHS bodies, Specialised Commissioning , ANSEL LTD ,635792," 83,886.00 ",L900000440,
Department of Health,NHS England,31/07/2013,Purchase of healthcare from non-NHS bodies, Specialised Commissioning , ANSEL LTD ,695183," 209,715.00 ",L900000439,
Department of Health,NHS England,31/07/2013,GPMS/APMS and PCTMS, Primary Care , APEX MEDICAL PRACTICE ,662249," 45,016.24 ",KC000003859,
Department of Health,NHS England,31/07/2013,GPMS/APMS and PCTMS, Primary Care , APMS HARDEN ,741042," 115,198.14 ",WAL000000835,
Department of Health,NHS England,31/07/2013,GPMS/APMS and PCTMS, Primary Care , APPLEBY HEALTH CENTRE ,662046," 42,367.76 ",CU000001280,
Department of Health,NHS England,31/07/2013,GPMS/APMS and PCTMS, Primary Care , APPLES MEDICAL CENTRE ,585801," 45,237.85 ",DO000001444,
Department of Health,NHS England,31/07/2013,GPMS/APMS and PCTMS, Primary Care , APSLEY SURGERY ,624173," 83,219.19 ",ST000002840,
Department of Health,NHS England,31/07/2013,GPMS/APMS and PCTMS, Primary Care , ARBURY MEDICAL PRACTICE ,698319," 71,681.71 ",WA000001212,
Department of Health,NHS England,31/07/2013,GPMS/APMS and PCTMS, Primary Care , ARCADIAN GARDENS ,751667,"-39,349.63 ",LNE000001362,
Department of Health,NHS England,31/07/2013,GPMS/APMS and PCTMS, Primary Care , ARCADIAN GARDENS ,758231," 74,885.37 ",LNE000001363,
Department of Health,NHS England,31/07/2013,GPMS/APMS and PCTMS, Primary Care , ARCHWAY PRIMARY CARE TEAM ,606696,"-82,745.16 ",LND000001148,
Department of Health,NHS England,31/07/2013,GPMS/APMS and PCTMS, Primary Care , ARCHWAY PRIMARY CARE TEAM ,602308," 127,172.96 ",LND000001149,
Department of Health,NHS England,31/07/2013,GPMS/APMS and PCTMS, Primary Care , ARCHWAY SURGERY ,605691," 30,348.22 ",HT000001827,
Department of Health,NHS England,31/07/2013,GPMS/APMS and PCTMS, Primary Care , ARCHWOOD MEDICAL PRACTICE ,586417," 47,378.35 ",SPT000000561,
Department of Health,NHS England,31/07/2013,GPMS/APMS and PCTMS, Primary Care , ARDEN MEDICAL CENTRE ,600012," 28,390.64 ",WA000001134,
Department of Health,NHS England,31/07/2013,GPMS/APMS and PCTMS, Primary Care , ARGYLE SURGERY ,728764," 68,256.64 ",LNM000001649,
Department of Health,NHS England,31/07/2013,GPMS/APMS and PCTMS, Primary Care , ARGYLL HOUSE SURGERY ,705334," 41,823.76 ",SO000003822,
Department of Health,NHS England,31/07/2013,GPMS/APMS and PCTMS, Primary Care , ARLESEY MEDICAL CENTRE - SUNNY HILL CIC ,601235," 28,333.33 ",BD000001169,
Department of Health,NHS England,31/07/2013,GPMS/APMS and PCTMS, Primary Care , ARMADA FAMILY PRACTICE ,605572," 118,507.47 ",BRS000001784,
Department of Health,NHS England,31/07/2013,GPMS/APMS and PCTMS, Primary Care , ARNEWOOD PRACTICE ,705335," 120,031.11 ",SO000003824,
Department of Health,NHS England,31/07/2013,GPMS/APMS and PCTMS, Primary Care , ARNOLD MEDICAL CENTRE ,606205," 52,971.50 ",LA000002722,
Department of Health,NHS England,31/07/2013,GPMS/APMS and PCTMS, Primary Care , ARNOS GROVE MEDICAL CENTRE ,602915," 35,436.90 ",LNE000001212,
Department of Health,NHS England,31/07/2013,GPMS/APMS and PCTMS, Primary Care , ARORA SC ,605862," 72,744.78 ",MAN000000967,
Department of Health,NHS England,31/07/2013,GPMS/APMS and PCTMS, Primary Care , ARRIVAL PRACTICE ,652135,"-26,701.71 ",MID000001045,
Department of Health,NHS England,31/07/2013,GPMS/APMS and PCTMS, Primary Care , ARRIVAL PRACTICE ,652136," 46,036.89 ",MID000001046,
Department of Health,NHS England,31/07/2013,GPMS/APMS and PCTMS, Primary Care , ARROW LODGE MEDICAL CENTRE ,698321," 43,841.51 ",WA000001214,
Department of Health,NHS England,31/07/2013,GPMS/APMS and PCTMS, Primary Care , ARUN MEDICAL CENTRE ,601334," 72,295.50 ",TW000002038,
Department of Health,NHS England,31/07/2013,GPMS/APMS and PCTMS, Primary Care , ARUNDEL SURGERY ,686909," 43,746.80 ",TW000002426,
Department of Health,NHS England,31/07/2013,GPMS/APMS and PCTMS, Primary Care , AS GILL & P CHEEMA ,741043," 30,911.50 ",WAL000000837,
Department of Health,NHS England,31/07/2013,GPMS/APMS and PCTMS, Primary Care , AS JAWAD ,706442," 41,655.69 ",LNC000001097,
Department of Health,NHS England,31/07/2013,GPMS/APMS and PCTMS, Primary Care , ASH TREE HOUSE SURGERY ,747109," 98,883.24 ",LA000002977,
Department of Health,NHS England,31/07/2013,GPMS/APMS and PCTMS, Primary Care , ASHBY TURN PRIMARY CARE PARTNERS ,747780," 109,655.45 ",KHU000001656,
Department of Health,NHS England,31/07/2013,GPMS/APMS and PCTMS, Primary Care , ASHCROFT ROAD MEDICAL PRACTICE ,601237," 38,390.52 ",BD000001171,
Department of Health,NHS England,31/07/2013,GPMS/APMS and PCTMS, Primary Care , ASHCROFT SURGERY ,674068," 31,269.12 ",BU000001069,
Department of Health,NHS England,31/07/2013,GPMS/APMS and PCTMS, Primary Care , ASHDOWN FOREST HEALTH CENTRE ,686771,"-25,063.26 ",TE000001998,
Department of Health,NHS England,31/07/2013,GPMS/APMS and PCTMS, Primary Care , ASHDOWN FOREST HEALTH CENTRE ,686772," 81,319.02 ",TE000001999,
Department of Health,NHS England,31/07/2013,GPMS/APMS and PCTMS, Primary Care , ASHFIELD MEDICAL CENTRE BLACKPOOL ,601127," 30,120.70 ",LA000002730,
Department of Health,NHS England,31/07/2013,GPMS/APMS and PCTMS, Primary Care , ASHFIELD MEDICAL CENTRE MILTON KEYNES ,599803," 139,312.54 ",BU000000978,
Department of Health,NHS England,31/07/2013,GPMS/APMS and PCTMS, Primary Care , ASHFIELDS PRIMARY CARE CENTRE ,597995,"-44,709.91 ",CH000001624,
Department of Health,NHS England,31/07/2013,GPMS/APMS and PCTMS, Primary Care , ASHFIELDS PRIMARY CARE CENTRE ,605840," 167,132.60 ",CH000001625,
Department of Health,NHS England,31/07/2013,GPMS/APMS and PCTMS, Primary Care , ASHFORD A L & PARTNERS ,597870," 227,855.02 ",EX000003308,
Department of Health,NHS England,31/07/2013,Services from other NHS bodies, Primary Care , ASHFORD AND ST PETERS HOSPITALS NHS TRUST ,786580," 28,250.00 ",14460353 ,
Department of Health,NHS England,31/07/2013,Services from other NHS bodies, Secondary and Community Dental Care , ASHFORD AND ST PETERS HOSPITALS NHS TRUST ,673026," 346,958.00 ",14460352 ,
Department of Health,NHS England,31/07/2013,Services from other NHS bodies, Specialised Commissioning , ASHFORD AND ST PETERS HOSPITALS NHS TRUST ,647592," 1,969,583.00 ",14460351 ,
Department of Health,NHS England,31/07/2013,GPMS/APMS and PCTMS, Primary Care , ASHINGDON MEDICAL CENTRE ,597872," 33,715.24 ",EX000003310,
Department of Health,NHS England,31/07/2013,GPMS/APMS and PCTMS, Primary Care , ASHLEY HOUSE (CAPITAL PROJECTS) LTD ,661418," 33,666.19 ",66 ,
Department of Health,NHS England,31/07/2013,GPMS/APMS and PCTMS, Primary Care , ASHTON GP SERVICE ,733370,"-118,672.96 ",GMK000000848,
Department of Health,NHS England,31/07/2013,GPMS/APMS and PCTMS, Primary Care , ASHTON GP SERVICE ,733371," 133,714.50 ",GMK000000849,
Department of Health,NHS England,31/07/2013,GPMS/APMS and PCTMS, Primary Care , ASHURST PRIMARY CARE ,747050,"-31,830.03 ",LA000002953,
Department of Health,NHS England,31/07/2013,GPMS/APMS and PCTMS, Primary Care , ASHURST PRIMARY CARE ,757796," 66,209.11 ",LA000002954,
Department of Health,NHS England,31/07/2013,GPMS/APMS and PCTMS, Primary Care , ASHWELL SURGERY ,758506," 67,812.68 ",HT000002063,
Department of Health,NHS England,31/07/2013,GPMS/APMS and PCTMS, Primary Care , ASHWOOD SURGERY ,598645," 45,539.47 ",KHU000001363,
Department of Health,NHS England,31/07/2013,GPMS/APMS and PCTMS, Primary Care , ASHWORTH HM ,740866," 31,839.63 ",MAN000001071,
Department of Health,NHS England,31/07/2013,GPMS/APMS and PCTMS, Primary Care , ASHWORTH STREET SURGERY ,734013," 84,031.47 ",ROC000000790,
Department of Health,NHS England,31/07/2013,GPMS/APMS and PCTMS, Primary Care , ASKARI & PARTNER ,648629," 49,189.04 ",LIP000001616,
Department of Health,NHS England,31/07/2013,GPMS/APMS and PCTMS, Primary Care , ASKEY & PARTNERS ,741040," 126,792.37 ",WAL000000831,
Department of Health,NHS England,31/07/2013,GPMS/APMS and PCTMS, Primary Care , ASPATRIA MEDICAL GROUP ,662043," 77,406.67 ",CU000001274,
Department of Health,NHS England,31/07/2013,GPMS/APMS and PCTMS, Primary Care , ASPLANDS MEDICAL CENTRE ,601232," 101,542.06 ",BD000001167,
Department of Health,NHS England,31/07/2013,GPMS/APMS and PCTMS, Primary Care , ASPLEY MEDICAL CENTRE ,606732," 69,248.47 ",NN000002081,
Department of Health,NHS England,31/07/2013,GPMS/APMS and PCTMS, Primary Care , ASQUITH SURGERY ,564329," 30,067.47 ",LD000001739,
Department of Health,NHS England,31/07/2013,Purchase of healthcare from non-NHS bodies, Specialised Commissioning , ASSISTED CONCEPTION UNIT LTD ,511655," 66,226.25 ",179163 ,
Department of Health,NHS England,31/07/2013,Purchase of healthcare from non-NHS bodies, Specialised Commissioning , ASSISTED CONCEPTION UNIT LTD ,512013," 66,226.25 ",180984 ,
Department of Health,NHS England,31/07/2013,GPMS/APMS and PCTMS, Primary Care , ASSURA COVENTRY LLP ,647451," 36,499.98 ",826Z229,
Department of Health,NHS England,31/07/2013,GPMS/APMS and PCTMS, Primary Care , ASSURA COVENTRY LLP ,661322," 46,366.00 ",826Z230,
Department of Health,NHS England,31/07/2013,GPMS/APMS and PCTMS, Primary Care , ASSURA COVENTRY LLP ,685420," 46,366.00 ",826Z213,
Department of Health,NHS England,31/07/2013,GPMS/APMS and PCTMS, Primary Care , ASSURA EAST RIDING LLP ,557449," 37,946.95 ",803Z246,
Department of Health,NHS England,31/07/2013,GPMS/APMS and PCTMS, Primary Care , ASSURA EAST RIDING LLP ,557450," 37,946.95 ",803Z247,
Department of Health,NHS England,31/07/2013,GPMS/APMS and PCTMS, Primary Care , ASSURA EAST RIDING LLP ,557451," 37,946.95 ",803Z248,
Department of Health,NHS England,31/07/2013,GPMS/APMS and PCTMS, Primary Care , ASSURA EAST RIDING LLP ,557453," 59,967.01 ",803Z240,
Department of Health,NHS England,31/07/2013,GPMS/APMS and PCTMS, Primary Care , ASSURA EAST RIDING LLP ,557454," 59,967.01 ",803Z241,
Department of Health,NHS England,31/07/2013,GPMS/APMS and PCTMS, Primary Care , ASSURA EAST RIDING LLP ,557455," 59,967.01 ",803Z242,
Department of Health,NHS England,31/07/2013,GPMS/APMS and PCTMS, Primary Care , ASSURA EAST RIDING LLP ,730777," 59,967.01 ",803Z252,
Department of Health,NHS England,31/07/2013,GPMS/APMS and PCTMS, Primary Care , ASSURA LEEDS LLP ,730455," 65,636.00 ",813Z86,
Department of Health,NHS England,31/07/2013,GPMS/APMS and PCTMS, Primary Care , ASSURA LEEDS LLP ,730461," 65,636.00 ",813Z78,
Department of Health,NHS England,31/07/2013,GPMS/APMS and PCTMS, Primary Care , ASSURA LEEDS LLP ,730498," 65,636.00 ",813Z88,
Department of Health,NHS England,31/07/2013,GPMS/APMS and PCTMS, Primary Care , ASSURA LEEDS LLP ,730776," 65,636.00 ",813Z93,
Department of Health,NHS England,31/07/2013,GPMS/APMS and PCTMS, Primary Care , ASTLEY & LEVICK ,598069,"-51,339.94 ",DR000001042,
Department of Health,NHS England,31/07/2013,GPMS/APMS and PCTMS, Primary Care , ASTLEY & LEVICK ,606806," 93,911.56 ",DR000001043,
Department of Health,NHS England,31/07/2013,GPMS/APMS and PCTMS, Primary Care , ASTON HEALTHCARE LTD ,648530,"-278,795.32 ",STL000001159,
Department of Health,NHS England,31/07/2013,GPMS/APMS and PCTMS, Primary Care , ASTON HEALTHCARE LTD ,648531," 541,097.35 ",STL000001160,
Department of Health,NHS England,31/07/2013,GPMS/APMS and PCTMS, Primary Care , AT ACE AT APMS PRACTICE ,606492," 249,779.38 ",EX000003296,
Department of Health,NHS England,31/07/2013,GPMS/APMS and PCTMS, Primary Care , AT MEDICS LTD BARLBY ROAD ,606240," 88,298.66 ",LNJ000000993,
Department of Health,NHS England,31/07/2013,GPMS/APMS and PCTMS, Primary Care , AT MEDICS LTD MERRIAM AVENUE ,599884,"-57,820.67 ",LNA000001305,
Department of Health,NHS England,31/07/2013,GPMS/APMS and PCTMS, Primary Care , AT MEDICS LTD MERRIAM AVENUE ,607165," 75,830.56 ",LNA000001306,
Department of Health,NHS England,31/07/2013,GPMS/APMS and PCTMS, Primary Care , ATHENA MEDICAL CENTRE ,705713," 51,757.10 ",LNA000001432,
Department of Health,NHS England,31/07/2013,GPMS/APMS and PCTMS, Primary Care , ATHERLEY HOUSE SURGERY ,705330," 37,083.46 ",SO000003814,
Department of Health,NHS England,31/07/2013,Purchase of healthcare from non-NHS bodies, Specialised Commissioning , ATLANTIC ENTERPRISE UK LTD ,647944,"-28,594.40 ",71 ,
Department of Health,NHS England,31/07/2013,Purchase of healthcare from non-NHS bodies, Specialised Commissioning , ATLANTIC ENTERPRISE UK LTD ,647615," 28,594.40 ",2770 ,
Department of Health,NHS England,31/07/2013,Purchase of healthcare from non-NHS bodies, Specialised Commissioning , ATLANTIC ENTERPRISE UK LTD ,647945," 59,391.00 ",2774 ,
Department of Health,NHS England,31/07/2013,Purchase of healthcare from non-NHS bodies, Specialised Commissioning , ATLANTIC ENTERPRISE UK LTD ,613305," 178,174.50 ",2773 ,
Department of Health,NHS England,31/07/2013,GPMS/APMS and PCTMS, Primary Care , ATRIUM HEALTH CENTRE ,585797," 70,746.41 ",DO000001440,
Department of Health,NHS England,31/07/2013,GPMS/APMS and PCTMS, Primary Care , ATTENBOROUGH SURGERY ,758510," 113,966.19 ",HT000002067,
Department of Health,NHS England,31/07/2013,GPMS/APMS and PCTMS, Primary Care , AUCKLAND MEDICAL GROUP ,741083," 109,952.55 ",DR000001293,
Department of Health,NHS England,31/07/2013,GPMS/APMS and PCTMS, Primary Care , AUCKLAND SURGERY ,603073," 61,327.58 ",LNR000001037,
Department of Health,NHS England,31/07/2013,GPMS/APMS and PCTMS, Primary Care , AUDLEM MEDICAL PRACTICE ,676668,"-31,889.77 ",CH000001912,
Department of Health,NHS England,31/07/2013,GPMS/APMS and PCTMS, Primary Care , AUDLEM MEDICAL PRACTICE ,539307," 26,726.71 ",CH000001555,
Department of Health,NHS England,31/07/2013,GPMS/APMS and PCTMS, Primary Care , AUDLEM MEDICAL PRACTICE ,676669," 31,889.77 ",CH000001913,
Department of Health,NHS England,31/07/2013,GPMS/APMS and PCTMS, Primary Care , AUGHTON SURGERY ,747082," 40,685.12 ",LA000002964,
Department of Health,NHS England,31/07/2013,GPMS/APMS and PCTMS, Primary Care , AVENUE MEDICAL CENTRE DENESIDE SEAHAM ,741084," 52,239.72 ",DR000001295,
Department of Health,NHS England,31/07/2013,GPMS/APMS and PCTMS, Primary Care , AVENUE MEDICAL CENTRE SHEFFIELD ,606923,"-69,474.54 ",SHE000001058,
Department of Health,NHS England,31/07/2013,GPMS/APMS and PCTMS, Primary Care , AVENUE MEDICAL CENTRE SHEFFIELD ,606924," 119,476.00 ",SHE000001059,
Department of Health,NHS England,31/07/2013,GPMS/APMS and PCTMS, Primary Care , AVENUE MEDICAL CENTRE SLOUGH ,607067," 79,499.69 ",BE000001587,
Department of Health,NHS England,31/07/2013,GPMS/APMS and PCTMS, Primary Care , AVENUE MEDICAL PRACTICE ,749746," 25,554.46 ",NEW000001042,
Department of Health,NHS England,31/07/2013,GPMS/APMS and PCTMS, Primary Care , AVENUES MEDICAL CENTRE ,758732," 44,519.26 ",KHU000001654,
Department of Health,NHS England,31/07/2013,GPMS/APMS and PCTMS, Primary Care , AVICENNA HEALTH CENTRE ,605925," 40,493.41 ",LNS000002544,
Department of Health,NHS England,31/07/2013,GPMS/APMS and PCTMS, Primary Care , AVISFORD MEDICAL GROUP ,607053," 108,599.53 ",TW000002036,
Department of Health,NHS England,31/07/2013,Services from other NHS bodies, Specialised Commissioning , AVON AND WILTSHIRE MENTAL HEALTH PARTNERSHIP NHS TRUST ,761851," 29,701.00 ",3001560 ,
Department of Health,NHS England,31/07/2013,Services from other NHS bodies, Health & Justice , AVON AND WILTSHIRE MENTAL HEALTH PARTNERSHIP NHS TRUST ,595112," 39,417.00 ",3001406 ,
Department of Health,NHS England,31/07/2013,Services from other NHS bodies, Specialised Commissioning , AVON AND WILTSHIRE MENTAL HEALTH PARTNERSHIP NHS TRUST ,537592," 47,000.00 ",3001389 ,
Department of Health,NHS England,31/07/2013,Services from other NHS bodies, Health & Justice , AVON AND WILTSHIRE MENTAL HEALTH PARTNERSHIP NHS TRUST ,797750," 49,942.00 ",3001404 ,
Department of Health,NHS England,31/07/2013,Services from other NHS bodies, Health & Justice , AVON AND WILTSHIRE MENTAL HEALTH PARTNERSHIP NHS TRUST ,537591," 54,774.31 ",3001382 ,
Department of Health,NHS England,31/07/2013,Services from other NHS bodies, Health & Justice , AVON AND WILTSHIRE MENTAL HEALTH PARTNERSHIP NHS TRUST ,486843," 109,886.00 ",3001402 ,
Department of Health,NHS England,31/07/2013,Services from other NHS bodies, Health & Justice , AVON AND WILTSHIRE MENTAL HEALTH PARTNERSHIP NHS TRUST ,537590," 157,920.00 ",3001386 ,
Department of Health,NHS England,31/07/2013,Services from other NHS bodies, Health & Justice , AVON AND WILTSHIRE MENTAL HEALTH PARTNERSHIP NHS TRUST ,537589," 159,549.00 ",3001385 ,
Department of Health,NHS England,31/07/2013,Services from other NHS bodies, Specialised Commissioning , AVON AND WILTSHIRE MENTAL HEALTH PARTNERSHIP NHS TRUST ,622667," 2,000,559.00 ",3001437 ,
Department of Health,NHS England,31/07/2013,Services from other NHS bodies, Specialised Commissioning , AVON AND WILTSHIRE MENTAL HEALTH PARTNERSHIP NHS TRUST ,709498," 2,000,559.00 ",3001541 ,
Department of Health,NHS England,31/07/2013,GPMS/APMS and PCTMS, Primary Care , AVON LOCAL MEDICAL COMMITTEE ,787469," 208,080.00 ",261 ,
Department of Health,NHS England,31/07/2013,GPMS/APMS and PCTMS, Primary Care , AVONMOUTH MEDICAL CENTRE ,605568," 26,212.29 ",BRS000001780,
Department of Health,NHS England,31/07/2013,GPMS/APMS and PCTMS, Primary Care , AVONSIDE HEALTH CENTRE ,698317," 79,584.73 ",WA000001208,
Department of Health,NHS England,31/07/2013,GPMS/APMS and PCTMS, Primary Care , AW SURGERIES ,712642,"-169,861.43 ",DUD000000487,
Department of Health,NHS England,31/07/2013,GPMS/APMS and PCTMS, Primary Care , AW SURGERIES ,721066," 320,455.56 ",DUD000000488,
Department of Health,NHS England,31/07/2013,GPMS/APMS and PCTMS, Primary Care , AWBURN HOUSE MEDICAL PRACTICE ,740969," 45,108.24 ",GMK000000962,
Department of Health,NHS England,31/07/2013,Supplies and services � general, Other , AXON RESOURCING LTD ,622663," 26,278.57 ",59741 ,
Department of Health,NHS England,31/07/2013,GPMS/APMS and PCTMS, Primary Care , AYLESBURY MEDICAL CENTRE ,605926," 196,719.35 ",LNS000002546,
Department of Health,NHS England,31/07/2013,GPMS/APMS and PCTMS, Primary Care , AYLESFORD MEDICAL CENTRE ,652859," 42,020.97 ",KC000003855,
Department of Health,NHS England,31/07/2013,GPMS/APMS and PCTMS, Primary Care , AYLESHAM PRACTICE ,662247," 38,615.31 ",KC000003857,
Department of Health,NHS England,31/07/2013,Purchase of healthcare from non-NHS bodies, Specialised Commissioning , B BRAUN AVITUM UK LTD ,806124," 39,859.62 ",328546031 ,
Department of Health,NHS England,31/07/2013,Purchase of healthcare from non-NHS bodies, Specialised Commissioning , B BRAUN AVITUM UK LTD ,806127," 45,123.17 ",328546028 ,
Department of Health,NHS England,31/07/2013,GPMS/APMS and PCTMS, Primary Care , B HUDSON ,606012," 76,290.35 ",LNP000001756,
Department of Health,NHS England,31/07/2013,GPMS/APMS and PCTMS, Primary Care , B RASHID ,751751,"-48,269.08 ",LNH000000902,
Department of Health,NHS England,31/07/2013,GPMS/APMS and PCTMS, Primary Care , B RASHID ,751752," 73,431.69 ",LNH000000903,
Department of Health,NHS England,31/07/2013,GPMS/APMS and PCTMS, Primary Care , BA PATTOO ,733546," 28,707.23 ",MAN000001079,
Department of Health,NHS England,31/07/2013,GPMS/APMS and PCTMS, Primary Care , BACKWELL&NAILSEA MEDICAL GROUP ,605570," 113,478.31 ",BRS000001782,
Department of Health,NHS England,31/07/2013,GPMS/APMS and PCTMS, Primary Care , BADGER LTD ,709034," 29,071.64 ",114265-15-JUL-2013,
Department of Health,NHS England,31/07/2013,GPMS/APMS and PCTMS, Primary Care , BADGER MEDICAL LTD ,636355," 171,891.85 ",110122-25-JUN-2013,
Department of Health,NHS England,31/07/2013,GPMS/APMS and PCTMS, Primary Care , BADGERSWOOD SURGERY ,705333," 97,264.09 ",SO000003820,
Department of Health,NHS England,31/07/2013,GPMS/APMS and PCTMS, Primary Care , BAFFINS SURGERY ,584425,"-59,685.00 ",SO000003491,
Department of Health,NHS England,31/07/2013,GPMS/APMS and PCTMS, Primary Care , BAFFINS SURGERY ,584426," 154,785.42 ",SO000003492,
Department of Health,NHS England,31/07/2013,GPMS/APMS and PCTMS, Primary Care , BAGARY & BAGARY ,596609," 43,088.68 ",WOM000000594,
Department of Health,NHS England,31/07/2013,GPMS/APMS and PCTMS, Primary Care , BAILEY M C & PARTNERS ,746732,"-55,250.09 ",EX000003690,
Department of Health,NHS England,31/07/2013,GPMS/APMS and PCTMS, Primary Care , BAILEY M C & PARTNERS ,746733," 123,616.91 ",EX000003691,
Department of Health,NHS England,31/07/2013,GPMS/APMS and PCTMS, Primary Care , BAINBRIDGE & PARTNERS ,732460,"-31,312.78 ",LIP000001870,
Department of Health,NHS England,31/07/2013,GPMS/APMS and PCTMS, Primary Care , BAINBRIDGE & PARTNERS ,597749," 29,375.72 ",LIP000001480,
Department of Health,NHS England,31/07/2013,GPMS/APMS and PCTMS, Primary Care , BAINBRIDGE & PARTNERS ,740811," 39,559.48 ",LIP000001871,
Department of Health,NHS England,31/07/2013,GPMS/APMS and PCTMS, Primary Care , BAIRD & PARTNERS ,732461,"-57,739.94 ",LIP000001872,
Department of Health,NHS England,31/07/2013,GPMS/APMS and PCTMS, Primary Care , BAIRD & PARTNERS ,597751," 54,505.18 ",LIP000001482,
Department of Health,NHS England,31/07/2013,GPMS/APMS and PCTMS, Primary Care , BAIRD & PARTNERS ,740812," 80,432.90 ",LIP000001873,
Department of Health,NHS England,31/07/2013,GPMS/APMS and PCTMS, Primary Care , BAJAJ & PARTNER ,740813," 29,404.32 ",LIP000001875,
Department of Health,NHS England,31/07/2013,GPMS/APMS and PCTMS, Primary Care , BAJEN J M & PARTNER ,606493," 87,607.95 ",EX000003298,
Department of Health,NHS England,31/07/2013,GPMS/APMS and PCTMS, Primary Care , BAKERSFIELD MEDICAL CENTRE ,597168," 48,771.60 ",NN000002083,
Department of Health,NHS England,31/07/2013,GPMS/APMS and PCTMS, Primary Care , BAKHAT A ,740870," 63,289.56 ",MAN000001081,
Department of Health,NHS England,31/07/2013,GPMS/APMS and PCTMS, Primary Care , BALAAM STREET PRACTICE ,599885,"-88,170.76 ",LNA000001307,
Department of Health,NHS England,31/07/2013,GPMS/APMS and PCTMS, Primary Care , BALAAM STREET PRACTICE ,599886," 102,916.64 ",LNA000001308,
Department of Health,NHS England,31/07/2013,GPMS/APMS and PCTMS, Primary Care , BALDWINS LANE SURGERY ,758516," 34,320.08 ",HT000002075,
Department of Health,NHS England,31/07/2013,GPMS/APMS and PCTMS, Primary Care , BALFOUR ROAD SURGERY ,706159," 45,082.54 ",LNB000000966,
Department of Health,NHS England,31/07/2013,GPMS/APMS and PCTMS, Primary Care , BALHAM PARK SURGERY ,606013," 218,302.77 ",LNP000001758,
Department of Health,NHS England,31/07/2013,GPMS/APMS and PCTMS, Primary Care , BALIGA KS ,598070," 34,800.96 ",DR000001045,
Department of Health,NHS England,31/07/2013,GPMS/APMS and PCTMS, Primary Care , BALL TREE SURGERY ,676507," 46,609.90 ",TW000002424,
Department of Health,NHS England,31/07/2013,GPMS/APMS and PCTMS, Primary Care , BALLARDS LANE SURGERY ,751753,"-42,017.54 ",LNH000000904,
Department of Health,NHS England,31/07/2013,GPMS/APMS and PCTMS, Primary Care , BALLARDS LANE SURGERY ,758262," 61,595.45 ",LNH000000905,
Department of Health,NHS England,31/07/2013,GPMS/APMS and PCTMS, Primary Care , BALLATER ,662139," 64,302.15 ",LNT000000831,
Department of Health,NHS England,31/07/2013,GPMS/APMS and PCTMS, Primary Care , BALMORAL GARDENS ,652862," 26,324.33 ",KC000003861,
Department of Health,NHS England,31/07/2013,GPMS/APMS and PCTMS, Primary Care , BALMORAL SURGERY ,653020," 70,840.19 ",KC000004060,
Department of Health,NHS England,31/07/2013,GPMS/APMS and PCTMS, Primary Care , BALMORE PARK SURGERY ,598350," 127,248.49 ",BE000001591,
Department of Health,NHS England,31/07/2013,GPMS/APMS and PCTMS, Primary Care , BAMPTON MEDICAL PRACTICE ,750066," 67,758.64 ",OX000001307,
Department of Health,NHS England,31/07/2013,GPMS/APMS and PCTMS, Primary Care , BAMPTON SURGERY ,539171," 35,169.80 ",DN000003003,
Department of Health,NHS England,31/07/2013,GPMS/APMS and PCTMS, Primary Care , BAMPTON SURGERY ,788658," 39,430.48 ",DN000003829,
Department of Health,NHS England,31/07/2013,GPMS/APMS and PCTMS, Primary Care , BANBURY ROAD MEDICAL CENTRE ,758070," 48,474.47 ",OX000001309,
Department of Health,NHS England,31/07/2013,GPMS/APMS and PCTMS, Primary Care , BANGOR STREET HEALTH CENTRE ,601122," 50,320.71 ",LA000002724,
Department of Health,NHS England,31/07/2013,GPMS/APMS and PCTMS, Primary Care , BANK HOUSE SURGERY HARTLEPOOL ,661949," 81,132.01 ",MID000001048,
Department of Health,NHS England,31/07/2013,GPMS/APMS and PCTMS, Primary Care , BANKS SURGERY ,758288," 39,349.13 ",LD000002088,
Department of Health,NHS England,31/07/2013,GPMS/APMS and PCTMS, Primary Care , BANNOCKBURN SURGERY ,607234," 51,571.13 ",LNW000000789,
Department of Health,NHS England,31/07/2013,GPMS/APMS and PCTMS, Primary Care , BANSAL & READE ,732738,"-25,302.27 ",STL000001393,
Department of Health,NHS England,31/07/2013,GPMS/APMS and PCTMS, Primary Care , BANSAL & READE ,585247," 26,452.33 ",STL000001070,
Department of Health,NHS England,31/07/2013,GPMS/APMS and PCTMS, Primary Care , BANSAL & READE ,740940," 35,170.09 ",STL000001394,
Department of Health,NHS England,31/07/2013,GPMS/APMS and PCTMS, Primary Care , BANSAL A & PARTNER ,606496," 52,201.83 ",EX000003302,
Department of Health,NHS England,31/07/2013,GPMS/APMS and PCTMS, Primary Care , BARCLAY A G & PARTNER ,746741," 44,561.28 ",EX000003699,
Department of Health,NHS England,31/07/2013,GPMS/APMS and PCTMS, Primary Care , BARING ROAD MEDICAL CENTRE ,605928," 67,838.96 ",LNS000002550,
Department of Health,NHS England,31/07/2013,GPMS/APMS and PCTMS, Primary Care , BARKANTINE PRACTICE ,599887,"-284,859.45 ",LNA000001309,
Department of Health,NHS England,31/07/2013,GPMS/APMS and PCTMS, Primary Care , BARKANTINE PRACTICE ,622962," 58,406.00 ",WIC030,
Department of Health,NHS England,31/07/2013,GPMS/APMS and PCTMS, Primary Care , BARKANTINE PRACTICE ,622960," 59,432.00 ",WIC028,
Department of Health,NHS England,31/07/2013,GPMS/APMS and PCTMS, Primary Care , BARKANTINE PRACTICE ,622961," 60,154.00 ",WIC029,
Department of Health,NHS England,31/07/2013,GPMS/APMS and PCTMS, Primary Care , BARKANTINE PRACTICE ,607166," 396,704.09 ",LNA000001310,
Department of Health,NHS England,31/07/2013,GPMS/APMS and PCTMS, Primary Care , BARKHAM J D T & PARTNER ,746742,"-48,915.62 ",EX000003700,
Department of Health,NHS England,31/07/2013,GPMS/APMS and PCTMS, Primary Care , BARKHAM J D T & PARTNER ,746743," 78,730.70 ",EX000003701,
Department of Health,NHS England,31/07/2013,Services from other NHS bodies, Public Health , BARKING HAVERING AND REDBRIDGE HOSPITALS NHS TRUST ,647906," 151,216.00 ",8399378 ,
Department of Health,NHS England,31/07/2013,Services from other NHS bodies, Specialised Commissioning , BARKING HAVERING AND REDBRIDGE HOSPITALS NHS TRUST ,647905," 4,994,753.00 ",8399377 ,
Department of Health,NHS England,31/07/2013,GPMS/APMS and PCTMS, Primary Care , BARKINGSIDE MEDICAL CENTRE ,607111," 54,024.19 ",LNB000000864,
Department of Health,NHS England,31/07/2013,GPMS/APMS and PCTMS, Primary Care , BARMSTON MEDICAL CENTRE ,607045," 64,918.38 ",SUN000000593,
Department of Health,NHS England,31/07/2013,GPMS/APMS and PCTMS, Primary Care , BARN SURGERY ,686911," 27,497.96 ",TW000002430,
Department of Health,NHS England,31/07/2013,GPMS/APMS and PCTMS, Primary Care , BARN SURGERY ,585804," 54,599.84 ",DO000001448,
Department of Health,NHS England,31/07/2013,GPMS/APMS and PCTMS, Primary Care , BARNARD CASTLE SURGERY ,598071,"-101,734.23 ",DR000001046,
Department of Health,NHS England,31/07/2013,GPMS/APMS and PCTMS, Primary Care , BARNARD CASTLE SURGERY ,598072," 189,257.03 ",DR000001047,
Department of Health,NHS England,31/07/2013,GPMS/APMS and PCTMS, Primary Care , BARNARD PRACTICE ,607235," 98,282.17 ",LNW000000791,
Department of Health,NHS England,31/07/2013,Services from other NHS bodies, Specialised Commissioning , BARNET & CHASE FARM HOSPITALS NHS TRUST ,647815," 1,463,840.00 ",I0059218,
Department of Health,NHS England,31/07/2013,Services from other NHS bodies, Specialised Commissioning , BARNET ENFIELD AND HARINGEY MENTAL HEALTH NHS TRUST ,623415," 25,352.00 ",41416340 ,
Department of Health,NHS England,31/07/2013,Services from other NHS bodies, Specialised Commissioning , BARNET ENFIELD AND HARINGEY MENTAL HEALTH NHS TRUST ,623413," 31,475.00 ",41416338 ,
Department of Health,NHS England,31/07/2013,Services from other NHS bodies, Specialised Commissioning , BARNET ENFIELD AND HARINGEY MENTAL HEALTH NHS TRUST ,623414," 207,620.00 ",41416339 ,
Department of Health,NHS England,31/07/2013,Services from other NHS bodies, Public Health , BARNET ENFIELD AND HARINGEY MENTAL HEALTH NHS TRUST ,647968," 282,917.00 ",41416342 ,
Department of Health,NHS England,31/07/2013,Services from other NHS bodies, Specialised Commissioning , BARNET ENFIELD AND HARINGEY MENTAL HEALTH NHS TRUST ,623411," 291,002.00 ",41416336 ,
Department of Health,NHS England,31/07/2013,Services from other NHS bodies, Specialised Commissioning , BARNET ENFIELD AND HARINGEY MENTAL HEALTH NHS TRUST ,623412," 292,025.00 ",41416337 ,
Department of Health,NHS England,31/07/2013,Services from other NHS bodies, Specialised Commissioning , BARNET ENFIELD AND HARINGEY MENTAL HEALTH NHS TRUST ,623410," 3,306,465.00 ",41416335 ,
Department of Health,NHS England,31/07/2013,GPMS/APMS and PCTMS, Primary Care , BARNETT & PARTNERS ,732465,"-37,001.36 ",LIP000001880,
Department of Health,NHS England,31/07/2013,GPMS/APMS and PCTMS, Primary Care , BARNETT & PARTNERS ,597759," 33,157.34 ",LIP000001490,
Department of Health,NHS England,31/07/2013,GPMS/APMS and PCTMS, Primary Care , BARNETT & PARTNERS ,740816," 40,126.64 ",LIP000001881,
Department of Health,NHS England,31/07/2013,GPMS/APMS and PCTMS, Primary Care , BARNFIELD HILL SURGERY ,539172," 63,236.20 ",DN000003005,
Department of Health,NHS England,31/07/2013,GPMS/APMS and PCTMS, Primary Care , BARNFIELD HILL SURGERY ,788660," 69,772.39 ",DN000003831,
Department of Health,NHS England,31/07/2013,GPMS/APMS and PCTMS, Primary Care , BARNOLDSWICK MEDICAL CENTRE ,747102,"-82,411.88 ",LA000002974,
Department of Health,NHS England,31/07/2013,GPMS/APMS and PCTMS, Primary Care , BARNOLDSWICK MEDICAL CENTRE ,757801," 149,712.43 ",LA000002975,
Department of Health,NHS England,31/07/2013,Services from other NHS bodies, Public Health , BARNSLEY HOSPITAL NHS FOUNDATION TRUST ,635992," 88,867.00 ",6021864 ,
Department of Health,NHS England,31/07/2013,Services from other NHS bodies, Secondary and Community Dental Care , BARNSLEY HOSPITAL NHS FOUNDATION TRUST ,798699," 149,764.00 ",6022415 ,
Department of Health,NHS England,31/07/2013,Services from other NHS bodies, Secondary and Community Dental Care , BARNSLEY HOSPITAL NHS FOUNDATION TRUST ,613184," 149,765.00 ",6021863 ,
Department of Health,NHS England,31/07/2013,Services from other NHS bodies, Specialised Commissioning , BARNSLEY HOSPITAL NHS FOUNDATION TRUST ,647671," 545,905.00 ",6021862 ,
Department of Health,NHS England,31/07/2013,GPMS/APMS and PCTMS, Primary Care , BARNSLEY ROAD SURGERY ,599071," 25,861.86 ",SHE000001063,
Department of Health,NHS England,31/07/2013,GPMS/APMS and PCTMS, Primary Care , BARNT GREEN SURGERY ,602793," 54,277.10 ",WR000001245,
Department of Health,NHS England,31/07/2013,GPMS/APMS and PCTMS, Primary Care , BARR LANE SURGERY ,698323," 44,239.35 ",WA000001216,
Department of Health,NHS England,31/07/2013,GPMS/APMS and PCTMS, Primary Care , BARRACK LANE MEDICAL CENTRE ,587130,"-155,952.97 ",SU000001507,
Department of Health,NHS England,31/07/2013,GPMS/APMS and PCTMS, Primary Care , BARRACK LANE MEDICAL CENTRE ,587131," 276,427.52 ",SU000001508,
Department of Health,NHS England,31/07/2013,GPMS/APMS and PCTMS, Primary Care , BARRETT CHATTERJEE DAY & PARTNERS ,597464,"-27,793.72 ",DE000001971,
Department of Health,NHS England,31/07/2013,GPMS/APMS and PCTMS, Primary Care , BARRETT CHATTERJEE DAY & PARTNERS ,606858," 139,193.99 ",DE000001972,
Department of Health,NHS England,31/07/2013,GPMS/APMS and PCTMS, Primary Care , BARROWFORD SURGERY ,601124,"-27,630.77 ",LA000002727,
Department of Health,NHS England,31/07/2013,GPMS/APMS and PCTMS, Primary Care , BARROWFORD SURGERY ,601125," 49,487.74 ",LA000002728,
Department of Health,NHS England,31/07/2013,GPMS/APMS and PCTMS, Primary Care , BARTLEMAS SURGERY ,750069," 62,372.90 ",OX000001311,
Department of Health,NHS England,31/07/2013,GPMS/APMS and PCTMS, Primary Care , BARTON HOUSE GROUP PRACTICE ,697710,"-30,579.73 ",LNA000001441,
Department of Health,NHS England,31/07/2013,GPMS/APMS and PCTMS, Primary Care , BARTON HOUSE GROUP PRACTICE ,705717," 124,352.16 ",LNA000001442,
Department of Health,NHS England,31/07/2013,GPMS/APMS and PCTMS, Primary Care , BARTON HOUSE SURGERY ,713021," 45,034.73 ",DO000001644,
Department of Health,NHS England,31/07/2013,GPMS/APMS and PCTMS, Primary Care , BARTON SURGERY (DAWLISH) ,539173," 118,248.66 ",DN000003007,
Department of Health,NHS England,31/07/2013,GPMS/APMS and PCTMS, Primary Care , BARTON SURGERY (DAWLISH) ,788662," 132,695.82 ",DN000003833,
Department of Health,NHS England,31/07/2013,GPMS/APMS and PCTMS, Primary Care , BARTON SURGERY (TORQUAY) ,539174," 82,518.96 ",DN000003009,
Department of Health,NHS England,31/07/2013,GPMS/APMS and PCTMS, Primary Care , BARTON SURGERY (TORQUAY) ,788664," 89,751.48 ",DN000003835,
Department of Health,NHS England,31/07/2013,GPMS/APMS and PCTMS, Primary Care , BARTON SURGERY PLYMSTOCK RIVERSIDE LCG ,720871," 29,605.42 ",DN000003373,
Department of Health,NHS England,31/07/2013,GPMS/APMS and PCTMS, Primary Care , BARTON WEBB PEPLOE PARTNERSHIP ,705361," 96,327.45 ",SO000003828,
Department of Health,NHS England,31/07/2013,Services from other NHS bodies, Specialised Commissioning , BARTS HEALTH NHS TRUST ,647724," 26,878,497.00 ",167403 ,
Department of Health,NHS England,31/07/2013,GPMS/APMS and PCTMS, Primary Care , BARUCH & PARTNERS ,615587," 25,389.00 ",LNN000000902,
Department of Health,NHS England,31/07/2013,GPMS/APMS and PCTMS, Primary Care , BARUCH & PARTNERS ,713754," 40,065.50 ",LNN000001003,
Department of Health,NHS England,31/07/2013,Services from other NHS bodies, Secondary and Community Dental Care , BASILDON & THURROCK UNIVERSITY HOSPITALS NHS FOUNDATION TRUST ,623026," 127,469.00 ",58211 ,
Department of Health,NHS England,31/07/2013,Services from other NHS bodies, Specialised Commissioning , BASILDON & THURROCK UNIVERSITY HOSPITALS NHS FOUNDATION TRUST ,708780," 139,534.00 ",58395 ,
Department of Health,NHS England,31/07/2013,Services from other NHS bodies, Public Health , BASILDON & THURROCK UNIVERSITY HOSPITALS NHS FOUNDATION TRUST ,623026," 143,809.00 ",58211 ,
Department of Health,NHS England,31/07/2013,Services from other NHS bodies, Secondary and Community Dental Care , BASILDON & THURROCK UNIVERSITY HOSPITALS NHS FOUNDATION TRUST ,760911," 255,209.00 ",58400 ,
Department of Health,NHS England,31/07/2013,Services from other NHS bodies, Public Health , BASILDON & THURROCK UNIVERSITY HOSPITALS NHS FOUNDATION TRUST ,760911," 287,347.00 ",58400 ,
Department of Health,NHS England,31/07/2013,Services from other NHS bodies, Specialised Commissioning , BASILDON & THURROCK UNIVERSITY HOSPITALS NHS FOUNDATION TRUST ,623090," 3,996,434.00 ",58215 ,
Department of Health,NHS England,31/07/2013,GPMS/APMS and PCTMS, Primary Care , BASLOW ROAD & SHOREHAM STREET SURGERIES ,758829," 69,036.07 ",SHE000001244,
Department of Health,NHS England,31/07/2013,GPMS/APMS and PCTMS, Primary Care , BASSETT ROAD MEDICAL PRACTICE ,749733," 107,552.25 ",BD000001336,
Department of Health,NHS England,31/07/2013,GPMS/APMS and PCTMS, Primary Care , BATES & PARTNERS RICHMOND ,720815," 61,215.13 ",LNN000001005,
Department of Health,NHS England,31/07/2013,GPMS/APMS and PCTMS, Primary Care , BATES & PARTNERS WIRRAL ,676611,"-40,091.28 ",BIK000000881,
Department of Health,NHS England,31/07/2013,GPMS/APMS and PCTMS, Primary Care , BATES & PARTNERS WIRRAL ,564953," 31,981.00 ",BIK000000764,
Department of Health,NHS England,31/07/2013,GPMS/APMS and PCTMS, Primary Care , BATES & PARTNERS WIRRAL ,686813," 52,578.09 ",BIK000000882,
Department of Health,NHS England,31/07/2013,GPMS/APMS and PCTMS, Primary Care , BATESON & PARTNERS ,732466,"-43,772.16 ",LIP000001882,
Department of Health,NHS England,31/07/2013,GPMS/APMS and PCTMS, Primary Care , BATESON & PARTNERS ,597761," 43,030.25 ",LIP000001492,
Department of Health,NHS England,31/07/2013,GPMS/APMS and PCTMS, Primary Care , BATESON & PARTNERS ,740817," 59,951.10 ",LIP000001883,
Department of Health,NHS England,31/07/2013,GPMS/APMS and PCTMS, Primary Care , BATH LODGE PRACTICE ,705337," 94,044.86 ",SO000003830,
Department of Health,NHS England,31/07/2013,GPMS/APMS and PCTMS, Primary Care , BATH ROAD SURGERY SLOUGH ,705889," 48,873.35 ",BE000001753,
Department of Health,NHS England,31/07/2013,GPMS/APMS and PCTMS, Primary Care , BATH STREET SURGERY ,721067," 45,374.59 ",DUD000000490,
Department of Health,NHS England,31/07/2013,GPMS/APMS and PCTMS, Primary Care , BATHEASTON MEDICAL CENTRE ,602478,"-38,713.90 ",BRS000001788,
Department of Health,NHS England,31/07/2013,GPMS/APMS and PCTMS, Primary Care , BATHEASTON MEDICAL CENTRE ,613370," 43,586.09 ",PP009,
Department of Health,NHS England,31/07/2013,GPMS/APMS and PCTMS, Primary Care , BATHEASTON MEDICAL CENTRE ,605575," 50,064.76 ",BRS000001789,
Department of Health,NHS England,31/07/2013,Purchase of healthcare from non-NHS bodies, Specialised Commissioning , BATTERSEA BRIDGE HOUSE LTD ,636186," 683,022.94 ",HONHSLS007,
Department of Health,NHS England,31/07/2013,GPMS/APMS and PCTMS, Primary Care , BATTLEHILL HEALTH CENTRE ,601233," 113,977.81 ",NEW000000894,
Department of Health,NHS England,31/07/2013,General Opthalmic services, Primary Care , BATTY & DEXTER ,697059," 26,542.55 ",3923183_S,
Department of Health,NHS England,31/07/2013,GPMS/APMS and PCTMS, Primary Care , BAYLIS T M & PARTNERS ,746725,"-36,659.12 ",EX000003682,
Department of Health,NHS England,31/07/2013,GPMS/APMS and PCTMS, Primary Care , BAYLIS T M & PARTNERS ,746726," 73,363.51 ",EX000003683,
Department of Health,NHS England,31/07/2013,GPMS/APMS and PCTMS, Primary Care , BAYSWATER MEDICAL CENTRE ,602995,"-85,049.38 ",LNJ000000990,
Department of Health,NHS England,31/07/2013,GPMS/APMS and PCTMS, Primary Care , BAYSWATER MEDICAL CENTRE ,606239," 188,190.55 ",LNJ000000991,
Department of Health,NHS England,31/07/2013,GPMS/APMS and PCTMS, Primary Care , BEACON MEDICAL ,598647,"-27,534.57 ",KHU000001364,
Department of Health,NHS England,31/07/2013,GPMS/APMS and PCTMS, Primary Care , BEACON MEDICAL ,598649," 125,962.86 ",KHU000001365,
Department of Health,NHS England,31/07/2013,GPMS/APMS and PCTMS, Primary Care , BEACON SURGERY ,652471,"-28,816.75 ",TE000001607,
Department of Health,NHS England,31/07/2013,GPMS/APMS and PCTMS, Primary Care , BEACON SURGERY ,662032," 97,016.47 ",TE000001608,
Department of Health,NHS England,31/07/2013,GPMS/APMS and PCTMS, Primary Care , BEARSTED MEDICAL PRACTICE ,652853," 72,562.27 ",KC000003849,
Department of Health,NHS England,31/07/2013,GPMS/APMS and PCTMS, Primary Care , BEARWOOD MEDICAL CENTRE ,585793," 65,082.46 ",DO000001436,
Department of Health,NHS England,31/07/2013,GPMS/APMS and PCTMS, Primary Care , BEAUFORT ROAD SURGERY ,713015," 93,197.31 ",DO000001638,
Department of Health,NHS England,31/07/2013,GPMS/APMS and PCTMS, Primary Care , BEAUMONT LEYS HEALTH CENTRE ,564327," 75,977.14 ",LD000001737,
Department of Health,NHS England,31/07/2013,GPMS/APMS and PCTMS, Primary Care , BEAUMONT PRACTICE ,758097,"-26,838.99 ",LND000001285,
Department of Health,NHS England,31/07/2013,GPMS/APMS and PCTMS, Primary Care , BEAUMONT PRACTICE ,751794," 47,731.68 ",LND000001286,
Department of Health,NHS England,31/07/2013,GPMS/APMS and PCTMS, Primary Care , BEAUMONT STREET SURGERY ,750062," 35,997.55 ",OX000001301,
Department of Health,NHS England,31/07/2013,GPMS/APMS and PCTMS, Primary Care , BEAUMONT VILLA SURGERY ,539169,"-29,621.91 ",DN000002998,
Department of Health,NHS England,31/07/2013,GPMS/APMS and PCTMS, Primary Care , BEAUMONT VILLA SURGERY ,548860," 100,081.52 ",DN000002999,
Department of Health,NHS England,31/07/2013,GPMS/APMS and PCTMS, Primary Care , BEAUMONT VILLA SURGERY ,788654," 104,269.04 ",DN000003825,
Department of Health,NHS England,31/07/2013,GPMS/APMS and PCTMS, Primary Care , BECCLES MEDICAL CENTRE ,585900,"-33,284.85 ",NF000001600,
Department of Health,NHS England,31/07/2013,GPMS/APMS and PCTMS, Primary Care , BECCLES MEDICAL CENTRE ,585901," 162,710.31 ",NF000001601,
Department of Health,NHS England,31/07/2013,GPMS/APMS and PCTMS, Primary Care , BECKETT HOUSE PRACTICE ,605919," 57,509.84 ",LNS000002532,
Department of Health,NHS England,31/07/2013,GPMS/APMS and PCTMS, Primary Care , BECKINGTON FAMILY PRACTICE ,748941," 106,329.48 ",SM000001041,
Department of Health,NHS England,31/07/2013,Services from other NHS bodies, Specialised Commissioning , BEDFORD HOSPITAL NHS TRUST ,547882," 39,725.76 ",I0127751,
Department of Health,NHS England,31/07/2013,Services from other NHS bodies, Specialised Commissioning , BEDFORD HOSPITAL NHS TRUST ,635863," 45,187.00 ",I0127907,
Department of Health,NHS England,31/07/2013,Services from other NHS bodies, Specialised Commissioning , BEDFORD HOSPITAL NHS TRUST ,635808," 52,817.85 ",I0127752,
Department of Health,NHS England,31/07/2013,Services from other NHS bodies, Public Health , BEDFORD HOSPITAL NHS TRUST ,622677," 194,723.95 ",I0127904,
Department of Health,NHS England,31/07/2013,Services from other NHS bodies, Public Health , BEDFORD HOSPITAL NHS TRUST ,622678," 194,723.95 ",I0127905,
Department of Health,NHS England,31/07/2013,Services from other NHS bodies, Public Health , BEDFORD HOSPITAL NHS TRUST ,622679," 194,723.95 ",I0127906,
Department of Health,NHS England,31/07/2013,Services from other NHS bodies, Secondary and Community Dental Care , BEDFORD HOSPITAL NHS TRUST ,622677," 198,422.05 ",I0127904,
Department of Health,NHS England,31/07/2013,Services from other NHS bodies, Secondary and Community Dental Care , BEDFORD HOSPITAL NHS TRUST ,622678," 198,422.05 ",I0127905,
Department of Health,NHS England,31/07/2013,Services from other NHS bodies, Secondary and Community Dental Care , BEDFORD HOSPITAL NHS TRUST ,622679," 198,422.05 ",I0127906,
Department of Health,NHS England,31/07/2013,Services from other NHS bodies, Specialised Commissioning , BEDFORD HOSPITAL NHS TRUST ,622674," 765,062.00 ",I0127882,
Department of Health,NHS England,31/07/2013,Services from other NHS bodies, Specialised Commissioning , BEDFORD HOSPITAL NHS TRUST ,798005," 765,062.00 ",I0128515,
Department of Health,NHS England,31/07/2013,GPMS/APMS and PCTMS, Primary Care , BEDFORD HOUSE MEDICAL CENTRE ,740967," 45,941.37 ",GMK000000960,
Department of Health,NHS England,31/07/2013,GPMS/APMS and PCTMS, Primary Care , BEDFORD SQUARE MEDICAL CENTRE ,758098,"-53,205.06 ",LND000001287,
Department of Health,NHS England,31/07/2013,GPMS/APMS and PCTMS, Primary Care , BEDFORD SQUARE MEDICAL CENTRE ,751798," 81,813.60 ",LND000001288,
Department of Health,NHS England,31/07/2013,GPMS/APMS and PCTMS, Primary Care , BEDFORD STREET SURGERY ,599800," 94,425.96 ",BU000000974,
Department of Health,NHS England,31/07/2013,GPMS/APMS and PCTMS, Primary Care , BEDFORDSHIRE AND HERTFORDSHIRE LMC LTD (STAT LEVY) ,743975," 57,621.50 ",116992-24-JUL-2013,
Department of Health,NHS England,31/07/2013,GPMS/APMS and PCTMS, Primary Care , BEDLINGTONSHIRE MEDICAL GROUP ,605878," 102,415.29 ",NR000000718,
Department of Health,NHS England,31/07/2013,GPMS/APMS and PCTMS, Primary Care , BEDMINSTER FAMILY PRACTICE ,605564," 116,309.01 ",BRS000001776,
Department of Health,NHS England,31/07/2013,GPMS/APMS and PCTMS, Primary Care , BEDSIDE MANOR ,607255," 51,469.98 ",LNW000000779,
Department of Health,NHS England,31/07/2013,GPMS/APMS and PCTMS, Primary Care , BEDWELL MEDICAL CENTRE ,758508," 107,431.87 ",HT000002065,
Department of Health,NHS England,31/07/2013,GPMS/APMS and PCTMS, Primary Care , BEEBY ,740939," 33,825.26 ",STL000001390,
Department of Health,NHS England,31/07/2013,GPMS/APMS and PCTMS, Primary Care , BEECH DRIVE SURGERY ,747057," 25,219.53 ",LA000002956,
Department of Health,NHS England,31/07/2013,GPMS/APMS and PCTMS, Primary Care , BEECH GROVE MEDICAL PRACTICE ,712225," 27,603.01 ",YN000001818,
Department of Health,NHS England,31/07/2013,GPMS/APMS and PCTMS, Primary Care , BEECH GROVE SURGERY ,705326," 40,824.34 ",SO000003806,
Department of Health,NHS England,31/07/2013,GPMS/APMS and PCTMS, Primary Care , BEECH HILL MEDICAL CENTRE ,600647,"-115,063.74 ",WIG000001421,
Department of Health,NHS England,31/07/2013,GPMS/APMS and PCTMS, Primary Care , BEECH HILL MEDICAL CENTRE ,607189," 207,463.10 ",WIG000001422,
Department of Health,NHS England,31/07/2013,GPMS/APMS and PCTMS, Primary Care , BEECH HOUSE MEDICAL PRACTICE ,586413," 71,506.82 ",SPT000000557,
Department of Health,NHS England,31/07/2013,GPMS/APMS and PCTMS, Primary Care , BEECH HOUSE SURGERY ,712227," 67,346.65 ",YN000001820,
Department of Health,NHS England,31/07/2013,GPMS/APMS and PCTMS, Primary Care , BEECH TREE SURGERY ,712229," 126,920.60 ",YN000001822,
Department of Health,NHS England,31/07/2013,GPMS/APMS and PCTMS, Primary Care , BEECHCROFT SURGERY ,585903," 45,969.03 ",NF000001603,
Department of Health,NHS England,31/07/2013,GPMS/APMS and PCTMS, Primary Care , BEECHDALE SURGERY ,597165," 42,041.36 ",NN000002079,
Department of Health,NHS England,31/07/2013,GPMS/APMS and PCTMS, Primary Care , BEECHES MEDICAL PRACTICE ,698817," 49,253.86 ",SA000001491,
Department of Health,NHS England,31/07/2013,GPMS/APMS and PCTMS, Primary Care , BEECHWOOD GROUP PRACTICE ,662044," 50,796.35 ",CU000001276,
Department of Health,NHS England,31/07/2013,GPMS/APMS and PCTMS, Primary Care , BEECHWOOD MEDICAL CENTRE ,697703," 27,063.15 ",LNA000001428,
Department of Health,NHS England,31/07/2013,GPMS/APMS and PCTMS, Primary Care , BEECHWOOD MEDICAL PRACTICE ,758580," 82,007.12 ",BRS000002164,
Department of Health,NHS England,31/07/2013,GPMS/APMS and PCTMS, Primary Care , BEGGARWOOD SURGERY (THE) ,584423,"-60,209.21 ",SO000003489,
Department of Health,NHS England,31/07/2013,GPMS/APMS and PCTMS, Primary Care , BEGGARWOOD SURGERY (THE) ,584424," 124,065.35 ",SO000003490,
Department of Health,NHS England,31/07/2013,GPMS/APMS and PCTMS, Primary Care , BEHESHTI & PARTNERS ,706436," 52,119.49 ",LNC000001093,
Department of Health,NHS England,31/07/2013,GPMS/APMS and PCTMS, Primary Care , BELFORD MEDICAL PRACTICE ,605880," 51,410.19 ",NR000000722,
Department of Health,NHS England,31/07/2013,GPMS/APMS and PCTMS, Primary Care , BELGRAVE SURGERY ,712231," 43,134.35 ",YN000001824,
Department of Health,NHS England,31/07/2013,GPMS/APMS and PCTMS, Primary Care , BELGRAVIA SURGERY ,673986," 59,086.38 ",LNJ000001162,
Department of Health,NHS England,31/07/2013,GPMS/APMS and PCTMS, Primary Care , BELL HOUSE MEDICAL PRACTICE ,758943," 178,267.06 ",BD000001334,
Department of Health,NHS England,31/07/2013,GPMS/APMS and PCTMS, Primary Care , BELL SURGERY ,750064," 66,488.68 ",OX000001303,
Department of Health,NHS England,31/07/2013,GPMS/APMS and PCTMS, Primary Care , BELLEGROVE ROAD SURGERY ,607232," 80,936.98 ",LNW000000783,
Department of Health,NHS England,31/07/2013,GPMS/APMS and PCTMS, Primary Care , BELLINGHAM GREEN SURGERY ,605920," 67,929.45 ",LNS000002534,
Department of Health,NHS England,31/07/2013,GPMS/APMS and PCTMS, Primary Care , BELLINGHAM J M & PARTNERS ,597860," 77,826.48 ",EX000003292,
Department of Health,NHS England,31/07/2013,GPMS/APMS and PCTMS, Primary Care , BELLINGHAM MEDICAL GROUP ,605881," 38,346.87 ",NR000000724,
Department of Health,NHS England,31/07/2013,GPMS/APMS and PCTMS, Primary Care , BELMONT & SHERBURN MEDICAL GROUP ,741081," 66,532.35 ",DR000001290,
Department of Health,NHS England,31/07/2013,GPMS/APMS and PCTMS, Primary Care , BELMONT HILL SURGERY ,605921," 58,884.60 ",LNS000002536,
Department of Health,NHS England,31/07/2013,GPMS/APMS and PCTMS, Primary Care , BELMONT MEDICAL CENTRE ,706167," 72,705.70 ",LNK000000487,
Department of Health,NHS England,31/07/2013,GPMS/APMS and PCTMS, Primary Care , BELSIZE PRIORY MEDICAL PRACTICE ,758099,"-70,137.96 ",LND000001289,
Department of Health,NHS England,31/07/2013,GPMS/APMS and PCTMS, Primary Care , BELSIZE PRIORY MEDICAL PRACTICE ,758100," 102,203.64 ",LND000001290,
Department of Health,NHS England,31/07/2013,GPMS/APMS and PCTMS, Primary Care , BELVEDERE MEDICAL CENTRE ,600195,"-38,637.47 ",LNW000000784,
Department of Health,NHS England,31/07/2013,GPMS/APMS and PCTMS, Primary Care , BELVEDERE MEDICAL CENTRE ,607233," 112,738.35 ",LNW000000785,
Department of Health,NHS England,31/07/2013,GPMS/APMS and PCTMS, Primary Care , BELVIDERE MEDICAL PRACTICE ,698819," 38,961.00 ",SA000001493,
Department of Health,NHS England,31/07/2013,GPMS/APMS and PCTMS, Primary Care , BENFIELD PARK MEDICAL GROUP ,749744," 71,760.13 ",NEW000001040,
Department of Health,NHS England,31/07/2013,GPMS/APMS and PCTMS, Primary Care , BENNETTS END SURGERY ,605689," 147,866.08 ",HT000001825,
Department of Health,NHS England,31/07/2013,GPMS/APMS and PCTMS, Primary Care , BENNFIELD SURGERY ,698316," 66,604.06 ",WA000001206,
Department of Health,NHS England,31/07/2013,GPMS/APMS and PCTMS, Primary Care , BENTHAM MEDICAL PRACTICE ,712233," 64,017.45 ",YN000001826,
Department of Health,NHS England,31/07/2013,GPMS/APMS and PCTMS, Primary Care , BENTHAM ROAD HEALTH CENTRE ,601113," 79,189.00 ",LA000002714,
Department of Health,NHS England,31/07/2013,GPMS/APMS and PCTMS, Primary Care , BENTLEY MEDICAL PRACTICE ,652132,"-47,989.53 ",MID000001041,
Department of Health,NHS England,31/07/2013,GPMS/APMS and PCTMS, Primary Care , BENTLEY MEDICAL PRACTICE ,661948," 101,763.82 ",MID000001042,
Department of Health,NHS England,31/07/2013,GPMS/APMS and PCTMS, Primary Care , BENTLEY VILLAGE SURGERY ,705329," 28,978.72 ",SO000003812,
Department of Health,NHS England,31/07/2013,GPMS/APMS and PCTMS, Primary Care , BENTS GREEN SURGERY ,606922," 33,999.76 ",SHE000001057,
Department of Health,NHS England,31/07/2013,GPMS/APMS and PCTMS, Primary Care , BERE REGIS PRACTICE ,713017," 29,315.09 ",DO000001640,
Department of Health,NHS England,31/07/2013,Services from other NHS bodies, Health & Justice , BERKSHIRE HEALTHCARE NHS FOUNDATION TRUST ,622999," 113,652.00 ",762898 ,
Department of Health,NHS England,31/07/2013,Premises, Other , BERKSHIRE HEALTHCARE NHS FOUNDATION TRUST ,673039," 138,000.00 ",762860 ,
Department of Health,NHS England,31/07/2013,Premises, Other , BERKSHIRE HEALTHCARE NHS FOUNDATION TRUST ,672993," 149,834.00 ",762859 ,
Department of Health,NHS England,31/07/2013,Services from other NHS bodies, Health & Justice , BERKSHIRE HEALTHCARE NHS FOUNDATION TRUST ,743102," 349,773.00 ",761300 ,
Department of Health,NHS England,31/07/2013,Services from other NHS bodies, Public Health , BERKSHIRE HEALTHCARE NHS FOUNDATION TRUST ,622999," 925,697.00 ",762898 ,
Department of Health,NHS England,31/07/2013,GPMS/APMS and PCTMS, Primary Care , BERMONDSEY & LANSDOWNE MEDICAL MISSION ,605922," 135,569.66 ",LNS000002538,
Department of Health,NHS England,31/07/2013,GPMS/APMS and PCTMS, Primary Care , BERMONDSEY SPA MEDICAL CENTRE ,605923," 74,318.13 ",LNS000002540,
Department of Health,NHS England,31/07/2013,GPMS/APMS and PCTMS, Primary Care , BERRY & PARTNERS ,757959," 103,140.23 ",DCR000000726,
Department of Health,NHS England,31/07/2013,GPMS/APMS and PCTMS, Primary Care , BERRY LANE MEDICAL CENTRE ,601114,"-78,069.15 ",LA000002715,
Department of Health,NHS England,31/07/2013,GPMS/APMS and PCTMS, Primary Care , BERRY LANE MEDICAL CENTRE ,601115," 143,180.19 ",LA000002716,
Department of Health,NHS England,31/07/2013,GPMS/APMS and PCTMS, Primary Care , BERRYFIELDS MEDICAL CENTRE ,605680," 37,922.25 ",BU000000976,
Department of Health,NHS England,31/07/2013,GPMS/APMS and PCTMS, Primary Care , BERRYLANDS SURGERY ,713751," 26,390.92 ",LNN000000999,
Department of Health,NHS England,31/07/2013,GPMS/APMS and PCTMS, Primary Care , BERSTED GREEN SURGERY ,686907," 74,053.85 ",TW000002422,
Department of Health,NHS England,31/07/2013,GPMS/APMS and PCTMS, Primary Care , BERSTED GREEN SURGERY ,549751," 79,450.65 ",TW000001939,
Department of Health,NHS England,31/07/2013,GPMS/APMS and PCTMS, Primary Care , BEST M & PARTNER ,606491," 61,508.37 ",EX000003294,
Department of Health,NHS England,31/07/2013,GPMS/APMS and PCTMS, Primary Care , BETHNAL GREEN HEALTH CENTRE ,705711," 86,016.74 ",LNA000001430,
Department of Health,NHS England,31/07/2013,Services from other NHS bodies, Specialised Commissioning , BETSI CADWALADR UNIVERSITY LHB ,695213," 183,126.25 ",338829 ,
Department of Health,NHS England,31/07/2013,GPMS/APMS and PCTMS, Primary Care , BEVAN ,732741," 33,774.43 ",STL000001398,
Department of Health,NHS England,31/07/2013,GPMS/APMS and PCTMS, Primary Care , BEVAN HEALTHCARE CIC ,598131," 126,215.25 ",BRA000000686,
Department of Health,NHS England,31/07/2013,GPMS/APMS and PCTMS, Primary Care , BEVERSBROOK MEDICAL CENTRE ,625429," 43,032.79 ",WL000001456,
Department of Health,NHS England,31/07/2013,GPMS/APMS and PCTMS, Primary Care , BEWBUSH MEDICAL CENTRE ,686912," 43,672.13 ",TW000002432,
Department of Health,NHS England,31/07/2013,GPMS/APMS and PCTMS, Primary Care , BEWDLEY MEDICAL CENTRE ,602794,"-29,985.76 ",WR000001246,
Department of Health,NHS England,31/07/2013,GPMS/APMS and PCTMS, Primary Care , BEWDLEY MEDICAL CENTRE ,602795," 134,991.67 ",WR000001247,
Department of Health,NHS England,31/07/2013,GPMS/APMS and PCTMS, Primary Care , BEXLEY GROUP PRACTICE ,600208,"-68,746.25 ",LNW000000794,
Department of Health,NHS England,31/07/2013,GPMS/APMS and PCTMS, Primary Care , BEXLEY GROUP PRACTICE ,607237," 147,220.66 ",LNW000000795,
Department of Health,NHS England,31/07/2013,GPMS/APMS and PCTMS, Primary Care , BEXLEY MEDICAL GROUP ,600210,"-95,288.81 ",LNW000000796,
Department of Health,NHS England,31/07/2013,GPMS/APMS and PCTMS, Primary Care , BEXLEY MEDICAL GROUP ,607238," 219,843.12 ",LNW000000797,
Department of Health,NHS England,31/07/2013,GPMS/APMS and PCTMS, Primary Care , BHARANI MEDICAL CENTRE ,598353,"-29,232.21 ",BE000001596,
Department of Health,NHS England,31/07/2013,GPMS/APMS and PCTMS, Primary Care , BHARANI MEDICAL CENTRE ,607071," 144,363.65 ",BE000001597,
Department of Health,NHS England,31/07/2013,GPMS/APMS and PCTMS, Primary Care , BHATTACHARJEE S & PARTNER ,597874," 25,421.92 ",EX000003312,
Department of Health,NHS England,31/07/2013,GPMS/APMS and PCTMS, Primary Care , BHATTACHARJEE S & PARTNER ,740754," 186,385.61 ",EX000003659,
Department of Health,NHS England,31/07/2013,GPMS/APMS and PCTMS, Primary Care , BHISHMA ,733551," 32,023.95 ",MAN000001088,
Department of Health,NHS England,31/07/2013,GPMS/APMS and PCTMS, Primary Care , BIDEFORD MEDICAL CENTRE BIDEFORD ,548867,"-55,123.61 ",DN000003012,
Department of Health,NHS England,31/07/2013,GPMS/APMS and PCTMS, Primary Care , BIDEFORD MEDICAL CENTRE BIDEFORD ,539176," 125,879.19 ",DN000003013,
Department of Health,NHS England,31/07/2013,GPMS/APMS and PCTMS, Primary Care , BIDEFORD MEDICAL CENTRE BIDEFORD ,788668," 140,878.07 ",DN000003839,
Department of Health,NHS England,31/07/2013,GPMS/APMS and PCTMS, Primary Care , BIDFORD ON AVON HEALTH CENTRE ,600017," 106,449.64 ",WA000001140,
Department of Health,NHS England,31/07/2013,GPMS/APMS and PCTMS, Primary Care , BIDWELL & DAVIDSON ,598073,"-36,378.25 ",DR000001048,
Department of Health,NHS England,31/07/2013,GPMS/APMS and PCTMS, Primary Care , BIDWELL & DAVIDSON ,606808," 69,824.23 ",DR000001049,
Department of Health,NHS England,31/07/2013,GPMS/APMS and PCTMS, Primary Care , BIGGIN HILL SURGERY ,653412," 94,850.96 ",LNT000000837,
Department of Health,NHS England,31/07/2013,GPMS/APMS and PCTMS, Primary Care , BILAS & THOMAS ,665225," 27,695.37 ",WOM000000688,
Department of Health,NHS England,31/07/2013,GPMS/APMS and PCTMS, Primary Care , BILLINGSHURST SURGERY ,686913," 81,033.42 ",TW000002434,
Department of Health,NHS England,31/07/2013,GPMS/APMS and PCTMS, Primary Care , BILSTON STREET SURGERY ,712645," 46,756.58 ",DUD000000492,
Department of Health,NHS England,31/07/2013,GPMS/APMS and PCTMS, Primary Care , BILSTON URBAN VILLAGE MEDICAL CENTRE ,585776," 70,766.38 ",WOM000000596,
Department of Health,NHS England,31/07/2013,GPMS/APMS and PCTMS, Primary Care , BINCOTE ROAD SURGERY ,602917," 48,038.19 ",LNE000001214,
Department of Health,NHS England,31/07/2013,GPMS/APMS and PCTMS, Primary Care , BINFIELD ROAD SURGERY ,638151," 68,152.37 ",LNS000002556,
Department of Health,NHS England,31/07/2013,GPMS/APMS and PCTMS, Primary Care , BINFIELD SURGERY ,607072," 98,576.54 ",BE000001599,
Department of Health,NHS England,31/07/2013,GPMS/APMS and PCTMS, Primary Care , BINGFIELD PRIMARY CARE CENTRE ,758111,"-41,096.37 ",LND000001301,
Department of Health,NHS England,31/07/2013,GPMS/APMS and PCTMS, Primary Care , BINGFIELD PRIMARY CARE CENTRE ,751801," 55,551.26 ",LND000001302,
Department of Health,NHS England,31/07/2013,GPMS/APMS and PCTMS, Primary Care , BINGFIELD STREET SURGERY ,758112,"-36,539.52 ",LND000001303,
Department of Health,NHS England,31/07/2013,GPMS/APMS and PCTMS, Primary Care , BINGFIELD STREET SURGERY ,758113," 52,251.60 ",LND000001304,
Department of Health,NHS England,31/07/2013,GPMS/APMS and PCTMS, Primary Care , BINGLEY MEDICAL PRACTICE ,598132,"-375,762.90 ",BRA000000687,
Department of Health,NHS England,31/07/2013,GPMS/APMS and PCTMS, Primary Care , BINGLEY MEDICAL PRACTICE ,606519," 658,301.29 ",BRA000000688,
Department of Health,NHS England,31/07/2013,GPMS/APMS and PCTMS, Primary Care , BIRBECK MEDICAL GROUP ,662048," 149,129.13 ",CU000001284,
Department of Health,NHS England,31/07/2013,GPMS/APMS and PCTMS, Primary Care , BIRCHDALE ROAD MEDICAL CENTRE ,599888,"-58,002.22 ",LNA000001311,
Department of Health,NHS England,31/07/2013,GPMS/APMS and PCTMS, Primary Care , BIRCHDALE ROAD MEDICAL CENTRE ,599889," 72,592.69 ",LNA000001312,
Department of Health,NHS England,31/07/2013,GPMS/APMS and PCTMS, Primary Care , BIRCHES MEDICAL CENTRE ,587132,"-84,327.62 ",SU000001509,
Department of Health,NHS England,31/07/2013,GPMS/APMS and PCTMS, Primary Care , BIRCHES MEDICAL CENTRE ,741018," 31,018.22 ",ROC000000792,
Department of Health,NHS England,31/07/2013,GPMS/APMS and PCTMS, Primary Care , BIRCHES MEDICAL CENTRE ,587133," 143,579.36 ",SU000001510,
Department of Health,NHS England,31/07/2013,GPMS/APMS and PCTMS, Primary Care , BIRCHES MEDICAL PRACTICE ,758733," 70,446.25 ",KHU000001658,
Department of Health,NHS England,31/07/2013,GPMS/APMS and PCTMS, Primary Care , BIRCHINGTON MEDICAL CENTRE ,652864," 59,787.39 ",KC000003863,
Department of Health,NHS England,31/07/2013,GPMS/APMS and PCTMS, Primary Care , BIRCHTREE PRACTICE ,661951,"-51,149.66 ",MID000001051,
Department of Health,NHS England,31/07/2013,GPMS/APMS and PCTMS, Primary Care , BIRCHTREE PRACTICE ,652139," 89,050.37 ",MID000001052,
Department of Health,NHS England,31/07/2013,GPMS/APMS and PCTMS, Primary Care , BIRCHWOOD MEDICAL CENTRE POOLE ,585806," 66,940.14 ",DO000001450,
Department of Health,NHS England,31/07/2013,GPMS/APMS and PCTMS, Primary Care , BIRCHWOOD MEDICAL CENTRE WARRINGTON ,597997,"-27,022.27 ",CH000001628,
Department of Health,NHS England,31/07/2013,GPMS/APMS and PCTMS, Primary Care , BIRCHWOOD MEDICAL CENTRE WARRINGTON ,597998," 105,842.23 ",CH000001629,
Department of Health,NHS England,31/07/2013,GPMS/APMS and PCTMS, Primary Care , BIRCHWOOD MEDICAL PRACTICE BRISTOL ,749507," 43,194.92 ",BRS000002174,
Department of Health,NHS England,31/07/2013,GPMS/APMS and PCTMS, Primary Care , BIRCHWOOD MEDICAL PRACTICE HORLEY ,712472," 112,610.57 ",SY000002073,
Department of Health,NHS England,31/07/2013,GPMS/APMS and PCTMS, Primary Care , BIRCHWOOD SURGERY ,758518," 111,872.25 ",HT000002077,
Department of Health,NHS England,31/07/2013,GPMS/APMS and PCTMS, Primary Care , BIRD IN EYE SURGERY ,662033," 56,833.27 ",TE000001612,
Department of Health,NHS England,31/07/2013,GPMS/APMS and PCTMS, Primary Care , BIRLEY HEALTH CENTRE ,599073,"-79,527.18 ",SHE000001064,
Department of Health,NHS England,31/07/2013,GPMS/APMS and PCTMS, Primary Care , BIRLEY HEALTH CENTRE ,606926," 143,417.30 ",SHE000001065,
Department of Health,NHS England,31/07/2013,Services from other NHS bodies, Health & Justice , BIRMINGHAM & SOLIHULL MENTAL HEALTH NHS FOUNDATION TRUST ,648500," 32,617.74 ",25519 ,
Department of Health,NHS England,31/07/2013,Services from other NHS bodies, Specialised Commissioning , BIRMINGHAM & SOLIHULL MENTAL HEALTH NHS FOUNDATION TRUST ,635553," 43,403.00 ",25213 ,
Department of Health,NHS England,31/07/2013,Services from other NHS bodies, Specialised Commissioning , BIRMINGHAM & SOLIHULL MENTAL HEALTH NHS FOUNDATION TRUST ,786273," 47,609.00 ",25188 ,
Department of Health,NHS England,31/07/2013,Services from other NHS bodies, Specialised Commissioning , BIRMINGHAM & SOLIHULL MENTAL HEALTH NHS FOUNDATION TRUST ,786906," 57,128.00 ",25539 ,
Department of Health,NHS England,31/07/2013,Services from other NHS bodies, Specialised Commissioning , BIRMINGHAM & SOLIHULL MENTAL HEALTH NHS FOUNDATION TRUST ,622591," 124,618.62 ",25226 ,
Department of Health,NHS England,31/07/2013,Services from other NHS bodies, Health & Justice , BIRMINGHAM & SOLIHULL MENTAL HEALTH NHS FOUNDATION TRUST ,582420," 587,258.42 ",25454 ,
Department of Health,NHS England,31/07/2013,Services from other NHS bodies, Health & Justice , BIRMINGHAM & SOLIHULL MENTAL HEALTH NHS FOUNDATION TRUST ,648501," 598,131.00 ",25520 ,
Department of Health,NHS England,31/07/2013,Services from other NHS bodies, Specialised Commissioning , BIRMINGHAM CHILDRENS HOSPITAL NHS FOUNDATION TRUST ,623345," 12,878,707.00 ",15662103 ,
Department of Health,NHS England,31/07/2013,Services from other NHS bodies, Secondary and Community Dental Care , BIRMINGHAM COMMUNITY HEALTHCARE NHS TRUST ,635980," 94,544.00 ",44995678 ,
Department of Health,NHS England,31/07/2013,Services from other NHS bodies, Public Health , BIRMINGHAM COMMUNITY HEALTHCARE NHS TRUST ,622343," 446,729.00 ",44995223 ,
Department of Health,NHS England,31/07/2013,Services from other NHS bodies, Secondary and Community Dental Care , BIRMINGHAM COMMUNITY HEALTHCARE NHS TRUST ,730735," 748,386.00 ",44995679 ,
Department of Health,NHS England,31/07/2013,Services from other NHS bodies, Secondary and Community Dental Care , BIRMINGHAM COMMUNITY HEALTHCARE NHS TRUST ,730736," 841,496.00 ",44995681 ,
Department of Health,NHS England,31/07/2013,Services from other NHS bodies, Specialised Commissioning , BIRMINGHAM COMMUNITY HEALTHCARE NHS TRUST ,557982," 1,571,592.00 ",44995672 ,
Department of Health,NHS England,31/07/2013,Services from other NHS bodies, Public Health , BIRMINGHAM COMMUNITY HEALTHCARE NHS TRUST ,636648," 1,758,874.00 ",44995669 ,
Department of Health,NHS England,31/07/2013,GPMS/APMS and PCTMS, Primary Care , BIRMINGHAM LOCAL MEDICAL COMMITTEE ,636356," 54,250.00 ",110576-27-JUN-2013,
Department of Health,NHS England,31/07/2013,Services from other NHS bodies, Public Health , BIRMINGHAM WOMENS NHS FOUNDATION TRUST ,806661,"-131,000.00 ",OPC012061,
Department of Health,NHS England,31/07/2013,Services from other NHS bodies, Public Health , BIRMINGHAM WOMENS NHS FOUNDATION TRUST ,775138," 32,750.00 ",OPI126672,
Department of Health,NHS England,31/07/2013,GPMS/APMS and PCTMS, Primary Care , BISHOPGATE MEDICAL CENTRE ,598074,"-131,178.18 ",DR000001050,
Department of Health,NHS England,31/07/2013,GPMS/APMS and PCTMS, Primary Care , BISHOPGATE MEDICAL CENTRE ,598075," 239,740.09 ",DR000001051,
Department of Health,NHS England,31/07/2013,GPMS/APMS and PCTMS, Primary Care , BISHOPS CASTLE MEDICAL PRACTICE ,705483," 45,993.37 ",SA000001495,
Department of Health,NHS England,31/07/2013,GPMS/APMS and PCTMS, Primary Care , BISHOPS PLACE SURGERY ,720874," 31,997.80 ",DN000003377,
Department of Health,NHS England,31/07/2013,GPMS/APMS and PCTMS, Primary Care , BISHOPS WALTHAM SURGERY ,584430,"-85,518.25 ",SO000003497,
Department of Health,NHS England,31/07/2013,GPMS/APMS and PCTMS, Primary Care , BISHOPS WALTHAM SURGERY ,584431," 173,257.18 ",SO000003498,
Department of Health,NHS England,31/07/2013,GPMS/APMS and PCTMS, Primary Care , BITTERNE PARK SURGERY ,705338," 68,294.43 ",SO000003832,
Department of Health,NHS England,31/07/2013,GPMS/APMS and PCTMS, Primary Care , BITTERNE SURGERY ,705340," 78,334.56 ",SO000003834,
Department of Health,NHS England,31/07/2013,GPMS/APMS and PCTMS, Primary Care , BK JAISWAL ,706444," 68,365.93 ",LNC000001101,
Department of Health,NHS England,31/07/2013,Services from other NHS bodies, Specialised Commissioning , BLACK COUNTRY PARTNERSHIP NHS FOUNDATION TRUST ,720685," 252,747.17 ",1100000907 ,
Department of Health,NHS England,31/07/2013,GPMS/APMS and PCTMS, Primary Care , BLACK JEB ,740873," 26,129.45 ",MAN000001090,
Department of Health,NHS England,31/07/2013,GPMS/APMS and PCTMS, Primary Care , BLACK LONG THOMAS DAS WRIGHT VELTMAN & PARTNERS ,705440," 103,035.86 ",DE000002168,
Department of Health,NHS England,31/07/2013,GPMS/APMS and PCTMS, Primary Care , BLACKBROOK SURGERY LISIEUX WAY TAUNTON ,758304," 94,263.22 ",SM000001044,
Department of Health,NHS England,31/07/2013,GPMS/APMS and PCTMS, Primary Care , BLACKBURN ROAD MEDICAL PRACTICE ,747111,"-29,729.65 ",LA000002978,
Department of Health,NHS England,31/07/2013,GPMS/APMS and PCTMS, Primary Care , BLACKBURN ROAD MEDICAL PRACTICE ,757802," 63,984.61 ",LA000002979,
Department of Health,NHS England,31/07/2013,GPMS/APMS and PCTMS, Primary Care , BLACKDOWN COUNTRY PRACTICE HEMYOCK ,548868," 73,386.61 ",DN000003015,
Department of Health,NHS England,31/07/2013,GPMS/APMS and PCTMS, Primary Care , BLACKDOWN COUNTRY PRACTICE HEMYOCK ,788670," 80,086.27 ",DN000003841,
Department of Health,NHS England,31/07/2013,GPMS/APMS and PCTMS, Primary Care , BLACKETTS MEDICAL PRACTICE ,598076,"-84,438.46 ",DR000001052,
Department of Health,NHS England,31/07/2013,GPMS/APMS and PCTMS, Primary Care , BLACKETTS MEDICAL PRACTICE ,598077," 167,902.68 ",DR000001053,
Department of Health,NHS England,31/07/2013,GPMS/APMS and PCTMS, Primary Care , BLACKFIELD HEALTH CENTRE ,705341," 205,480.68 ",SO000003836,
Department of Health,NHS England,31/07/2013,GPMS/APMS and PCTMS, Primary Care , BLACKFORD HOUSE MEDICAL CENTRE ,734016," 58,656.39 ",ROC000000794,
Department of Health,NHS England,31/07/2013,GPMS/APMS and PCTMS, Primary Care , BLACKFRIARS MEDICAL PRACTICE ,605930," 56,154.18 ",LNS000002558,
Department of Health,NHS England,31/07/2013,GPMS/APMS and PCTMS, Primary Care , BLACKMORE HEALTH CENTRE SIDMOUTH ,539178," 121,687.58 ",DN000003017,
Department of Health,NHS England,31/07/2013,GPMS/APMS and PCTMS, Primary Care , BLACKMORE HEALTH CENTRE SIDMOUTH ,788672," 139,329.33 ",DN000003843,
Department of Health,NHS England,31/07/2013,Services from other NHS bodies, Specialised Commissioning , BLACKPOOL TEACHING HOSPITALS NHS FOUNDATION TRUST ,672495," 26,349.00 ",1110000505 ,
Department of Health,NHS England,31/07/2013,Services from other NHS bodies, Specialised Commissioning , BLACKPOOL TEACHING HOSPITALS NHS FOUNDATION TRUST ,672507," 26,349.00 ",1110000496 ,
Department of Health,NHS England,31/07/2013,Services from other NHS bodies, Specialised Commissioning , BLACKPOOL TEACHING HOSPITALS NHS FOUNDATION TRUST ,672760," 26,349.00 ",1110000908 ,
Department of Health,NHS England,31/07/2013,Services from other NHS bodies, Specialised Commissioning , BLACKPOOL TEACHING HOSPITALS NHS FOUNDATION TRUST ,672989," 26,349.00 ",1110001276 ,
Department of Health,NHS England,31/07/2013,Services from other NHS bodies, Secondary and Community Dental Care , BLACKPOOL TEACHING HOSPITALS NHS FOUNDATION TRUST ,622680," 412,944.00 ",1110001275 ,
Department of Health,NHS England,31/07/2013,General Dental services and personal dental services, Secondary and Community Dental Care , BLACKPOOL TEACHING HOSPITALS NHS FOUNDATION TRUST ,695448," 479,752.69 ",1110001590 ,
Department of Health,NHS England,31/07/2013,Services from other NHS bodies, Public Health , BLACKPOOL TEACHING HOSPITALS NHS FOUNDATION TRUST ,708411," 569,495.00 ",1110001274 ,
Department of Health,NHS England,31/07/2013,Services from other NHS bodies, Specialised Commissioning , BLACKPOOL TEACHING HOSPITALS NHS FOUNDATION TRUST ,548441," 4,585,218.00 ",1110001267 ,
Department of Health,NHS England,31/07/2013,GPMS/APMS and PCTMS, Primary Care , BLACKTHORN HEALTH CENTRE ,705342," 108,706.54 ",SO000003838,
Department of Health,NHS England,31/07/2013,GPMS/APMS and PCTMS, Primary Care , BLACKTHORN MEDICAL CENTRE ,652866," 49,213.53 ",KC000003865,
Department of Health,NHS England,31/07/2013,GPMS/APMS and PCTMS, Primary Care , BLENHEIM MEDICAL CENTRE ,675972," 51,432.07 ",BD000001258,
Department of Health,NHS England,31/07/2013,GPMS/APMS and PCTMS, Primary Care , BLENHEIM MEDICAL CENTRE ,601239," 84,534.55 ",BD000001173,
Department of Health,NHS England,31/07/2013,GPMS/APMS and PCTMS, Primary Care , BLETCHINGTON ROAD SURGERY ,750070," 64,057.12 ",OX000001313,
Department of Health,NHS England,31/07/2013,GPMS/APMS and PCTMS, Primary Care , BLITHEHALE MEDICAL CENTRE ,599890,"-115,160.21 ",LNA000001313,
Department of Health,NHS England,31/07/2013,GPMS/APMS and PCTMS, Primary Care , BLITHEHALE MEDICAL CENTRE ,607167," 141,653.17 ",LNA000001314,
Department of Health,NHS England,31/07/2013,GPMS/APMS and PCTMS, Primary Care , BLOOMFIELD MEDICAL CENTRE ,606207," 123,464.18 ",LA000002732,
Department of Health,NHS England,31/07/2013,GPMS/APMS and PCTMS, Primary Care , BLOOMSBURY HEALTH CENTRE ,706242," 42,693.01 ",BIR000002218,
Department of Health,NHS England,31/07/2013,GPMS/APMS and PCTMS, Primary Care , BLOOMSBURY SURGERY ,758114,"-67,730.11 ",LND000001305,
Department of Health,NHS England,31/07/2013,GPMS/APMS and PCTMS, Primary Care , BLOOMSBURY SURGERY ,758115," 111,643.55 ",LND000001306,
Department of Health,NHS England,31/07/2013,GPMS/APMS and PCTMS, Primary Care , BLUEBELL MEDICAL CENTRE ,746238," 39,226.11 ",SHE000001247,
Department of Health,NHS England,31/07/2013,GPMS/APMS and PCTMS, Primary Care , BOAT HOUSE SURGERY ,607070," 96,055.57 ",BE000001595,
Department of Health,NHS England,31/07/2013,GPMS/APMS and PCTMS, Primary Care , BOCKHAMPTON ROAD SURGERY ,697383," 53,388.95 ",BE000001757,
Department of Health,NHS England,31/07/2013,GPMS/APMS and PCTMS, Primary Care , BOGNOR MEDICAL PRACTICE ,601336," 79,797.92 ",TW000002040,
Department of Health,NHS England,31/07/2013,GPMS/APMS and PCTMS, Primary Care , BOKAHRI AA ,605863," 71,946.82 ",MAN000000969,
Department of Health,NHS England,31/07/2013,GPMS/APMS and PCTMS, Primary Care , BOLLINGTON MEDICAL CENTRE ,605841," 95,397.56 ",CH000001627,
Department of Health,NHS England,31/07/2013,GPMS/APMS and PCTMS, Primary Care , BOLTON COMMUNITY PRACTICE ,638635," 144,973.16 ",WIG000001577,
Department of Health,NHS England,31/07/2013,General Opthalmic services, Primary Care , BOLTON VISIONPLUS LTD ,648664," 81,323.41 ",3926017_S,
Department of Health,NHS England,31/07/2013,GPMS/APMS and PCTMS, Primary Care , BOND MDI & PARTNER ,638121,"-25,025.43 ",SOP000000947,
Department of Health,NHS England,31/07/2013,GPMS/APMS and PCTMS, Primary Care , BOND MDI & PARTNER ,648704," 53,894.26 ",SOP000000948,
Department of Health,NHS England,31/07/2013,GPMS/APMS and PCTMS, Primary Care , BONDGATE SURGERY ,605882," 94,471.49 ",NR000000726,
Department of Health,NHS England,31/07/2013,GPMS/APMS and PCTMS, Primary Care , BOOTH J T & PARTNERS ,746748,"-45,900.87 ",EX000003706,
Department of Health,NHS England,31/07/2013,GPMS/APMS and PCTMS, Primary Care , BOOTH J T & PARTNERS ,758871," 99,524.42 ",EX000003707,
Department of Health,NHS England,31/07/2013,General Opthalmic services, Primary Care , BOOTS CO PLC ,713372," 26,517.55 ",3902975_S,
Department of Health,NHS England,31/07/2013,GPMS/APMS and PCTMS, Primary Care , BORDER PRACTICE ,584432,"-58,563.00 ",SO000003501,
Department of Health,NHS England,31/07/2013,GPMS/APMS and PCTMS, Primary Care , BORDER PRACTICE ,596735," 128,268.81 ",SO000003502,
Department of Health,NHS England,31/07/2013,GPMS/APMS and PCTMS, Primary Care , BOROUGH GREEN MEDICAL PRACTICE ,652869,"-35,264.54 ",KC000003868,
Department of Health,NHS England,31/07/2013,GPMS/APMS and PCTMS, Primary Care , BOROUGH GREEN MEDICAL PRACTICE ,662250," 82,809.47 ",KC000003869,
Department of Health,NHS England,31/07/2013,GPMS/APMS and PCTMS, Primary Care , BOROUGH ROAD & NUNTHORPE MEDICAL GROUP ,661952," 96,202.15 ",MID000001054,
Department of Health,NHS England,31/07/2013,GPMS/APMS and PCTMS, Primary Care , BORSTAL VILLAGE ,773003," 37,188.18 ",KC000004502,
Department of Health,NHS England,31/07/2013,GPMS/APMS and PCTMS, Primary Care , BOSMERE MEDICAL PRACTICE ,584433,"-132,684.39 ",SO000003503,
Department of Health,NHS England,31/07/2013,GPMS/APMS and PCTMS, Primary Care , BOSMERE MEDICAL PRACTICE ,584434," 272,397.28 ",SO000003504,
Department of Health,NHS England,31/07/2013,GPMS/APMS and PCTMS, Primary Care , BOTLEY MEDICAL CENTRE ,750072," 64,216.09 ",OX000001315,
Department of Health,NHS England,31/07/2013,GPMS/APMS and PCTMS, Primary Care , BOTOLPH COMMUNITY HEALTH CENTRE ,596481," 62,841.38 ",CB000001650,
Department of Health,NHS England,31/07/2013,GPMS/APMS and PCTMS, Primary Care , BOUGHTON MEDICAL GROUP ,676672,"-79,284.13 ",CH000001916,
Department of Health,NHS England,31/07/2013,GPMS/APMS and PCTMS, Primary Care , BOUGHTON MEDICAL GROUP ,539309," 59,825.14 ",CH000001557,
Department of Health,NHS England,31/07/2013,GPMS/APMS and PCTMS, Primary Care , BOUGHTON MEDICAL GROUP ,676673," 203,216.74 ",CH000001917,
Department of Health,NHS England,31/07/2013,GPMS/APMS and PCTMS, Primary Care , BOUNCES ROAD SURGERY ,751669,"-68,009.39 ",LNE000001364,
Department of Health,NHS England,31/07/2013,GPMS/APMS and PCTMS, Primary Care , BOUNCES ROAD SURGERY ,751671," 92,708.44 ",LNE000001365,
Department of Health,NHS England,31/07/2013,GPMS/APMS and PCTMS, Primary Care , BOUNDARIES SURGERY ,696753," 29,566.77 ",SO000003842,
Department of Health,NHS England,31/07/2013,GPMS/APMS and PCTMS, Primary Care , BOUNDARY COURT SURGERY ,751672,"-51,547.92 ",LNE000001366,
Department of Health,NHS England,31/07/2013,GPMS/APMS and PCTMS, Primary Care , BOUNDARY COURT SURGERY ,751675," 77,055.35 ",LNE000001367,
Department of Health,NHS England,31/07/2013,GPMS/APMS and PCTMS, Primary Care , BOUNDARY HOUSE SURGERY BRACKNELL ,705891," 67,511.79 ",BE000001759,
Department of Health,NHS England,31/07/2013,GPMS/APMS and PCTMS, Primary Care , BOUNDARY HOUSE SURGERY LONDON ,606366," 38,658.89 ",LNE000001216,
Department of Health,NHS England,31/07/2013,GPMS/APMS and PCTMS, Primary Care , BOUNDS GREEN GROUP PRACTICE ,602919,"-27,486.18 ",LNE000001217,
Department of Health,NHS England,31/07/2013,GPMS/APMS and PCTMS, Primary Care , BOUNDS GREEN GROUP PRACTICE ,687241," 29,742.33 ",LNE000001322,
Department of Health,NHS England,31/07/2013,GPMS/APMS and PCTMS, Primary Care , BOUNDS GREEN GROUP PRACTICE ,606367," 147,579.41 ",LNE000001218,
Department of Health,NHS England,31/07/2013,GPMS/APMS and PCTMS, Primary Care , BOURKE M & PARTNERS ,712474," 63,320.95 ",SY000002075,
Department of Health,NHS England,31/07/2013,GPMS/APMS and PCTMS, Primary Care , BOUTPORT MEDICAL CENTRE ,720880," 58,353.72 ",DN000003384,
Department of Health,NHS England,31/07/2013,GPMS/APMS and PCTMS, Primary Care , BOVEY TRACEY & CHUDLEIGH PRACTICE ,548873," 115,941.79 ",DN000003025,
Department of Health,NHS England,31/07/2013,GPMS/APMS and PCTMS, Primary Care , BOVEY TRACEY & CHUDLEIGH PRACTICE ,788680," 127,223.15 ",DN000003851,
Department of Health,NHS England,31/07/2013,GPMS/APMS and PCTMS, Primary Care , BOW MEDICAL PRACTICE ,548874," 39,370.33 ",DN000003027,
Department of Health,NHS England,31/07/2013,GPMS/APMS and PCTMS, Primary Care , BOW MEDICAL PRACTICE ,788682," 41,084.05 ",DN000003853,
Department of Health,NHS England,31/07/2013,GPMS/APMS and PCTMS, Primary Care , BOWERS S & PARTNERS ,732467,"-36,939.93 ",LIP000001884,
Department of Health,NHS England,31/07/2013,GPMS/APMS and PCTMS, Primary Care , BOWERS S & PARTNERS ,597763," 34,426.22 ",LIP000001494,
Department of Health,NHS England,31/07/2013,GPMS/APMS and PCTMS, Primary Care , BOWERS S & PARTNERS ,732468," 53,993.35 ",LIP000001885,
Department of Health,NHS England,31/07/2013,GPMS/APMS and PCTMS, Primary Care , BOWES MEDICAL CENTRE ,751676,"-44,129.82 ",LNE000001368,
Department of Health,NHS England,31/07/2013,GPMS/APMS and PCTMS, Primary Care , BOWES MEDICAL CENTRE ,751678," 69,246.29 ",LNE000001369,
Department of Health,NHS England,31/07/2013,GPMS/APMS and PCTMS, Primary Care , BOWLAND MEDICAL PRACTICE ,740874," 50,444.84 ",MAN000001092,
Department of Health,NHS England,31/07/2013,GPMS/APMS and PCTMS, Primary Care , BOWLEY C ,740875," 58,817.43 ",MAN000001094,
Department of Health,NHS England,31/07/2013,GPMS/APMS and PCTMS, Primary Care , BOWLING HALL MEDICAL PRACTICE ,606520,"-310,686.55 ",BRA000000689,
Department of Health,NHS England,31/07/2013,GPMS/APMS and PCTMS, Primary Care , BOWLING HALL MEDICAL PRACTICE ,598133," 551,689.27 ",BRA000000690,
Department of Health,NHS England,31/07/2013,GPMS/APMS and PCTMS, Primary Care , BOWTON P A & PARTNER ,746749,"-44,037.92 ",EX000003708,
Department of Health,NHS England,31/07/2013,GPMS/APMS and PCTMS, Primary Care , BOWTON P A & PARTNER ,746750," 87,900.58 ",EX000003709,
Department of Health,NHS England,31/07/2013,GPMS/APMS and PCTMS, Primary Care , BOX SURGERY ,625430," 51,974.79 ",WL000001458,
Department of Health,NHS England,31/07/2013,GPMS/APMS and PCTMS, Primary Care , BOXWELL ROAD SURGERY ,758524," 50,641.57 ",HT000002079,
Department of Health,NHS England,31/07/2013,GPMS/APMS and PCTMS, Primary Care , BOYATT WOOD SURGERY ,696755," 33,484.40 ",SO000003844,
Department of Health,NHS England,31/07/2013,GPMS/APMS and PCTMS, Primary Care , BOYNE AVENUE SURGERY ,751756,"-26,492.95 ",LNH000000908,
Department of Health,NHS England,31/07/2013,GPMS/APMS and PCTMS, Primary Care , BOYNE AVENUE SURGERY ,751757," 41,878.59 ",LNH000000909,
Department of Health,NHS England,31/07/2013,GPMS/APMS and PCTMS, Primary Care , BRACKLEY HEALTH CENTRE ,748774," 26,935.95 ",NO000001387,
Department of Health,NHS England,31/07/2013,GPMS/APMS and PCTMS, Primary Care , BRACONDALE MEDICAL CENTRE ,733276," 39,712.34 ",SPT000000638,
Department of Health,NHS England,31/07/2013,Services from other NHS bodies, Specialised Commissioning , BRADFORD DISTRICT CARE TRUST ,647596," 358,516.00 ",182908 ,
Department of Health,NHS England,31/07/2013,Services from other NHS bodies, Secondary and Community Dental Care , BRADFORD DISTRICT CARE TRUST ,720677," 409,293.00 ",182907 ,
Department of Health,NHS England,31/07/2013,Services from other NHS bodies, Public Health , BRADFORD DISTRICT CARE TRUST ,647595," 911,446.00 ",182906 ,
Department of Health,NHS England,31/07/2013,Services from other NHS bodies, Public Health , BRADFORD DISTRICT CARE TRUST ,646237," 1,031,838.00 ",182521 ,
Department of Health,NHS England,31/07/2013,Services from other NHS bodies, Specialised Commissioning , BRADFORD TEACHING HOSPITALS NHS FOUNDATION TRUST ,595053," 36,493.40 ",276283 ,
Department of Health,NHS England,31/07/2013,Services from other NHS bodies, Specialised Commissioning , BRADFORD TEACHING HOSPITALS NHS FOUNDATION TRUST ,636076," 36,974.00 ",276623 ,
Department of Health,NHS England,31/07/2013,Services from other NHS bodies, Public Health , BRADFORD TEACHING HOSPITALS NHS FOUNDATION TRUST ,647765," 348,629.75 ",276621 ,
Department of Health,NHS England,31/07/2013,Services from other NHS bodies, Secondary and Community Dental Care , BRADFORD TEACHING HOSPITALS NHS FOUNDATION TRUST ,647765," 518,317.25 ",276621 ,
Department of Health,NHS England,31/07/2013,Services from other NHS bodies, Specialised Commissioning , BRADFORD TEACHING HOSPITALS NHS FOUNDATION TRUST ,647766," 3,018,501.00 ",276622 ,
Department of Health,NHS England,31/07/2013,GPMS/APMS and PCTMS, Primary Care , BRADGATE SURGERY ,605579," 85,584.53 ",BRS000001793,
Department of Health,NHS England,31/07/2013,GPMS/APMS and PCTMS, Primary Care , BRADLEY & PARTNERS ,720817," 102,892.79 ",LNN000001009,
Department of Health,NHS England,31/07/2013,GPMS/APMS and PCTMS, Primary Care , BRADLEY GEDGE BARRON BARRON & PARTNERS ,606860," 95,735.08 ",DE000001976,
Department of Health,NHS England,31/07/2013,GPMS/APMS and PCTMS, Primary Care , BRADLEY STOKE SURGERY ,605576,"-26,825.65 ",BRS000001790,
Department of Health,NHS England,31/07/2013,GPMS/APMS and PCTMS, Primary Care , BRADLEY STOKE SURGERY ,605577," 123,899.67 ",BRS000001791,
Department of Health,NHS England,31/07/2013,GPMS/APMS and PCTMS, Primary Care , BRADY & PARTNERS ,713757," 80,596.76 ",LNN000001007,
Department of Health,NHS England,31/07/2013,GPMS/APMS and PCTMS, Primary Care , BRAILSFORD & HULLAND MEDICAL PRACTICE ,705442," 52,318.13 ",DE000002172,
Department of Health,NHS England,31/07/2013,General Opthalmic services, Primary Care , BRAINTREE SPECSAVERS ,596722," 30,878.26 ",3902345_S,
Department of Health,NHS England,31/07/2013,GPMS/APMS and PCTMS, Primary Care , BRAITHWAITE SURGERY ,648708," 40,583.93 ",WIG000001579,
Department of Health,NHS England,31/07/2013,GPMS/APMS and PCTMS, Primary Care , BRAMBLEHAIES SURGERY CULLOMPTON ,539180," 53,853.44 ",DN000003021,
Department of Health,NHS England,31/07/2013,GPMS/APMS and PCTMS, Primary Care , BRAMBLEHAIES SURGERY CULLOMPTON ,788676," 59,465.00 ",DN000003847,
Department of Health,NHS England,31/07/2013,GPMS/APMS and PCTMS, Primary Care , BRAMBLYS GRANGE MEDICAL PRACTICE ,705343," 95,859.28 ",SO000003840,
Department of Health,NHS England,31/07/2013,GPMS/APMS and PCTMS, Primary Care , BRAMHALL HEALTH CENTRE ,741008," 78,762.11 ",SPT000000635,
Department of Health,NHS England,31/07/2013,GPMS/APMS and PCTMS, Primary Care , BRAMHALL PARK MEDICAL CENTRE ,586421," 101,447.69 ",SPT000000565,
Department of Health,NHS England,31/07/2013,GPMS/APMS and PCTMS, Primary Care , BRAMPTON MEDICAL PRACTICE ,662049,"-31,816.63 ",CU000001285,
Department of Health,NHS England,31/07/2013,GPMS/APMS and PCTMS, Primary Care , BRAMPTON MEDICAL PRACTICE ,767618," 41,663.29 ",CU000001550,
Department of Health,NHS England,31/07/2013,GPMS/APMS and PCTMS, Primary Care , BRAMPTON MEDICAL PRACTICE ,662050," 159,448.76 ",CU000001286,
Department of Health,NHS England,31/07/2013,GPMS/APMS and PCTMS, Primary Care , BRANCH END SURGERY ,605883," 54,923.40 ",NR000000728,
Department of Health,NHS England,31/07/2013,GPMS/APMS and PCTMS, Primary Care , BRANDON MEDICAL PRACTICE ,587134,"-78,607.83 ",SU000001511,
Department of Health,NHS England,31/07/2013,GPMS/APMS and PCTMS, Primary Care , BRANDON MEDICAL PRACTICE ,587135," 128,313.10 ",SU000001512,
Department of Health,NHS England,31/07/2013,GPMS/APMS and PCTMS, Primary Care , BRANKSOMEWOOD HEALTHCARE CENTRE ,596733,"-77,944.31 ",SO000003499,
Department of Health,NHS England,31/07/2013,GPMS/APMS and PCTMS, Primary Care , BRANKSOMEWOOD HEALTHCARE CENTRE ,596734," 169,960.89 ",SO000003500,
Department of Health,NHS England,31/07/2013,GPMS/APMS and PCTMS, Primary Care , BRANN & PARTNERS ,597876,"-86,617.82 ",EX000003315,
Department of Health,NHS England,31/07/2013,GPMS/APMS and PCTMS, Primary Care , BRANN & PARTNERS ,597877," 200,813.40 ",EX000003316,
Department of Health,NHS England,31/07/2013,GPMS/APMS and PCTMS, Primary Care , BRANNAM MEDICAL CENTRE ,539181," 109,729.59 ",DN000003023,
Department of Health,NHS England,31/07/2013,GPMS/APMS and PCTMS, Primary Care , BRANNAM MEDICAL CENTRE ,788678," 124,280.33 ",DN000003849,
Department of Health,NHS England,31/07/2013,GPMS/APMS and PCTMS, Primary Care , BRANT ROAD SURGERY LINCOLN ,584570," 57,841.28 ",LL000001580,
Department of Health,NHS England,31/07/2013,GPMS/APMS and PCTMS, Primary Care , BREACH & PARTNERS ,732742,"-45,265.67 ",STL000001399,
Department of Health,NHS England,31/07/2013,GPMS/APMS and PCTMS, Primary Care , BREACH & PARTNERS ,585253," 48,726.40 ",STL000001076,
Department of Health,NHS England,31/07/2013,GPMS/APMS and PCTMS, Primary Care , BREACH & PARTNERS ,740941," 63,830.90 ",STL000001400,
Department of Health,NHS England,31/07/2013,GPMS/APMS and PCTMS, Primary Care , BREDBURY MEDICAL PRACTICE ,586423," 39,880.75 ",SPT000000567,
Department of Health,NHS England,31/07/2013,GPMS/APMS and PCTMS, Primary Care , BREEZE HILL NEIGHBOURHOOD HEALTH CENTRE ,648662," 49,492.50 ",LIP000001680,
Department of Health,NHS England,31/07/2013,GPMS/APMS and PCTMS, Primary Care , BREMNER & PARTNERS ,637675,"-53,326.66 ",LIP000001619,
Department of Health,NHS England,31/07/2013,GPMS/APMS and PCTMS, Primary Care , BREMNER & PARTNERS ,648631," 102,210.23 ",LIP000001620,
Department of Health,NHS England,31/07/2013,GPMS/APMS and PCTMS, Primary Care , BRENNAN & PARTNERS ,686814,"-120,402.62 ",BIK000000883,
Department of Health,NHS England,31/07/2013,GPMS/APMS and PCTMS, Primary Care , BRENNAN & PARTNERS ,564954," 43,097.56 ",BIK000000765,
Department of Health,NHS England,31/07/2013,GPMS/APMS and PCTMS, Primary Care , BRENNAN & PARTNERS ,686815," 132,247.65 ",BIK000000884,
Department of Health,NHS England,31/07/2013,GPMS/APMS and PCTMS, Primary Care , BRENT AREA MEDICAL CENTRE ANVIL HOUSE EAST BRENT ,748947," 28,942.81 ",SM000001048,
Department of Health,NHS England,31/07/2013,GPMS/APMS and PCTMS, Primary Care , BRIARWOOD MEDICAL CENTRE ,601129,"-37,168.38 ",LA000002733,
Department of Health,NHS England,31/07/2013,GPMS/APMS and PCTMS, Primary Care , BRIARWOOD MEDICAL CENTRE ,601130," 88,065.84 ",LA000002734,
Department of Health,NHS England,31/07/2013,GPMS/APMS and PCTMS, Primary Care , BRICK LANE SURGERY ,751688,"-51,077.40 ",LNE000001374,
Department of Health,NHS England,31/07/2013,GPMS/APMS and PCTMS, Primary Care , BRICK LANE SURGERY ,751689," 76,577.12 ",LNE000001375,
Department of Health,NHS England,31/07/2013,GPMS/APMS and PCTMS, Primary Care , BRIDGE COTTAGE SURGERY ,758531," 115,452.51 ",HT000002087,
Department of Health,NHS England,31/07/2013,GPMS/APMS and PCTMS, Primary Care , BRIDGE HEALTH CENTRE ,653243,"-44,059.61 ",KC000004322,
Department of Health,NHS England,31/07/2013,GPMS/APMS and PCTMS, Primary Care , BRIDGE HEALTH CENTRE ,662246," 115,073.55 ",KC000004323,
Department of Health,NHS England,31/07/2013,GPMS/APMS and PCTMS, Primary Care , BRIDGE HOUSE MEDICAL CENTRE ,698327," 76,330.59 ",WA000001224,
Department of Health,NHS England,31/07/2013,GPMS/APMS and PCTMS, Primary Care , BRIDGE HOUSE SURGERY ,602920,"-68,300.33 ",LNE000001219,
Department of Health,NHS England,31/07/2013,GPMS/APMS and PCTMS, Primary Care , BRIDGE HOUSE SURGERY ,606368," 90,046.17 ",LNE000001220,
Department of Health,NHS England,31/07/2013,GPMS/APMS and PCTMS, Primary Care , BRIDGE LANE GROUP PRACTICE ,606018," 133,115.48 ",LNP000001770,
Department of Health,NHS England,31/07/2013,GPMS/APMS and PCTMS, Primary Care , BRIDGE MEDICAL CENTRE ,686914," 62,172.22 ",TW000002436,
Department of Health,NHS England,31/07/2013,GPMS/APMS and PCTMS, Primary Care , BRIDGE STREET SURGERY ,758734," 62,916.68 ",KHU000001662,
Department of Health,NHS England,31/07/2013,GPMS/APMS and PCTMS, Primary Care , BRIDGEGATE MEDICAL CENTRE ,662053," 79,095.99 ",CU000001292,
Department of Health,NHS England,31/07/2013,GPMS/APMS and PCTMS, Primary Care , BRIDGEGATE SURGERY ,651431," 25,355.90 ",NN000002250,
Department of Health,NHS England,31/07/2013,GPMS/APMS and PCTMS, Primary Care , BRIDGEGATE SURGERY ,675176," 68,049.71 ",NN000002427,
Department of Health,NHS England,31/07/2013,GPMS/APMS and PCTMS, Primary Care , BRIDGEMARY MEDICAL CENTRE ,584437,"-60,460.07 ",SO000003509,
Department of Health,NHS England,31/07/2013,GPMS/APMS and PCTMS, Primary Care , BRIDGEMARY MEDICAL CENTRE ,584438," 116,920.50 ",SO000003510,
Department of Health,NHS England,31/07/2013,GPMS/APMS and PCTMS, Primary Care , BRIDGES MEDICAL CENTRE ,596626," 139,939.53 ",DO000001458,
Department of Health,NHS England,31/07/2013,GPMS/APMS and PCTMS, Primary Care , BRIDGES MEDICAL PRACTICE ,606359,"-43,865.82 ",GAT000000762,
Department of Health,NHS England,31/07/2013,GPMS/APMS and PCTMS, Primary Care , BRIDGES MEDICAL PRACTICE ,600160," 73,095.00 ",GAT000000763,
Department of Health,NHS England,31/07/2013,GPMS/APMS and PCTMS, Primary Care , BRIDGEWATER COMMUNITY HEALTHCARE NHS TRUST ,695322,"-108,334.00 ",26279206 ,
Department of Health,NHS England,31/07/2013,GPMS/APMS and PCTMS, Primary Care , BRIDGEWATER COMMUNITY HEALTHCARE NHS TRUST ,635918,"-54,167.00 ",26915569 ,
Department of Health,NHS England,31/07/2013,GPMS/APMS and PCTMS, Primary Care , BRIDGEWATER COMMUNITY HEALTHCARE NHS TRUST ,635417," 54,167.00 ",26278835 ,
Department of Health,NHS England,31/07/2013,GPMS/APMS and PCTMS, Primary Care , BRIDGEWATER COMMUNITY HEALTHCARE NHS TRUST ,694997," 108,334.00 ",26278762 ,
Department of Health,NHS England,31/07/2013,Services from other NHS bodies, Health & Justice , BRIDGEWATER COMMUNITY HEALTHCARE NHS TRUST ,572480," 120,858.00 ",26279053 ,
Department of Health,NHS England,31/07/2013,Services from other NHS bodies, Health & Justice , BRIDGEWATER COMMUNITY HEALTHCARE NHS TRUST ,572478," 166,457.00 ",26279032 ,
Department of Health,NHS England,31/07/2013,Services from other NHS bodies, Public Health , BRIDGEWATER COMMUNITY HEALTHCARE NHS TRUST ,647599," 238,400.00 ",26279030 ,
Department of Health,NHS England,31/07/2013,Services from other NHS bodies, Secondary and Community Dental Care , BRIDGEWATER COMMUNITY HEALTHCARE NHS TRUST ,548095," 358,278.00 ",26278981 ,
Department of Health,NHS England,31/07/2013,Services from other NHS bodies, Public Health , BRIDGEWATER COMMUNITY HEALTHCARE NHS TRUST ,647598," 378,407.00 ",26279021 ,
Department of Health,NHS England,31/07/2013,Services from other NHS bodies, Public Health , BRIDGEWATER COMMUNITY HEALTHCARE NHS TRUST ,673087," 451,000.00 ",26279201 ,
Department of Health,NHS England,31/07/2013,Services from other NHS bodies, Public Health , BRIDGEWATER COMMUNITY HEALTHCARE NHS TRUST ,719405," 451,000.00 ",26278836 ,
Department of Health,NHS England,31/07/2013,GPMS/APMS and PCTMS, Primary Care , BRIDGEWATER FAMILY MEDICAL PRACTICE ,698822," 36,206.76 ",SA000001497,
Department of Health,NHS England,31/07/2013,GPMS/APMS and PCTMS, Primary Care , BRIDGNORTH MEDICAL PRACTICE ,698824," 111,408.58 ",SA000001499,
Department of Health,NHS England,31/07/2013,GPMS/APMS and PCTMS, Primary Care , BRIDPORT MEDICAL CENTRE ,585813," 160,862.46 ",DO000001460,
Department of Health,NHS England,31/07/2013,GPMS/APMS and PCTMS, Primary Care , BRIERLEY HILL HEALTH & S C C ,712646," 28,377.31 ",DUD000000493,
Department of Health,NHS England,31/07/2013,Education and training, NHS England Running Costs , BRIGHTON AND SUSSEX UNIVERSITY HOSPITALS NHS TRUST ,806087," 72,000.00 ",136791 ,
Department of Health,NHS England,31/07/2013,Services from other NHS bodies, Specialised Commissioning , BRIGHTON AND SUSSEX UNIVERSITY HOSPITALS NHS TRUST ,708539," 9,342,142.00 ",136999 ,
Department of Health,NHS England,31/07/2013,GPMS/APMS and PCTMS, Primary Care , BRINNINGTON HEALTH CENTRE BRINNINGTON ,586427," 38,764.39 ",SPT000000571,
Department of Health,NHS England,31/07/2013,GPMS/APMS and PCTMS, Primary Care , BRINNINGTON HEALTH CENTRE STOCKPORT ,586429," 38,100.46 ",SPT000000573,
Department of Health,NHS England,31/07/2013,GPMS/APMS and PCTMS, Primary Care , BRISTOL CITY COUNCIL ,581721," 48,984.00 ",5000999013912060000000 ,
Department of Health,NHS England,31/07/2013,Supplies and services � general, NHS England Running Costs , BRISTOL COMMUNITY HEALTH CIC ,806673,"-28,893.68 ",41261910 ,
Department of Health,NHS England,31/07/2013,Supplies and services � general, NHS England Running Costs , BRISTOL COMMUNITY HEALTH CIC ,806111," 28,893.68 ",41261830 ,
Department of Health,NHS England,31/07/2013,Purchase of healthcare from non-NHS bodies, Health & Justice , BRISTOL COMMUNITY HEALTH CIC ,622550," 192,206.25 ",41261776 ,
Department of Health,NHS England,31/07/2013,GPMS/APMS and PCTMS, Primary Care , BRIXTON HILL GROUP PRACTICE ,638155," 96,843.56 ",LNS000002562,
Department of Health,NHS England,31/07/2013,GPMS/APMS and PCTMS, Primary Care , BROAD LANE SURGERY ,597413," 45,812.13 ",COV000000828,
Department of Health,NHS England,31/07/2013,GPMS/APMS and PCTMS, Primary Care , BROADMEAD MEDICAL CENTRE ,602479," 83,042.67 ",BRS000001795,
Department of Health,NHS England,31/07/2013,GPMS/APMS and PCTMS, Primary Care , BROADMEAD SURGERY ,614474,"-38,156.88 ",LNM000001439,
Department of Health,NHS England,31/07/2013,GPMS/APMS and PCTMS, Primary Care , BROADMEAD SURGERY ,614475," 66,820.52 ",LNM000001440,
Department of Health,NHS England,31/07/2013,GPMS/APMS and PCTMS, Primary Care , BROADSHIRES HEALTH CENTRE ,758072," 82,410.42 ",OX000001319,
Department of Health,NHS England,31/07/2013,GPMS/APMS and PCTMS, Primary Care , BROADWATER FARM ,602921,"-42,484.67 ",LNE000001221,
Department of Health,NHS England,31/07/2013,GPMS/APMS and PCTMS, Primary Care , BROADWATER FARM ,606369," 70,338.40 ",LNE000001222,
Department of Health,NHS England,31/07/2013,GPMS/APMS and PCTMS, Primary Care , BROADWATER MEDICAL CENTRE ,686915," 61,351.50 ",TW000002438,
Department of Health,NHS England,31/07/2013,GPMS/APMS and PCTMS, Primary Care , BROADWAY MEDICAL CENTRE ,747118," 81,859.71 ",LA000002989,
Department of Health,NHS England,31/07/2013,GPMS/APMS and PCTMS, Primary Care , BROADWAY PRACTICE ,652874," 28,909.80 ",KC000003875,
Department of Health,NHS England,31/07/2013,GPMS/APMS and PCTMS, Primary Care , BROADWAY SURGERY ,706160," 43,782.97 ",LNB000000968,
Department of Health,NHS England,31/07/2013,GPMS/APMS and PCTMS, Primary Care , BROCKHURST MEDICAL CENTRE ,696761," 37,001.99 ",SO000003856,
Department of Health,NHS England,31/07/2013,GPMS/APMS and PCTMS, Primary Care , BROCKLEY SURGERY ,638157," 32,179.95 ",LNS000002564,
Department of Health,NHS England,31/07/2013,GPMS/APMS and PCTMS, Primary Care , BROCKWELL MEDICAL GROUP ,600305,"-25,761.95 ",NR000000731,
Department of Health,NHS England,31/07/2013,GPMS/APMS and PCTMS, Primary Care , BROCKWELL MEDICAL GROUP ,605885," 132,428.97 ",NR000000732,
Department of Health,NHS England,31/07/2013,GPMS/APMS and PCTMS, Primary Care , BROCKWELL PARK ,638159," 53,949.75 ",LNS000002566,
Department of Health,NHS England,31/07/2013,GPMS/APMS and PCTMS, Primary Care , BROCKWOOD MEDICAL PRACTICE ,602527," 104,546.42 ",SY000001843,
Department of Health,NHS England,31/07/2013,GPMS/APMS and PCTMS, Primary Care , BRODBIN & PARTNERS ,676616,"-31,391.34 ",BIK000000891,
Department of Health,NHS England,31/07/2013,GPMS/APMS and PCTMS, Primary Care , BRODBIN & PARTNERS ,686818," 32,990.28 ",BIK000000892,
Department of Health,NHS England,31/07/2013,GPMS/APMS and PCTMS, Primary Care , BROKEN CROSS SURGERY ,598002," 40,183.27 ",CH000001633,
Department of Health,NHS England,31/07/2013,GPMS/APMS and PCTMS, Primary Care , BROMLEY COMMON PRACTICE ,662142," 54,689.93 ",LNT000000839,
Department of Health,NHS England,31/07/2013,Purchase of healthcare from non-NHS bodies, Secondary and Community Dental Care , BROMLEY HEALTHCARE CIC ,695672," 96,583.00 ",25574095 ,
Department of Health,NHS England,31/07/2013,Purchase of healthcare from non-NHS bodies, Public Health , BROMLEY HEALTHCARE CIC ,760957," 338,847.00 ",25574094 ,
Department of Health,NHS England,31/07/2013,GPMS/APMS and PCTMS, Primary Care , BROMSGROVE DISTRICT COUNCIL ,548263," 36,738.00 ",110564-27-JUN-2013,
Department of Health,NHS England,31/07/2013,GPMS/APMS and PCTMS, Primary Care , BRONDESBURY MEDICAL CENTRE ,606697,"-67,864.68 ",LND000001151,
Department of Health,NHS England,31/07/2013,GPMS/APMS and PCTMS, Primary Care , BRONDESBURY MEDICAL CENTRE ,687201," 29,082.23 ",LND000001202,
Department of Health,NHS England,31/07/2013,GPMS/APMS and PCTMS, Primary Care , BRONDESBURY MEDICAL CENTRE ,606698," 174,869.35 ",LND000001152,
Department of Health,NHS England,31/07/2013,GPMS/APMS and PCTMS, Primary Care , BROOK GREEN MEDICAL CENTRE ,728766," 101,686.56 ",LNM000001653,
Department of Health,NHS England,31/07/2013,GPMS/APMS and PCTMS, Primary Care , BROOK HEALTH CENTRE ,614221," 89,897.52 ",NO000001239,
Department of Health,NHS England,31/07/2013,GPMS/APMS and PCTMS, Primary Care , BROOK HOUSE SURGERY ,696763," 36,759.33 ",SO000003858,
Department of Health,NHS England,31/07/2013,GPMS/APMS and PCTMS, Primary Care , BROOK LANE SURGERY ,705350," 95,345.63 ",SO000003860,
Department of Health,NHS England,31/07/2013,GPMS/APMS and PCTMS, Primary Care , BROOK MEDICAL CENTRE ,748778," 37,280.72 ",NO000001391,
Department of Health,NHS England,31/07/2013,GPMS/APMS and PCTMS, Primary Care , BROOKE ROAD SURGERY ,705720," 31,550.15 ",LNA000001450,
Department of Health,NHS England,31/07/2013,GPMS/APMS and PCTMS, Primary Care , BROOKE SURGERY ,733373,"-73,757.87 ",GMK000000852,
Department of Health,NHS England,31/07/2013,GPMS/APMS and PCTMS, Primary Care , BROOKE SURGERY ,733374," 76,653.56 ",GMK000000853,
Department of Health,NHS England,31/07/2013,GPMS/APMS and PCTMS, Primary Care , BROOKES & LEE ,637676,"-44,356.56 ",LIP000001621,
Department of Health,NHS England,31/07/2013,GPMS/APMS and PCTMS, Primary Care , BROOKES & LEE ,648632," 85,915.86 ",LIP000001622,
Department of Health,NHS England,31/07/2013,GPMS/APMS and PCTMS, Primary Care , BROOKFIELD PARK SURGERY ,758116,"-49,682.58 ",LND000001307,
Department of Health,NHS England,31/07/2013,GPMS/APMS and PCTMS, Primary Care , BROOKFIELD PARK SURGERY ,758117," 76,793.65 ",LND000001308,
Department of Health,NHS England,31/07/2013,GPMS/APMS and PCTMS, Primary Care , BROOKFIELD SURGERY ,676674,"-39,511.18 ",CH000001918,
Department of Health,NHS England,31/07/2013,GPMS/APMS and PCTMS, Primary Care , BROOKFIELD SURGERY ,539310," 41,052.74 ",CH000001558,
Department of Health,NHS England,31/07/2013,GPMS/APMS and PCTMS, Primary Care , BROOKFIELD SURGERY ,676675," 54,803.21 ",CH000001919,
Department of Health,NHS England,31/07/2013,GPMS/APMS and PCTMS, Primary Care , BROOKHOUSE MEDICAL CENTRE ,747120," 42,318.04 ",LA000002991,
Department of Health,NHS England,31/07/2013,GPMS/APMS and PCTMS, Primary Care , BROOKSIDE GROUP PRACTICE ,697387,"-35,253.00 ",BE000001763,
Department of Health,NHS England,31/07/2013,GPMS/APMS and PCTMS, Primary Care , BROOKSIDE GROUP PRACTICE ,697388," 201,528.14 ",BE000001764,
Department of Health,NHS England,31/07/2013,GPMS/APMS and PCTMS, Primary Care , BROOKSIDE HEALTH CENTRE ,696765,"-33,260.02 ",SO000003861,
Department of Health,NHS England,31/07/2013,GPMS/APMS and PCTMS, Primary Care , BROOKSIDE HEALTH CENTRE ,705351," 125,056.91 ",SO000003862,
Department of Health,NHS England,31/07/2013,GPMS/APMS and PCTMS, Primary Care , BROOKSIDE SURGERY ,698329," 27,521.73 ",WA000001226,
Department of Health,NHS England,31/07/2013,GPMS/APMS and PCTMS, Primary Care , BROOM LEYS SURGERY ,564335," 70,763.40 ",LD000001745,
Department of Health,NHS England,31/07/2013,GPMS/APMS and PCTMS, Primary Care , BROOMHILL SURGERY ,746254," 61,299.69 ",SHE000001254,
Department of Health,NHS England,31/07/2013,GPMS/APMS and PCTMS, Primary Care , BROOMWOOD ROAD SURGERY ,653415," 78,639.83 ",LNT000000841,
Department of Health,NHS England,31/07/2013,GPMS/APMS and PCTMS, Primary Care , BROSELEY MEDICAL PRACTICE ,698826," 37,671.06 ",SA000001501,
Department of Health,NHS England,31/07/2013,GPMS/APMS and PCTMS, Primary Care , BROUGHTON HOUSE SURGERY ,663382," 31,106.20 ",BU000001075,
Department of Health,NHS England,31/07/2013,GPMS/APMS and PCTMS, Primary Care , BROW MEDICAL CENTRE ,686916," 38,162.34 ",TW000002440,
Department of Health,NHS England,31/07/2013,GPMS/APMS and PCTMS, Primary Care , BROWN B J & PARTNERS ,597881," 59,230.09 ",EX000003322,
Department of Health,NHS England,31/07/2013,GPMS/APMS and PCTMS, Primary Care , BROWN CLEE MEDICAL PRACTICE ,698828," 29,167.38 ",SA000001503,
Department of Health,NHS England,31/07/2013,GPMS/APMS and PCTMS, Primary Care , BROWNHILL SURGERY ,705352," 52,907.65 ",SO000003864,
Department of Health,NHS England,31/07/2013,GPMS/APMS and PCTMS, Primary Care , BRUNE MEDICAL CENTRE ,705353," 89,430.47 ",SO000003866,
Department of Health,NHS England,31/07/2013,GPMS/APMS and PCTMS, Primary Care , BRUNEL MEDICAL PRACTICE BABBACOMBE TORQUAY ,539188," 124,032.75 ",DN000003037,
Department of Health,NHS England,31/07/2013,GPMS/APMS and PCTMS, Primary Care , BRUNEL MEDICAL PRACTICE BABBACOMBE TORQUAY ,788691," 139,295.20 ",DN000003863,
Department of Health,NHS England,31/07/2013,GPMS/APMS and PCTMS, Primary Care , BRUNSWICK HEALTH AND WELLBEING CENTRE ,695963," 43,272.74 ",115196-17-JUL-2013,
Department of Health,NHS England,31/07/2013,GPMS/APMS and PCTMS, Primary Care , BRUNSWICK HOUSE MEDICAL GROUP ,662054," 148,306.12 ",CU000001294,
Department of Health,NHS England,31/07/2013,GPMS/APMS and PCTMS, Primary Care , BRUNSWICK MEDICAL CENTRE UHPC ,606699,"-47,545.12 ",LND000001153,
Department of Health,NHS England,31/07/2013,GPMS/APMS and PCTMS, Primary Care , BRUNSWICK MEDICAL CENTRE UHPC ,606700," 153,101.05 ",LND000001154,
Department of Health,NHS England,31/07/2013,GPMS/APMS and PCTMS, Primary Care , BRYANT STREET ,662253," 48,908.90 ",KC000003879,
Department of Health,NHS England,31/07/2013,Establishment, NHS England Running Costs , BT GLOBAL SERVICES ,563396," 115,765.56 ",790094711 ,
Department of Health,NHS England,31/07/2013,Premises, Other , BT GLOBAL SERVICES ,636026," 127,322.79 ",329091 ,
Department of Health,NHS England,31/07/2013,Establishment, Other , BT GLOBAL SERVICES ,673070," 204,971.36 ",329093 ,
Department of Health,NHS England,31/07/2013,Establishment, NHS England Running Costs , BT GLOBAL SERVICES ,743144," 377,057.96 ",790095196 ,
Department of Health,NHS England,31/07/2013,GPMS/APMS and PCTMS, Primary Care , BUCHANAN ROAD SURGERY ,758831," 47,521.46 ",SHE000001249,
Department of Health,NHS England,31/07/2013,GPMS/APMS and PCTMS, Primary Care , BUCKFASTLEIGH MEDICAL CENTRE ,720883," 49,324.61 ",DN000003388,
Department of Health,NHS England,31/07/2013,Services from other NHS bodies, Health & Justice , BUCKINGHAMSHIRE HEALTHCARE NHS TRUST ,623085," 13,754.47 ",BB003875,
Department of Health,NHS England,31/07/2013,Services from other NHS bodies, Public Health , BUCKINGHAMSHIRE HEALTHCARE NHS TRUST ,622682," 57,191.84 ",BB003876,
Department of Health,NHS England,31/07/2013,Services from other NHS bodies, Primary Care , BUCKINGHAMSHIRE HEALTHCARE NHS TRUST ,623085," 160,968.98 ",BB003875,
Department of Health,NHS England,31/07/2013,Services from other NHS bodies, Secondary and Community Dental Care , BUCKINGHAMSHIRE HEALTHCARE NHS TRUST ,623085," 199,314.26 ",BB003875,
Department of Health,NHS England,31/07/2013,Services from other NHS bodies, Public Health , BUCKINGHAMSHIRE HEALTHCARE NHS TRUST ,623085," 776,232.20 ",BB003875,
Department of Health,NHS England,31/07/2013,Services from other NHS bodies, Specialised Commissioning , BUCKINGHAMSHIRE HEALTHCARE NHS TRUST ,622681," 3,759,445.37 ",BB003893,
Department of Health,NHS England,31/07/2013,GPMS/APMS and PCTMS, Primary Care , BUCKLAND SURGERY ,795160," 28,890.45 ",DN000003855,
Department of Health,NHS England,31/07/2013,GPMS/APMS and PCTMS, Primary Care , BUDBROOKE MEDICAL CENTRE ,698325," 34,415.55 ",WA000001220,
Department of Health,NHS England,31/07/2013,GPMS/APMS and PCTMS, Primary Care , BUDLEIGH SALTERTON MEDICAL CENTRE ,539185," 74,418.50 ",DN000003031,
Department of Health,NHS England,31/07/2013,GPMS/APMS and PCTMS, Primary Care , BUDLEIGH SALTERTON MEDICAL CENTRE ,788685," 81,759.80 ",DN000003857,
Department of Health,NHS England,31/07/2013,GPMS/APMS and PCTMS, Primary Care , BUDSHEAD MEDICAL PRACTICE TAMAR LCG ,539186," 50,353.03 ",DN000003033,
Department of Health,NHS England,31/07/2013,GPMS/APMS and PCTMS, Primary Care , BUDSHEAD MEDICAL PRACTICE TAMAR LCG ,788687," 55,546.27 ",DN000003859,
Department of Health,NHS England,31/07/2013,GPMS/APMS and PCTMS, Primary Care , BUGBROOKE MEDICAL PRACTICE ,614215,"-25,155.46 ",NO000001233,
Department of Health,NHS England,31/07/2013,GPMS/APMS and PCTMS, Primary Care , BUGBROOKE MEDICAL PRACTICE ,614216," 123,383.12 ",NO000001234,
Department of Health,NHS England,31/07/2013,GPMS/APMS and PCTMS, Primary Care , BULBANKS MEDICAL CENTRE ,600212,"-52,509.30 ",LNW000000798,
Department of Health,NHS England,31/07/2013,GPMS/APMS and PCTMS, Primary Care , BULBANKS MEDICAL CENTRE ,607239," 58,593.90 ",LNW000000799,
Department of Health,NHS England,31/07/2013,GPMS/APMS and PCTMS, Primary Care , BULL BELFITT & GUPTA ,705443," 52,970.74 ",DE000002174,
Department of Health,NHS England,31/07/2013,GPMS/APMS and PCTMS, Primary Care , BUNBURY MEDICAL PRACTICE ,598000," 104,603.16 ",CH000001631,
Department of Health,NHS England,31/07/2013,GPMS/APMS and PCTMS, Primary Care , BUNTINGFORD MEDICAL CENTRE ,758526," 48,158.73 ",HT000002081,
Department of Health,NHS England,31/07/2013,Purchase of healthcare from non-NHS bodies, Specialised Commissioning , BUPA HOME HEALTHCARE LTD ,613156," 26,251.72 ",SINV1188585,
Department of Health,NHS England,31/07/2013,Purchase of healthcare from non-NHS bodies, Specialised Commissioning , BUPA HOME HEALTHCARE LTD ,613106," 27,627.08 ",SINV1186686,
Department of Health,NHS England,31/07/2013,Supplies and services � clinical, Specialised Commissioning , BUPA HOME HEALTHCARE LTD ,695680," 28,665.00 ",SINV1193442,
Department of Health,NHS England,31/07/2013,Supplies and services � clinical, Specialised Commissioning , BUPA HOME HEALTHCARE LTD ,787422," 37,366.91 ",SINV1200836,
Department of Health,NHS England,31/07/2013,Purchase of healthcare from non-NHS bodies, Specialised Commissioning , BUPA HOME HEALTHCARE LTD ,648034," 41,468.89 ",SINV1193451,
Department of Health,NHS England,31/07/2013,Purchase of healthcare from non-NHS bodies, Specialised Commissioning , BUPA HOME HEALTHCARE LTD ,613105," 43,768.00 ",SINV1186684,
Department of Health,NHS England,31/07/2013,Purchase of healthcare from non-NHS bodies, Specialised Commissioning , BUPA HOME HEALTHCARE LTD ,695493," 60,168.00 ",SINV1193450,
Department of Health,NHS England,31/07/2013,Purchase of healthcare from non-NHS bodies, Specialised Commissioning , BUPA HOME HEALTHCARE LTD ,647518," 67,553.80 ",SINV1186687,
Department of Health,NHS England,31/07/2013,Purchase of healthcare from non-NHS bodies, Specialised Commissioning , BUPA HOME HEALTHCARE LTD ,647517," 71,940.00 ",SINV1186683,
Department of Health,NHS England,31/07/2013,Supplies and services � clinical, Specialised Commissioning , BUPA HOME HEALTHCARE LTD ,695681," 92,114.00 ",SINV1193441,
Department of Health,NHS England,31/07/2013,Purchase of healthcare from non-NHS bodies, Specialised Commissioning , BUPA HOME HEALTHCARE LTD ,647612," 143,886.33 ",SINV1188587,
Department of Health,NHS England,31/07/2013,Purchase of healthcare from non-NHS bodies, Specialised Commissioning , BUPA HOME HEALTHCARE LTD ,647613," 179,750.00 ",SINV1188586,
Department of Health,NHS England,31/07/2013,Supplies and services � clinical, Specialised Commissioning , BUPA HOME HEALTHCARE LTD ,731282," 234,516.06 ",SINV1193443,
Department of Health,NHS England,31/07/2013,Purchase of healthcare from non-NHS bodies, Specialised Commissioning , BUPA HOME HEALTHCARE LTD ,708750," 1,096,343.62 ",BHHMAY13NWSCG,
Department of Health,NHS England,31/07/2013,Purchase of healthcare from non-NHS bodies, Specialised Commissioning , BUPA HOME HEALTHCARE LTD ,708771," 1,099,801.33 ",BHHJUNE13NWSCG,
Department of Health,NHS England,31/07/2013,GPMS/APMS and PCTMS, Primary Care , BURDWOOD SURGERY ,607073," 73,190.47 ",BE000001601,
Department of Health,NHS England,31/07/2013,GPMS/APMS and PCTMS, Primary Care , BURGESS H ,605864," 97,792.14 ",MAN000000971,
Department of Health,NHS England,31/07/2013,GPMS/APMS and PCTMS, Primary Care , BURGESS ROAD SURGERY ,596736,"-83,118.93 ",SO000003505,
Department of Health,NHS England,31/07/2013,GPMS/APMS and PCTMS, Primary Care , BURGESS ROAD SURGERY ,596737," 160,337.94 ",SO000003506,
Department of Health,NHS England,31/07/2013,GPMS/APMS and PCTMS, Primary Care , BURN BRAE MEDICAL GROUP ,605884," 79,503.40 ",NR000000730,
Department of Health,NHS England,31/07/2013,GPMS/APMS and PCTMS, Primary Care , BURNCROSS SURGERY ,606927," 137,682.17 ",SHE000001067,
Department of Health,NHS England,31/07/2013,GPMS/APMS and PCTMS, Primary Care , BURNGREAVE SURGERY ,599077," 60,507.84 ",SHE000001069,
Department of Health,NHS England,31/07/2013,GPMS/APMS and PCTMS, Primary Care , BURNHAM HEALTH CENTRE ,663378," 122,980.77 ",BU000001071,
Department of Health,NHS England,31/07/2013,GPMS/APMS and PCTMS, Primary Care , BURNHAM MEDICAL CENTRE ,748951," 149,486.76 ",SM000001052,
Department of Health,NHS England,31/07/2013,GPMS/APMS and PCTMS, Primary Care , BURNLEY MEDICAL PRACTICE ,705948,"-35,931.23 ",LNL000001304,
Department of Health,NHS England,31/07/2013,GPMS/APMS and PCTMS, Primary Care , BURNLEY MEDICAL PRACTICE ,705949," 85,623.03 ",LNL000001305,
Department of Health,NHS England,31/07/2013,GPMS/APMS and PCTMS, Primary Care , BURNLEY WOOD MEDICAL CENTRE ,757803,"-45,345.94 ",LA000002982,
Department of Health,NHS England,31/07/2013,GPMS/APMS and PCTMS, Primary Care , BURNLEY WOOD MEDICAL CENTRE ,757804," 84,471.42 ",LA000002983,
Department of Health,NHS England,31/07/2013,GPMS/APMS and PCTMS, Primary Care , BURNS A & PARTNERS ,712476," 68,809.08 ",SY000002077,
Department of Health,NHS England,31/07/2013,GPMS/APMS and PCTMS, Primary Care , BURNTWOOD HEALTH & WELLBEING CENTRE ,624177," 63,567.31 ",ST000002844,
Department of Health,NHS England,31/07/2013,GPMS/APMS and PCTMS, Primary Care , BURRELL & PARTNERS ,598078,"-106,097.09 ",DR000001054,
Department of Health,NHS England,31/07/2013,GPMS/APMS and PCTMS, Primary Care , BURRELL & PARTNERS ,606809," 205,205.96 ",DR000001055,
Department of Health,NHS England,31/07/2013,GPMS/APMS and PCTMS, Primary Care , BURSLEDON SURGERY ,705346," 26,343.04 ",SO000003850,
Department of Health,NHS England,31/07/2013,GPMS/APMS and PCTMS, Primary Care , BURSTED WOOD SURGERY ,607241," 34,609.39 ",LNW000000801,
Department of Health,NHS England,31/07/2013,GPMS/APMS and PCTMS, Primary Care , BURTON & BRANSGORE MEDICAL CENTRES ,585808," 74,269.58 ",DO000001454,
Department of Health,NHS England,31/07/2013,General Dental services and personal dental services, Secondary and Community Dental Care , BURTON HOSPITALS NHS FOUNDATION TRUST ,635685," 115,000.00 ",IN0013005321,
Department of Health,NHS England,31/07/2013,General Dental services and personal dental services, Secondary and Community Dental Care , BURTON HOSPITALS NHS FOUNDATION TRUST ,635689," 115,000.00 ",IN001305401,
Department of Health,NHS England,31/07/2013,General Dental services and personal dental services, Secondary and Community Dental Care , BURTON HOSPITALS NHS FOUNDATION TRUST ,635692," 115,000.00 ",IN0013005571,
Department of Health,NHS England,31/07/2013,General Dental services and personal dental services, Secondary and Community Dental Care , BURTON HOSPITALS NHS FOUNDATION TRUST ,636141," 115,000.00 ",IN0013050931,
Department of Health,NHS England,31/07/2013,Services from other NHS bodies, Specialised Commissioning , BURTON HOSPITALS NHS FOUNDATION TRUST ,623349," 708,333.00 ",IN0013044351,
Department of Health,NHS England,31/07/2013,Services from other NHS bodies, Specialised Commissioning , BURTON HOSPITALS NHS FOUNDATION TRUST ,731984," 801,324.00 ",IN0013059941,
Department of Health,NHS England,31/07/2013,GPMS/APMS and PCTMS, Primary Care , BURTON LATIMER HEALTH CENTRE ,614217,"-26,718.58 ",NO000001235,
Department of Health,NHS England,31/07/2013,GPMS/APMS and PCTMS, Primary Care , BURTON LATIMER HEALTH CENTRE ,614218," 110,188.38 ",NO000001236,
Department of Health,NHS England,31/07/2013,GPMS/APMS and PCTMS, Primary Care , BURVILL HOUSE SURGERY ,602201," 121,134.96 ",HT000001829,
Department of Health,NHS England,31/07/2013,GPMS/APMS and PCTMS, Primary Care , BURWELL SURGERY ,705597," 69,244.00 ",CB000001997,
Department of Health,NHS England,31/07/2013,GPMS/APMS and PCTMS, Primary Care , BURY KNOWLE HEALTH CENTRE ,606459," 122,338.18 ",OX000001207,
Department of Health,NHS England,31/07/2013,GPMS/APMS and PCTMS, Primary Care , BURY ROAD SURGERY ,705348," 34,673.66 ",SO000003852,
Department of Health,NHS England,31/07/2013,GPMS/APMS and PCTMS, Primary Care , BUSH & PARTNERS ,676612,"-144,584.64 ",BIK000000885,
Department of Health,NHS England,31/07/2013,GPMS/APMS and PCTMS, Primary Care , BUSH & PARTNERS ,564955," 55,288.39 ",BIK000000766,
Department of Health,NHS England,31/07/2013,GPMS/APMS and PCTMS, Primary Care , BUSH & PARTNERS ,676613," 167,544.21 ",BIK000000886,
Department of Health,NHS England,31/07/2013,GPMS/APMS and PCTMS, Primary Care , BUSH HILL PARK MEDICAL CENTRE ,751686," 35,597.58 ",LNE000001373,
Department of Health,NHS England,31/07/2013,GPMS/APMS and PCTMS, Primary Care , BUSHFIELD HEALTH CENTRE ,705599," 45,758.02 ",CB000001999,
Department of Health,NHS England,31/07/2013,GPMS/APMS and PCTMS, Primary Care , BUTCHERY SURGERY ,662251," 29,499.24 ",KC000003873,
Department of Health,NHS England,31/07/2013,GPMS/APMS and PCTMS, Primary Care , BUTE HOUSE MEDICAL PRACTICE ,758946," 68,105.53 ",BD000001338,
Department of Health,NHS England,31/07/2013,GPMS/APMS and PCTMS, Primary Care , BUTE HOUSE SURGERY ,585810," 46,621.01 ",DO000001456,
Department of Health,NHS England,31/07/2013,GPMS/APMS and PCTMS, Primary Care , BUTLER S & PARTNERS ,606499," 77,169.91 ",EX000003320,
Department of Health,NHS England,31/07/2013,GPMS/APMS and PCTMS, Primary Care , BUXTED SURGERY ,676989,"-29,668.44 ",TE000002002,
Department of Health,NHS England,31/07/2013,GPMS/APMS and PCTMS, Primary Care , BUXTED SURGERY ,663619," 26,499.38 ",TE000001856,
Department of Health,NHS England,31/07/2013,GPMS/APMS and PCTMS, Primary Care , BUXTED SURGERY ,686774," 117,232.59 ",TE000002003,
Department of Health,NHS England,31/07/2013,GPMS/APMS and PCTMS, Primary Care , BYFIELD MEDICAL CENTRE ,748776," 45,381.22 ",NO000001389,
Department of Health,NHS England,31/07/2013,GPMS/APMS and PCTMS, Primary Care , BYRNE & PARTNERS ,740818," 29,918.10 ",LIP000001887,
Department of Health,NHS England,31/07/2013,GPMS/APMS and PCTMS, Primary Care , C J D PEACH ,606014," 132,607.79 ",LNP000001760,
Department of Health,NHS England,31/07/2013,GPMS/APMS and PCTMS, Primary Care , C J ELLIOTT ,606015," 102,932.91 ",LNP000001762,
Department of Health,NHS England,31/07/2013,General Opthalmic services, Primary Care , C J PACKFORD (OPTICIANS) LTD ,549204," 25,139.60 ",3905225_S,
Department of Health,NHS England,31/07/2013,GPMS/APMS and PCTMS, Primary Care , C M KROLL ,606016," 125,802.40 ",LNP000001764,
Department of Health,NHS England,31/07/2013,GPMS/APMS and PCTMS, Primary Care , C PERERA ,602650," 45,922.54 ",LNP000001766,
Department of Health,NHS England,31/07/2013,GPMS/APMS and PCTMS, Primary Care , C RIBEIRO ,606017," 105,800.66 ",LNP000001768,
Department of Health,NHS England,31/07/2013,GPMS/APMS and PCTMS, Primary Care , C T C MARKS ,706446," 25,211.74 ",LNC000001105,
Department of Health,NHS England,31/07/2013,GPMS/APMS and PCTMS, Primary Care , C TRAN ,599561,"-54,470.32 ",LNC000001028,
Department of Health,NHS England,31/07/2013,GPMS/APMS and PCTMS, Primary Care , C TRAN ,606175," 65,481.27 ",LNC000001029,
Department of Health,NHS England,31/07/2013,GPMS/APMS and PCTMS, Primary Care , CA STEDALL ,741044," 37,422.47 ",WAL000000839,
Department of Health,NHS England,31/07/2013,GPMS/APMS and PCTMS, Primary Care , CABIN SURGERY ,747116,"-39,671.36 ",LA000002986,
Department of Health,NHS England,31/07/2013,GPMS/APMS and PCTMS, Primary Care , CABIN SURGERY ,757805," 74,859.68 ",LA000002987,
Department of Health,NHS England,31/07/2013,GPMS/APMS and PCTMS, Primary Care , CADDINGTON MEDICAL PRACTICE ,758948," 39,542.38 ",BD000001340,
Department of Health,NHS England,31/07/2013,GPMS/APMS and PCTMS, Primary Care , CAEN MEDICAL CENTRE ,548878,"-28,488.03 ",DN000003034,
Department of Health,NHS England,31/07/2013,GPMS/APMS and PCTMS, Primary Care , CAEN MEDICAL CENTRE ,539187," 101,356.38 ",DN000003035,
Department of Health,NHS England,31/07/2013,GPMS/APMS and PCTMS, Primary Care , CAEN MEDICAL CENTRE ,788689," 111,597.47 ",DN000003861,
Department of Health,NHS England,31/07/2013,GPMS/APMS and PCTMS, Primary Care , CALCOT MEDICAL CENTRE ,663380," 62,034.18 ",BU000001073,
Department of Health,NHS England,31/07/2013,GPMS/APMS and PCTMS, Primary Care , CALDBECK SURGERY ,662052," 51,173.25 ",CU000001290,
Department of Health,NHS England,31/07/2013,Services from other NHS bodies, Public Health , CALDERDALE & HUDDERSFIELD NHS FOUNDATION TRUST ,621932," 49,525.00 ",4710006362 ,
Department of Health,NHS England,31/07/2013,Services from other NHS bodies, Specialised Commissioning , CALDERDALE & HUDDERSFIELD NHS FOUNDATION TRUST ,685863," 58,057.61 ",4710008544 ,
Department of Health,NHS England,31/07/2013,Services from other NHS bodies, Secondary and Community Dental Care , CALDERDALE & HUDDERSFIELD NHS FOUNDATION TRUST ,647292," 174,000.00 ",4710010010 ,
Department of Health,NHS England,31/07/2013,Services from other NHS bodies, Secondary and Community Dental Care , CALDERDALE & HUDDERSFIELD NHS FOUNDATION TRUST ,647911," 174,000.00 ",4710010699 ,
Department of Health,NHS England,31/07/2013,Services from other NHS bodies, Public Health , CALDERDALE & HUDDERSFIELD NHS FOUNDATION TRUST ,647292," 558,021.00 ",4710010010 ,
Department of Health,NHS England,31/07/2013,Services from other NHS bodies, Public Health , CALDERDALE & HUDDERSFIELD NHS FOUNDATION TRUST ,647911," 558,021.00 ",4710010699 ,
Department of Health,NHS England,31/07/2013,Services from other NHS bodies, Specialised Commissioning , CALDERDALE & HUDDERSFIELD NHS FOUNDATION TRUST ,596139," 1,462,272.00 ",4710010009 ,
Department of Health,NHS England,31/07/2013,Services from other NHS bodies, Specialised Commissioning , CALDERSTONES PARTNERSHIP NHS FOUNDATION TRUST ,573265," 2,336,636.00 ",M0009954,
Department of Health,NHS England,31/07/2013,Services from other NHS bodies, Specialised Commissioning , CALDERSTONES PARTNERSHIP NHS FOUNDATION TRUST ,799256," 2,336,636.00 ",M0010218,
Department of Health,NHS England,31/07/2013,GPMS/APMS and PCTMS, Primary Care , CALLAGHAN JM & PARTNERS ,732470,"-53,216.23 ",LIP000001888,
Department of Health,NHS England,31/07/2013,GPMS/APMS and PCTMS, Primary Care , CALLAGHAN JM & PARTNERS ,597767," 51,185.83 ",LIP000001498,
Department of Health,NHS England,31/07/2013,GPMS/APMS and PCTMS, Primary Care , CALLAGHAN JM & PARTNERS ,740819," 64,552.68 ",LIP000001889,
Department of Health,NHS England,31/07/2013,GPMS/APMS and PCTMS, Primary Care , CALLOWLAND SURGERY ,758529," 85,205.96 ",HT000002085,
Department of Health,NHS England,31/07/2013,GPMS/APMS and PCTMS, Primary Care , CAMBERWELL GREEN SURGERY ,605931," 104,142.32 ",LNS000002560,
Department of Health,NHS England,31/07/2013,GPMS/APMS and PCTMS, Primary Care , CAMBRIDGE AVENUE MEDICAL CENTRE ,747783," 127,343.15 ",KHU000001660,
Department of Health,NHS England,31/07/2013,GPMS/APMS and PCTMS, Primary Care , CAMBRIDGE MEDICAL GROUP ,661954," 62,723.44 ",MID000001056,
Department of Health,NHS England,31/07/2013,Services from other NHS bodies, Specialised Commissioning , CAMBRIDGE UNIVERSITY HOSPITALS NHS FOUNDATION TRUST ,622803," 18,917,405.24 ",70010356 ,
Department of Health,NHS England,31/07/2013,Services from other NHS bodies, Health & Justice , CAMBRIDGESHIRE & PETERBOROUGH MENTAL HEALTH PARTNERSHIP NHS FOUNDATION TRUST ,743032," 245,698.00 ",9900009768 ,
Department of Health,NHS England,31/07/2013,Services from other NHS bodies, Specialised Commissioning , CAMBRIDGESHIRE & PETERBOROUGH MENTAL HEALTH PARTNERSHIP NHS FOUNDATION TRUST ,622490," 289,148.00 ",9900009766 ,
Department of Health,NHS England,31/07/2013,Services from other NHS bodies, Specialised Commissioning , CAMBRIDGESHIRE & PETERBOROUGH MENTAL HEALTH PARTNERSHIP NHS FOUNDATION TRUST ,647047," 289,148.00 ",9900009596 ,
Department of Health,NHS England,31/07/2013,Services from other NHS bodies, Specialised Commissioning , CAMBRIDGESHIRE & PETERBOROUGH MENTAL HEALTH PARTNERSHIP NHS FOUNDATION TRUST ,647940," 289,148.00 ",9900009925 ,
Department of Health,NHS England,31/07/2013,Services from other NHS bodies, Specialised Commissioning , CAMBRIDGESHIRE & PETERBOROUGH MENTAL HEALTH PARTNERSHIP NHS FOUNDATION TRUST ,622493," 463,618.00 ",9900009765 ,
Department of Health,NHS England,31/07/2013,Services from other NHS bodies, Specialised Commissioning , CAMBRIDGESHIRE & PETERBOROUGH MENTAL HEALTH PARTNERSHIP NHS FOUNDATION TRUST ,647942," 463,618.00 ",9900009924 ,
Department of Health,NHS England,31/07/2013,Services from other NHS bodies, Specialised Commissioning , CAMBRIDGESHIRE & PETERBOROUGH MENTAL HEALTH PARTNERSHIP NHS FOUNDATION TRUST ,743028," 463,618.00 ",9900009595 ,
Department of Health,NHS England,31/07/2013,Services from other NHS bodies, Specialised Commissioning , CAMBRIDGESHIRE COMMUNITY SERVICES ,647952," 171,333.33 ",8500015442 ,
Department of Health,NHS England,31/07/2013,Services from other NHS bodies, Public Health , CAMBRIDGESHIRE COMMUNITY SERVICES ,647953," 713,416.67 ",8500015438 ,
Department of Health,NHS England,31/07/2013,GPMS/APMS and PCTMS, Primary Care , Cambridgeshire Local Medical Committee ,572874," 34,985.21 ",110868-01-JUL-2013,
Department of Health,NHS England,31/07/2013,Services from other NHS bodies, Health & Justice , CAMDEN & ISLINGTON NHS FOUNDATION TRUST ,686036," 30,195.00 ",50004185 ,
Department of Health,NHS England,31/07/2013,Education and training, Other , CAMDEN & ISLINGTON NHS FOUNDATION TRUST ,775000," 175,000.00 ",50004245 ,
Department of Health,NHS England,31/07/2013,Services from other NHS bodies, Health & Justice , CAMDEN & ISLINGTON NHS FOUNDATION TRUST ,775694," 241,564.00 ",50004263 ,
Department of Health,NHS England,31/07/2013,GPMS/APMS and PCTMS, Primary Care , CAMDEN HEALTH IMPROVEMENT PRACTICE ,602313," 56,666.87 ",LND000001150,
Department of Health,NHS England,31/07/2013,GPMS/APMS and PCTMS, Primary Care , CAMERON & PARTNER ,686816,"-54,180.90 ",BIK000000887,
Department of Health,NHS England,31/07/2013,GPMS/APMS and PCTMS, Primary Care , CAMERON & PARTNER ,686817," 68,838.56 ",BIK000000888,
Department of Health,NHS England,31/07/2013,GPMS/APMS and PCTMS, Primary Care , CAMPBELL SURGERY ,584436," 45,951.50 ",SO000003508,
Department of Health,NHS England,31/07/2013,GPMS/APMS and PCTMS, Primary Care , CAMPHOR IA ,676615," 34,221.25 ",BIK000000890,
Department of Health,NHS England,31/07/2013,GPMS/APMS and PCTMS, Primary Care , CAMROSE MEDICAL PARTNERSHIP ,705349," 97,077.22 ",SO000003854,
Department of Health,NHS England,31/07/2013,GPMS/APMS and PCTMS, Primary Care , CANBERRA CENTRE FOR HEALTH ,614859," 37,732.50 ",LNM000001438,
Department of Health,NHS England,31/07/2013,GPMS/APMS and PCTMS, Primary Care , CANBURY MEDICAL CENTRE ,713759," 82,756.43 ",LNN000001011,
Department of Health,NHS England,31/07/2013,GPMS/APMS and PCTMS, Primary Care , CANFORD HEATH GROUP PRACTICE ,596625," 96,125.15 ",DO000001452,
Department of Health,NHS England,31/07/2013,GPMS/APMS and PCTMS, Primary Care , CANNINGTON HEALTH CENTRE ,748949," 73,670.17 ",SM000001050,
Department of Health,NHS England,31/07/2013,GPMS/APMS and PCTMS, Primary Care , CANUTE SURGERY ,705344," 46,407.03 ",SO000003846,
Department of Health,NHS England,31/07/2013,GPMS/APMS and PCTMS, Primary Care , CAPE ROAD SURGERY ,698326," 35,201.49 ",WA000001222,
Department of Health,NHS England,31/07/2013,GPMS/APMS and PCTMS, Primary Care , CAPELFIELD SURGERY ,602526," 56,396.30 ",SY000001841,
Department of Health,NHS England,31/07/2013,Consultancy services, NHS England Running Costs , CAPGEMINI UK PLC ,547842," 36,086.95 ",26020080754845 ,
Department of Health,NHS England,31/07/2013,GPMS/APMS and PCTMS, Primary Care , CAPLAN M ,740877," 38,233.25 ",MAN000001099,
Department of Health,NHS England,31/07/2013,Supplies and services � general, NHS England Running Costs , CAPSTICKS SOLICITORS ,685694," 100,000.00 ",HRP071,
Department of Health,NHS England,31/07/2013,Other professional fees, NHS England Running Costs , CAPSTICKS SOLICITORS LLP ,595128," 26,964.40 ",12NCB1070319,
Department of Health,NHS England,31/07/2013,Other professional fees, NHS England Running Costs , CAPSTICKS SOLICITORS LLP ,672938," 59,309.74 ",5CHP05047750,
Department of Health,NHS England,31/07/2013,Other professional fees, NHS England Running Costs , CAPSTICKS SOLICITORS LLP ,672944," 66,308.80 ",218166 ,
Department of Health,NHS England,31/07/2013,Other professional fees, NHS England Running Costs , CAPSTICKS SOLICITORS LLP ,672960," 78,279.22 ",218159 ,
Department of Health,NHS England,31/07/2013,GPMS/APMS and PCTMS, Primary Care , CAPTAIN FRENCH LANE SURGERY ,662051," 76,866.82 ",CU000001288,
Department of Health,NHS England,31/07/2013,Purchase of healthcare from non-NHS bodies, Specialised Commissioning , CARDIFF AND VALE ULHB ,636154," 87,075.00 ",342076 ,
Department of Health,NHS England,31/07/2013,Purchase of healthcare from non-NHS bodies, Specialised Commissioning , CARDIFF AND VALE ULHB ,647498," 174,150.00 ",341316 ,
Department of Health,NHS England,31/07/2013,Purchase of healthcare from non-NHS bodies, Specialised Commissioning , CARE FERTILITY ,774430," 39,810.00 ",172111 ,
Department of Health,NHS England,31/07/2013,Purchase of healthcare from non-NHS bodies, Specialised Commissioning , CARE FERTILITY ,774431," 45,745.00 ",172114 ,
Department of Health,NHS England,31/07/2013,GPMS/APMS and PCTMS, Primary Care , CARE HOME MEDICAL PRACTICE ,564129,"-114,224.05 ",SLF000000851,
Department of Health,NHS England,31/07/2013,GPMS/APMS and PCTMS, Primary Care , CARE HOME MEDICAL PRACTICE ,564130," 201,235.98 ",SLF000000852,
Department of Health,NHS England,31/07/2013,Purchase of healthcare from non-NHS bodies, Specialised Commissioning , CARE UK ,647977," 235,043.20 ",RFARM000242,
Department of Health,NHS England,31/07/2013,Purchase of healthcare from non-NHS bodies, Health & Justice , CARE UK CLINICAL SERVICES LTD ,572468,"-323,282.07 ",120014879 ,
Department of Health,NHS England,31/07/2013,Purchase of healthcare from non-NHS bodies, Health & Justice , CARE UK CLINICAL SERVICES LTD ,730738," 48,891.94 ",120015553 ,
Department of Health,NHS England,31/07/2013,Purchase of healthcare from non-NHS bodies, Public Health , CARE UK CLINICAL SERVICES LTD ,743142," 64,805.00 ",120015052 ,
Department of Health,NHS England,31/07/2013,Purchase of healthcare from non-NHS bodies, Public Health , CARE UK CLINICAL SERVICES LTD ,797727," 64,805.00 ",120015922 ,
Department of Health,NHS England,31/07/2013,GPMS/APMS and PCTMS, Primary Care , CARE UK CLINICAL SERVICES LTD ,786748," 93,364.91 ",120015756 ,
Department of Health,NHS England,31/07/2013,GPMS/APMS and PCTMS, Primary Care , CARE UK CLINICAL SERVICES LTD ,708707," 111,342.17 ",120016116 ,
Department of Health,NHS England,31/07/2013,GPMS/APMS and PCTMS, Primary Care , CARE UK CLINICAL SERVICES LTD ,708489," 135,771.00 ",120015666 ,
Department of Health,NHS England,31/07/2013,Purchase of healthcare from non-NHS bodies, Health & Justice , CARE UK CLINICAL SERVICES LTD ,531268," 168,073.67 ",120013642 ,
Department of Health,NHS England,31/07/2013,Purchase of healthcare from non-NHS bodies, Health & Justice , CARE UK CLINICAL SERVICES LTD ,685889," 184,750.00 ",120014817 ,
Department of Health,NHS England,31/07/2013,Purchase of healthcare from non-NHS bodies, Health & Justice , CARE UK CLINICAL SERVICES LTD ,537080," 212,630.00 ",120013646 ,
Department of Health,NHS England,31/07/2013,Purchase of healthcare from non-NHS bodies, Health & Justice , CARE UK CLINICAL SERVICES LTD ,622952," 212,630.00 ",120015562 ,
Department of Health,NHS England,31/07/2013,Purchase of healthcare from non-NHS bodies, Health & Justice , CARE UK CLINICAL SERVICES LTD ,661403," 295,416.67 ",120014814 ,
Department of Health,NHS England,31/07/2013,Purchase of healthcare from non-NHS bodies, Health & Justice , CARE UK CLINICAL SERVICES LTD ,622649," 313,409.79 ",120015015 ,
Department of Health,NHS England,31/07/2013,Purchase of healthcare from non-NHS bodies, Health & Justice , CARE UK CLINICAL SERVICES LTD ,647737," 313,409.79 ",120015662 ,
Department of Health,NHS England,31/07/2013,Purchase of healthcare from non-NHS bodies, Health & Justice , CARE UK CLINICAL SERVICES LTD ,622953," 323,282.07 ",120015563 ,
Department of Health,NHS England,31/07/2013,Purchase of healthcare from non-NHS bodies, Health & Justice , CARE UK CLINICAL SERVICES LTD ,661153," 323,282.07 ",120014647 ,
Department of Health,NHS England,31/07/2013,Purchase of healthcare from non-NHS bodies, Health & Justice , CARE UK CLINICAL SERVICES LTD ,531271," 340,013.00 ",120013645 ,
Department of Health,NHS England,31/07/2013,Purchase of healthcare from non-NHS bodies, Health & Justice , CARE UK CLINICAL SERVICES LTD ,636079," 340,013.00 ",120015561 ,
Department of Health,NHS England,31/07/2013,Purchase of healthcare from non-NHS bodies, Health & Justice , CARE UK CLINICAL SERVICES LTD ,531275," 405,002.33 ",120013643 ,
Department of Health,NHS England,31/07/2013,Purchase of healthcare from non-NHS bodies, Health & Justice , CARE UK CLINICAL SERVICES LTD ,636078," 405,002.33 ",120015559 ,
Department of Health,NHS England,31/07/2013,Purchase of healthcare from non-NHS bodies, Health & Justice , CARE UK CLINICAL SERVICES LTD ,661311," 423,226.00 ",120015233 ,
Department of Health,NHS England,31/07/2013,Purchase of healthcare from non-NHS bodies, Health & Justice , CARE UK CLINICAL SERVICES LTD ,685904," 1,613,014.33 ",120016020 ,
Department of Health,NHS England,31/07/2013,Purchase of healthcare from non-NHS bodies, NHS England Running Costs , CARE UK CLINICAL SERVICES LTD ,573309," 2,103,846.14 ",120015302 ,
Department of Health,NHS England,31/07/2013,Purchase of healthcare from non-NHS bodies, NHS England Running Costs , CARE UK CLINICAL SERVICES LTD ,744068," 2,129,362.17 ",120016897 ,
Department of Health,NHS England,31/07/2013,GPMS/APMS and PCTMS, Primary Care , CARE UK CLINICAL SERVICES LTD BIRMINGHAM ,699229," 127,571.90 ",BIR000002219,
Department of Health,NHS England,31/07/2013,GPMS/APMS and PCTMS, Primary Care , CARE UK CLINICAL SERVICES LTD SOUTHEND ON SEA ,606498," 103,926.95 ",EX000003318,
Department of Health,NHS England,31/07/2013,GPMS/APMS and PCTMS, Primary Care , CARE UK LTD ,606202," 99,531.36 ",LNC000001078,
Department of Health,NHS England,31/07/2013,GPMS/APMS and PCTMS, Primary Care , CARE UK LTD ,647298," 114,317.46 ",120014702 ,
Department of Health,NHS England,31/07/2013,GPMS/APMS and PCTMS, Primary Care , CAREPOINT PRACTICE ,706171," 38,266.90 ",LNK000000494,
Department of Health,NHS England,31/07/2013,GPMS/APMS and PCTMS, Primary Care , CARFAX HEALTH ENTERPRISE ,636976," 196,521.69 ",WL000001460,
Department of Health,NHS England,31/07/2013,Purchase of healthcare from non-NHS bodies, Specialised Commissioning , CARING HOMES GROUP ,622833," 212,523.60 ",57600882TO57600898,
Department of Health,NHS England,31/07/2013,GPMS/APMS and PCTMS, Primary Care , CARISBROOKE HEALTH CENTRE ,696757,"-30,308.15 ",SO000003847,
Department of Health,NHS England,31/07/2013,GPMS/APMS and PCTMS, Primary Care , CARISBROOKE HEALTH CENTRE ,705345," 90,513.98 ",SO000003848,
Department of Health,NHS England,31/07/2013,GPMS/APMS and PCTMS, Primary Care , CARISBROOKE SURGERY ,686773," 76,087.99 ",TE000002001,
Department of Health,NHS England,31/07/2013,GPMS/APMS and PCTMS, Primary Care , CARITAS GENERAL PRACTICE PARTNERSHIP ,586425," 116,023.27 ",SPT000000569,
Department of Health,NHS England,31/07/2013,GPMS/APMS and PCTMS, Primary Care , CARITAS GROUP PRACTICE ,648581," 102,172.95 ",YW000001254,
Department of Health,NHS England,31/07/2013,GPMS/APMS and PCTMS, Primary Care , CARLETON PRACTICE ,747113," 31,495.96 ",LA000002981,
Department of Health,NHS England,31/07/2013,GPMS/APMS and PCTMS, Primary Care , CARLISLE HOUSE SURGERY ,713025," 44,644.73 ",DO000001648,
Department of Health,NHS England,31/07/2013,GPMS/APMS and PCTMS, Primary Care , CARLTON HOUSE SURGERY ,751680,"-192,204.80 ",LNE000001370,
Department of Health,NHS England,31/07/2013,GPMS/APMS and PCTMS, Primary Care , CARLTON HOUSE SURGERY ,751682," 278,556.08 ",LNE000001371,
Department of Health,NHS England,31/07/2013,GPMS/APMS and PCTMS, Primary Care , CARODOC SURGERY ,741091," 55,235.56 ",DR000001304,
Department of Health,NHS England,31/07/2013,GPMS/APMS and PCTMS, Primary Care , CARRFIELD MEDICAL CENTRE ,606928," 28,740.01 ",SHE000001071,
Department of Health,NHS England,31/07/2013,GPMS/APMS and PCTMS, Primary Care , CARRINGTON HOUSE SURGERY ,663387," 70,015.98 ",BU000001081,
Department of Health,NHS England,31/07/2013,GPMS/APMS and PCTMS, Primary Care , CARTERKNOWLE & DORE MEDICAL PRACTICE ,758833," 88,094.04 ",SHE000001258,
Department of Health,NHS England,31/07/2013,GPMS/APMS and PCTMS, Primary Care , CASSIDY MEDICAL CENTRE ,614861," 82,218.90 ",LNM000001442,
Department of Health,NHS England,31/07/2013,GPMS/APMS and PCTMS, Primary Care , CASTLE GARDENS MEDICAL CENTRE ,746757," 67,589.48 ",EX000003717,
Department of Health,NHS England,31/07/2013,GPMS/APMS and PCTMS, Primary Care , CASTLE GARDENS SURGERY ,720898," 56,510.79 ",DN000003406,
Department of Health,NHS England,31/07/2013,GPMS/APMS and PCTMS, Primary Care , CASTLE MEADOWS SURGERY ,712701,"-40,157.32 ",DUD000000577,
Department of Health,NHS England,31/07/2013,GPMS/APMS and PCTMS, Primary Care , CASTLE MEADOWS SURGERY ,721061," 77,109.12 ",DUD000000578,
Department of Health,NHS England,31/07/2013,GPMS/APMS and PCTMS, Primary Care , CASTLE MEDICAL CENTRE ,698333," 92,223.72 ",WA000001230,
Department of Health,NHS England,31/07/2013,GPMS/APMS and PCTMS, Primary Care , CASTLE MEDICAL GROUP ,757806,"-117,427.76 ",LA000002992,
Department of Health,NHS England,31/07/2013,GPMS/APMS and PCTMS, Primary Care , CASTLE MEDICAL GROUP ,757807," 206,875.20 ",LA000002993,
Department of Health,NHS England,31/07/2013,GPMS/APMS and PCTMS, Primary Care , CASTLE PLACE SURGERY TIVERTON ,548887," 120,681.27 ",DN000003053,
Department of Health,NHS England,31/07/2013,GPMS/APMS and PCTMS, Primary Care , CASTLE PLACE SURGERY TIVERTON ,788705," 132,574.43 ",DN000003879,
Department of Health,NHS England,31/07/2013,GPMS/APMS and PCTMS, Primary Care , CASTLE PRACTICE ,573634," 59,769.86 ",CR000000894,
Department of Health,NHS England,31/07/2013,GPMS/APMS and PCTMS, Primary Care , CASTLE ST ,758952," 73,842.64 ",BD000001344,
Department of Health,NHS England,31/07/2013,GPMS/APMS and PCTMS, Primary Care , CASTLEFOROAD MEDICAL PRACTICE ,605648,"-51,756.21 ",WAK000000571,
Department of Health,NHS England,31/07/2013,GPMS/APMS and PCTMS, Primary Care , CASTLEFOROAD MEDICAL PRACTICE ,598402," 106,583.82 ",WAK000000572,
Department of Health,NHS England,31/07/2013,GPMS/APMS and PCTMS, Primary Care , CASTLEGATE SURGERY COCKERMOUTH ,662057," 90,674.80 ",CU000001298,
Department of Health,NHS England,31/07/2013,GPMS/APMS and PCTMS, Primary Care , CASTLEGATE SURGERY HERTFORD ,758540," 54,839.75 ",HT000002097,
Department of Health,NHS England,31/07/2013,GPMS/APMS and PCTMS, Primary Care , CASTLEHEAD MEDICAL CENTRE ,662059," 74,248.92 ",CU000001300,
Department of Health,NHS England,31/07/2013,GPMS/APMS and PCTMS, Primary Care , CASTLETON HEALTH CENTRE ,734018," 78,023.99 ",ROC000000796,
Department of Health,NHS England,31/07/2013,GPMS/APMS and PCTMS, Primary Care , CASTLETON ROAD HEALTH CENTRE ,706162," 31,108.47 ",LNB000000979,
Department of Health,NHS England,31/07/2013,Premises, Specialised Commissioning , CATER & CO THE SOCIAL KINETIC ,730729," 54,000.00 ",1128 ,
Department of Health,NHS England,31/07/2013,GPMS/APMS and PCTMS, Primary Care , CATER STREET SURGERY ,601243," 41,145.30 ",BD000001177,
Department of Health,NHS England,31/07/2013,GPMS/APMS and PCTMS, Primary Care , CATHEDRAL MEDICAL CENTRE ,596482," 73,481.17 ",CB000001655,
Department of Health,NHS England,31/07/2013,GPMS/APMS and PCTMS, Primary Care , CATHEDRAL MEDICAL GROUP ,607054," 105,366.34 ",TW000002042,
Department of Health,NHS England,31/07/2013,GPMS/APMS and PCTMS, Primary Care , CATOR MEDICAL CENTRE ,653421,"-29,474.95 ",LNT000000848,
Department of Health,NHS England,31/07/2013,GPMS/APMS and PCTMS, Primary Care , CATOR MEDICAL CENTRE ,653422," 49,507.00 ",LNT000000849,
Department of Health,NHS England,31/07/2013,GPMS/APMS and PCTMS, Primary Care , CATTERICK VILLAGE SURGERY ,599147," 54,174.11 ",YN000001617,
Department of Health,NHS England,31/07/2013,GPMS/APMS and PCTMS, Primary Care , CAUSEWAY MEDICAL CENTRE ,605843," 62,066.99 ",CH000001639,
Department of Health,NHS England,31/07/2013,GPMS/APMS and PCTMS, Primary Care , CAVENDISH HEALTH CENTRE ,606242," 66,572.44 ",LNJ000000999,
Department of Health,NHS England,31/07/2013,GPMS/APMS and PCTMS, Primary Care , CAVERSHAM GROUP PRACTICE ,758120,"-192,964.29 ",LND000001311,
Department of Health,NHS England,31/07/2013,GPMS/APMS and PCTMS, Primary Care , CAVERSHAM GROUP PRACTICE ,687203," 28,536.06 ",LND000001204,
Department of Health,NHS England,31/07/2013,GPMS/APMS and PCTMS, Primary Care , CAVERSHAM GROUP PRACTICE ,758121," 317,004.60 ",LND000001312,
Department of Health,NHS England,31/07/2013,GPMS/APMS and PCTMS, Primary Care , CAXTON SURGERY ,697664," 105,852.79 ",SA000001422,
Department of Health,NHS England,31/07/2013,GPMS/APMS and PCTMS, Primary Care , CCA CARE PARTNERSHIP ,687282," 33,000.00 ",CH000002046,
Department of Health,NHS England,31/07/2013,GPMS/APMS and PCTMS, Primary Care , CCA CARE PARTNERSHIP ,598008," 129,745.66 ",CH000001641,
Department of Health,NHS England,31/07/2013,GPMS/APMS and PCTMS, Primary Care , CECIL LOBO ,599892,"-106,716.44 ",LNA000001317,
Department of Health,NHS England,31/07/2013,GPMS/APMS and PCTMS, Primary Care , CECIL LOBO ,599893," 194,607.24 ",LNA000001318,
Department of Health,NHS England,31/07/2013,GPMS/APMS and PCTMS, Primary Care , CEDAR BROOK PRACTICE ,602236,"-100,945.33 ",LNK000000415,
Department of Health,NHS England,31/07/2013,GPMS/APMS and PCTMS, Primary Care , CEDAR BROOK PRACTICE ,602238," 193,587.49 ",LNK000000416,
Department of Health,NHS England,31/07/2013,GPMS/APMS and PCTMS, Primary Care , CEDAR MEDICAL PRACTICE ,747790," 66,596.97 ",KHU000001668,
Department of Health,NHS England,31/07/2013,GPMS/APMS and PCTMS, Primary Care , CEDAR PRACTICE ,705725," 62,823.36 ",LNA000001458,
Department of Health,NHS England,31/07/2013,GPMS/APMS and PCTMS, Primary Care , CEDARS MEDICAL CENTRE ,676680,"-48,933.29 ",CH000001924,
Department of Health,NHS England,31/07/2013,GPMS/APMS and PCTMS, Primary Care , CEDARS MEDICAL CENTRE ,706174," 44,592.31 ",LNK000000500,
Department of Health,NHS England,31/07/2013,GPMS/APMS and PCTMS, Primary Care , CEDARS MEDICAL CENTRE ,539313," 49,200.93 ",CH000001561,
Department of Health,NHS England,31/07/2013,GPMS/APMS and PCTMS, Primary Care , CEDARS MEDICAL CENTRE ,676681," 55,016.74 ",CH000001925,
Department of Health,NHS England,31/07/2013,GPMS/APMS and PCTMS, Primary Care , CEDARS MEDICAL GROUP ,598081,"-58,464.78 ",DR000001058,
Department of Health,NHS England,31/07/2013,GPMS/APMS and PCTMS, Primary Care , CEDARS MEDICAL GROUP ,606810," 116,226.54 ",DR000001059,
Department of Health,NHS England,31/07/2013,GPMS/APMS and PCTMS, Primary Care , CEDARS SURGERY ,662209," 60,135.38 ",KC000004058,
Department of Health,NHS England,31/07/2013,GPMS/APMS and PCTMS, Primary Care , CEDARS SURGERY MAIDENHEAD ,705897," 96,194.05 ",BE000001770,
Department of Health,NHS England,31/07/2013,GPMS/APMS and PCTMS, Primary Care , CEDARS SURGERY WESTON MARE ,602482," 55,221.61 ",BRS000001807,
Department of Health,NHS England,31/07/2013,Establishment, NHS England Running Costs , CENTERPRISE INTERNATIONAL LTD ,622941," 94,400.00 ",90137550 ,
Department of Health,NHS England,31/07/2013,Services from other NHS bodies, Secondary and Community Dental Care , CENTRAL & NORTH WEST LONDON NHS FOUNDATION TRUST ,581738,"-405,791.01 ",C0003788,
Department of Health,NHS England,31/07/2013,Services from other NHS bodies, Health & Justice , CENTRAL & NORTH WEST LONDON NHS FOUNDATION TRUST ,743498,"-117,764.00 ",C0003830,
Department of Health,NHS England,31/07/2013,Services from other NHS bodies, Health & Justice , CENTRAL & NORTH WEST LONDON NHS FOUNDATION TRUST ,743499,"-117,764.00 ",C0003831,
Department of Health,NHS England,31/07/2013,Supplies and services � general, NHS England Running Costs , CENTRAL & NORTH WEST LONDON NHS FOUNDATION TRUST ,760970,"-117,764.00 ",C0003829,
Department of Health,NHS England,31/07/2013,Supplies and services � general, NHS England Running Costs , CENTRAL & NORTH WEST LONDON NHS FOUNDATION TRUST ,797838,"-117,764.00 ",C0003832,
Department of Health,NHS England,31/07/2013,Services from other NHS bodies, Secondary and Community Dental Care , CENTRAL & NORTH WEST LONDON NHS FOUNDATION TRUST ,695518,"-91,000.00 ",C0003825,
Department of Health,NHS England,31/07/2013,Services from other NHS bodies, Secondary and Community Dental Care , CENTRAL & NORTH WEST LONDON NHS FOUNDATION TRUST ,581739,"-52,491.99 ",C0003787,
Department of Health,NHS England,31/07/2013,Services from other NHS bodies, Secondary and Community Dental Care , CENTRAL & NORTH WEST LONDON NHS FOUNDATION TRUST ,581740,"-32,335.26 ",C0003786,
Department of Health,NHS England,31/07/2013,Services from other NHS bodies, NHS England Running Costs , CENTRAL & NORTH WEST LONDON NHS FOUNDATION TRUST ,647814," 12,395.00 ",S0511897,
Department of Health,NHS England,31/07/2013,Services from other NHS bodies, Health & Justice , CENTRAL & NORTH WEST LONDON NHS FOUNDATION TRUST ,613803," 36,984.00 ",S0511864,
Department of Health,NHS England,31/07/2013,Services from other NHS bodies, Secondary and Community Dental Care , CENTRAL & NORTH WEST LONDON NHS FOUNDATION TRUST ,584396," 51,913.50 ",S0511826,
Department of Health,NHS England,31/07/2013,Services from other NHS bodies, Secondary and Community Dental Care , CENTRAL & NORTH WEST LONDON NHS FOUNDATION TRUST ,584397," 57,925.00 ",S0511825,
Department of Health,NHS England,31/07/2013,Services from other NHS bodies, Secondary and Community Dental Care , CENTRAL & NORTH WEST LONDON NHS FOUNDATION TRUST ,695217," 91,000.00 ",K0816397,
Department of Health,NHS England,31/07/2013,Supplies and services � general, NHS England Running Costs , CENTRAL & NORTH WEST LONDON NHS FOUNDATION TRUST ,760151," 117,764.00 ",S0511575,
Department of Health,NHS England,31/07/2013,Supplies and services � general, NHS England Running Costs , CENTRAL & NORTH WEST LONDON NHS FOUNDATION TRUST ,797692," 117,764.00 ",S0511866,
Department of Health,NHS England,31/07/2013,Services from other NHS bodies, Secondary and Community Dental Care , CENTRAL & NORTH WEST LONDON NHS FOUNDATION TRUST ,786969," 127,481.42 ",S0511925,
Department of Health,NHS England,31/07/2013,Services from other NHS bodies, Secondary and Community Dental Care , CENTRAL & NORTH WEST LONDON NHS FOUNDATION TRUST ,622438," 135,263.67 ",S0511739,
Department of Health,NHS England,31/07/2013,Services from other NHS bodies, Secondary and Community Dental Care , CENTRAL & NORTH WEST LONDON NHS FOUNDATION TRUST ,557321," 144,931.00 ",S0511743,
Department of Health,NHS England,31/07/2013,Services from other NHS bodies, Secondary and Community Dental Care , CENTRAL & NORTH WEST LONDON NHS FOUNDATION TRUST ,731355," 144,931.00 ",S0511933,
Department of Health,NHS England,31/07/2013,Services from other NHS bodies, Public Health , CENTRAL & NORTH WEST LONDON NHS FOUNDATION TRUST ,647814," 254,432.00 ",S0511897,
Department of Health,NHS England,31/07/2013,Services from other NHS bodies, Public Health , CENTRAL & NORTH WEST LONDON NHS FOUNDATION TRUST ,581317," 318,953.00 ",S0511713,
Department of Health,NHS England,31/07/2013,Services from other NHS bodies, Public Health , CENTRAL & NORTH WEST LONDON NHS FOUNDATION TRUST ,581330," 318,953.00 ",S0511711,
Department of Health,NHS England,31/07/2013,Services from other NHS bodies, Public Health , CENTRAL & NORTH WEST LONDON NHS FOUNDATION TRUST ,581536," 318,953.00 ",S0511742,
Department of Health,NHS England,31/07/2013,Services from other NHS bodies, Secondary and Community Dental Care , CENTRAL & NORTH WEST LONDON NHS FOUNDATION TRUST ,595361," 382,444.25 ",S0511824,
Department of Health,NHS England,31/07/2013,Services from other NHS bodies, Health & Justice , CENTRAL & NORTH WEST LONDON NHS FOUNDATION TRUST ,709493," 609,367.00 ",S0511863,
Department of Health,NHS England,31/07/2013,Services from other NHS bodies, Specialised Commissioning , CENTRAL & NORTH WEST LONDON NHS FOUNDATION TRUST ,647783," 2,345,131.00 ",S0511867,
Department of Health,NHS England,31/07/2013,GPMS/APMS and PCTMS, Primary Care , CENTRAL BEDFORDSHIRE COUNCIL ,798894," 66,882.00 ",117276-25-JUL-2013,
Department of Health,NHS England,31/07/2013,GPMS/APMS and PCTMS, Primary Care , CENTRAL CLINIC ,712647,"-28,105.20 ",DUD000000494,
Department of Health,NHS England,31/07/2013,GPMS/APMS and PCTMS, Primary Care , CENTRAL CLINIC ,721068," 57,705.66 ",DUD000000495,
Department of Health,NHS England,31/07/2013,Services from other NHS bodies, Primary Care , CENTRAL ESSEX COMMUNITY SERVICES CIC ,761080," 39,613.00 ",CE4000004516,
Department of Health,NHS England,31/07/2013,Purchase of healthcare from non-NHS bodies, Public Health , CENTRAL ESSEX COMMUNITY SERVICES CIC ,572620," 433,000.00 ",CE4000004295,
Department of Health,NHS England,31/07/2013,Purchase of healthcare from non-NHS bodies, Public Health , CENTRAL ESSEX COMMUNITY SERVICES CIC ,761080," 438,600.00 ",CE4000004516,
Department of Health,NHS England,31/07/2013,Services from other NHS bodies, Other , CENTRAL LONDON COMMUNITY HEALTHCARE NHS TRUST ,635952," 22,389.00 ",N0019292,
Department of Health,NHS England,31/07/2013,Services from other NHS bodies, Health & Justice , CENTRAL LONDON COMMUNITY HEALTHCARE NHS TRUST ,673347," 173,000.00 ",N0019295,
Department of Health,NHS England,31/07/2013,Services from other NHS bodies, Secondary and Community Dental Care , CENTRAL LONDON COMMUNITY HEALTHCARE NHS TRUST ,635952," 396,669.00 ",N0019292,
Department of Health,NHS England,31/07/2013,Services from other NHS bodies, Health & Justice , CENTRAL LONDON COMMUNITY HEALTHCARE NHS TRUST ,635997," 682,452.00 ",N0019294,
Department of Health,NHS England,31/07/2013,Services from other NHS bodies, Health & Justice , CENTRAL LONDON COMMUNITY HEALTHCARE NHS TRUST ,805975," 682,452.00 ",N0018433,
Department of Health,NHS England,31/07/2013,Services from other NHS bodies, Public Health , CENTRAL LONDON COMMUNITY HEALTHCARE NHS TRUST ,635952," 1,150,361.00 ",N0019292,
Department of Health,NHS England,31/07/2013,Services from other NHS bodies, Health & Justice , CENTRAL MANCHESTER UNIVERSITY HOSPITALS NHS FOUNDATION TRUST ,695318," 28,782.00 ",209646 ,
Department of Health,NHS England,31/07/2013,Services from other NHS bodies, Health & Justice , CENTRAL MANCHESTER UNIVERSITY HOSPITALS NHS FOUNDATION TRUST ,743018," 86,345.00 ",207337 ,
Department of Health,NHS England,31/07/2013,Services from other NHS bodies, Public Health , CENTRAL MANCHESTER UNIVERSITY HOSPITALS NHS FOUNDATION TRUST ,556947," 154,538.00 ",205363 ,
Department of Health,NHS England,31/07/2013,Services from other NHS bodies, Public Health , CENTRAL MANCHESTER UNIVERSITY HOSPITALS NHS FOUNDATION TRUST ,556963," 154,538.00 ",205362 ,
Department of Health,NHS England,31/07/2013,Services from other NHS bodies, Public Health , CENTRAL MANCHESTER UNIVERSITY HOSPITALS NHS FOUNDATION TRUST ,636170," 154,538.00 ",209643 ,
Department of Health,NHS England,31/07/2013,Services from other NHS bodies, Specialised Commissioning , CENTRAL MANCHESTER UNIVERSITY HOSPITALS NHS FOUNDATION TRUST ,760670," 243,500.00 ",208986 ,
Department of Health,NHS England,31/07/2013,Services from other NHS bodies, Specialised Commissioning , CENTRAL MANCHESTER UNIVERSITY HOSPITALS NHS FOUNDATION TRUST ,613806," 26,189,989.00 ",209658 ,
Department of Health,NHS England,31/07/2013,GPMS/APMS and PCTMS, Primary Care , CENTRAL MEDICAL CENTRE ,606022," 72,762.89 ",LNP000001778,
Department of Health,NHS England,31/07/2013,GPMS/APMS and PCTMS, Primary Care , CENTRAL PARK SURGERY ,747122," 41,562.37 ",LA000002995,
Department of Health,NHS England,31/07/2013,GPMS/APMS and PCTMS, Primary Care , CENTRAL SURGERY BARTON HUMBER ,747792," 139,958.16 ",KHU000001670,
Department of Health,NHS England,31/07/2013,GPMS/APMS and PCTMS, Primary Care , CENTRAL SURGERY RUGBY ,705559,"-34,580.44 ",WA000001231,
Department of Health,NHS England,31/07/2013,GPMS/APMS and PCTMS, Primary Care , CENTRAL SURGERY RUGBY ,698334," 142,405.23 ",WA000001232,
Department of Health,NHS England,31/07/2013,GPMS/APMS and PCTMS, Primary Care , CENTRE PRACTICE (THE) ,705358," 112,456.01 ",SO000003878,
Department of Health,NHS England,31/07/2013,GPMS/APMS and PCTMS, Primary Care , CERNE ABBAS SURGERY ,585815," 40,615.73 ",DO000001462,
Department of Health,NHS England,31/07/2013,GPMS/APMS and PCTMS, Primary Care , CESTRIA HEALTH CENTRE ,606811,"-121,214.21 ",DR000001060,
Department of Health,NHS England,31/07/2013,GPMS/APMS and PCTMS, Primary Care , CESTRIA HEALTH CENTRE ,598082," 232,425.02 ",DR000001061,
Department of Health,NHS England,31/07/2013,Other professional fees, NHS England Running Costs , CGI IT UK LTD ,761866," 29,135.71 ",HRS133181,
Department of Health,NHS England,31/07/2013,Supplies and services � general, Other , CGI IT UK LTD ,563298," 47,399.86 ",GB2460001367,
Department of Health,NHS England,31/07/2013,Supplies and services � general, Other , CGI IT UK LTD ,563293," 47,723.50 ",GB2460001365,
Department of Health,NHS England,31/07/2013,Supplies and services � general, Other , CGI IT UK LTD ,563369," 71,666.74 ",GB2460001535,
Department of Health,NHS England,31/07/2013,Other professional fees, Social Care , CGI IT UK LTD ,595286," 106,626.76 ",GB2460001540,
Department of Health,NHS England,31/07/2013,GPMS/APMS and PCTMS, Primary Care , CH MEDICAL ,741218," 60,751.55 ",GMK000000857,
Department of Health,NHS England,31/07/2013,GPMS/APMS and PCTMS, Primary Care , CHADSFIELD MEDICAL PRACTICE ,733286," 43,923.18 ",SPT000000649,
Department of Health,NHS England,31/07/2013,GPMS/APMS and PCTMS, Primary Care , CHADWELL HEATH HEALTH CENTRE ,706448,"-26,876.72 ",LNC000001108,
Department of Health,NHS England,31/07/2013,GPMS/APMS and PCTMS, Primary Care , CHADWELL HEATH HEALTH CENTRE ,706449," 51,988.62 ",LNC000001109,
Department of Health,NHS England,31/07/2013,GPMS/APMS and PCTMS, Primary Care , CHADWELL HEATH SURGERY ,607112," 73,803.99 ",LNB000000868,
Department of Health,NHS England,31/07/2013,GPMS/APMS and PCTMS, Primary Care , CHAGFORD HEALTH CENTRE ,539197," 29,549.39 ",DN000003055,
Department of Health,NHS England,31/07/2013,GPMS/APMS and PCTMS, Primary Care , CHAGFORD HEALTH CENTRE ,788707," 31,620.27 ",DN000003881,
Department of Health,NHS England,31/07/2013,GPMS/APMS and PCTMS, Primary Care , CHAGGAR ,706297," 54,500.98 ",WBH000000714,
Department of Health,NHS England,31/07/2013,GPMS/APMS and PCTMS, Primary Care , CHAJED G C & PARTNERS ,746759," 65,173.70 ",EX000003719,
Department of Health,NHS England,31/07/2013,GPMS/APMS and PCTMS, Primary Care , CHALABI & KHAN ,599894,"-123,122.80 ",LNA000001319,
Department of Health,NHS England,31/07/2013,GPMS/APMS and PCTMS, Primary Care , CHALABI & KHAN ,599895," 146,744.11 ",LNA000001320,
Department of Health,NHS England,31/07/2013,GPMS/APMS and PCTMS, Primary Care , CHALFONT ROAD SURGERY ,751695,"-44,740.10 ",LNE000001380,
Department of Health,NHS England,31/07/2013,GPMS/APMS and PCTMS, Primary Care , CHALFONT ROAD SURGERY ,751697," 70,813.84 ",LNE000001381,
Department of Health,NHS England,31/07/2013,GPMS/APMS and PCTMS, Primary Care , CHANA & PARTNERS ,638783,"-40,949.69 ",STL000001163,
Department of Health,NHS England,31/07/2013,GPMS/APMS and PCTMS, Primary Care , CHANA & PARTNERS ,638784," 71,455.88 ",STL000001164,
Department of Health,NHS England,31/07/2013,GPMS/APMS and PCTMS, Primary Care , CHANCERY LANE PRACTICE ,698336," 43,204.44 ",WA000001234,
Department of Health,NHS England,31/07/2013,GPMS/APMS and PCTMS, Primary Care , CHAND NARULA & SPOONER ,606861," 41,198.25 ",DE000001978,
Department of Health,NHS England,31/07/2013,GPMS/APMS and PCTMS, Primary Care , CHANDRA REDDY P ,597887," 26,510.76 ",EX000003332,
Department of Health,NHS England,31/07/2013,GPMS/APMS and PCTMS, Primary Care , CHANDRALINGHAM N K & PARTNER ,758873," 30,018.64 ",EX000003721,
Department of Health,NHS England,31/07/2013,GPMS/APMS and PCTMS, Primary Care , CHANDRASHEKHAR & PARTNER ,637678,"-29,097.19 ",LIP000001625,
Department of Health,NHS England,31/07/2013,GPMS/APMS and PCTMS, Primary Care , CHANDRASHEKHAR & PARTNER ,648634," 58,809.77 ",LIP000001626,
Department of Health,NHS England,31/07/2013,GPMS/APMS and PCTMS, Primary Care , CHANDY J ,606812,"-58,815.91 ",DR000001062,
Department of Health,NHS England,31/07/2013,Prescribing costs, Primary Care , CHANDY J ,598083," 1,107.67 ",DR000001063,
Department of Health,NHS England,31/07/2013,GPMS/APMS and PCTMS, Primary Care , CHANDY J ,598083," 110,607.45 ",DR000001063,
Department of Health,NHS England,31/07/2013,GPMS/APMS and PCTMS, Primary Care , CHANG & PARTNERS ,713761," 53,990.64 ",LNN000001017,
Department of Health,NHS England,31/07/2013,GPMS/APMS and PCTMS, Primary Care , CHANNEL VIEW SURGERY TEIGNMOUTH ,539198," 72,337.92 ",DN000003057,
Department of Health,NHS England,31/07/2013,GPMS/APMS and PCTMS, Primary Care , CHANNEL VIEW SURGERY TEIGNMOUTH ,788709," 79,556.46 ",DN000003883,
Department of Health,NHS England,31/07/2013,GPMS/APMS and PCTMS, Primary Care , CHAPEL ROW SURGERY ,697390," 58,319.53 ",BE000001772,
Department of Health,NHS England,31/07/2013,GPMS/APMS and PCTMS, Primary Care , CHAPEL STREET MEDICAL PRACTICE ASHTON LYNE ,740971," 38,730.45 ",GMK000000966,
Department of Health,NHS England,31/07/2013,GPMS/APMS and PCTMS, Primary Care , CHAPEL STREET MEDICAL PRACTICE DERBY ,696621,"-34,011.58 ",DE000002177,
Department of Health,NHS England,31/07/2013,GPMS/APMS and PCTMS, Primary Care , CHAPEL STREET MEDICAL PRACTICE DERBY ,696622," 97,171.12 ",DE000002178,
Department of Health,NHS England,31/07/2013,GPMS/APMS and PCTMS, Primary Care , CHAPEL STREET SURGERY NEWHAVEN ,686777," 55,516.73 ",TE000002009,
Department of Health,NHS England,31/07/2013,GPMS/APMS and PCTMS, Primary Care , CHARING SURGERY ,652878," 56,432.92 ",KC000003881,
Department of Health,NHS England,31/07/2013,GPMS/APMS and PCTMS, Primary Care , CHARLBURY MEDCIAL CENTRE ,758073," 40,710.11 ",OX000001321,
Department of Health,NHS England,31/07/2013,GPMS/APMS and PCTMS, Primary Care , CHARLESTOWN MEDICAL PRACTICE ,740878," 52,842.97 ",MAN000001101,
Department of Health,NHS England,31/07/2013,GPMS/APMS and PCTMS, Primary Care , CHARLTON & PARTNERS ,598079,"-71,920.10 ",DR000001056,
